Workbook

Sheet Instructivo
A2: =+A2:H15E15A2:H13A2:H19E15A2:H13A2:H26E15A2:H13A2A2:H35 ->  | B2: EVALUACIÓN INDEPENDIENTE SISTEMA DE CONTROL INTERNO (instrucciones para su diligenciamiento)
B6: Teniendo en cuenta que con la expedición del Decreto 1499 de 2017 “Por medio del cual se modifica el Decreto 1083 de 2015, Decreto Único Reglamentario del Sector Función Pública, en lo relacionado con el Sistema de Gestión establecido en el artículo 133 de la Ley 1753 de 2015”, se crea un solo Sistema de Gestión y se alinea con el Sistema de Control Interno, hoy todas las entidades públicas requieren actualizar y/o implementar el Modelo Integrado de Planeación y Gestión MIPG, modelo que incorpora el Modelo Estándar de Control Interno MECI a través de la 7a dimensión del mismo. Esta estructura requiere de un análisis articulado frente al desarrollo de las políticas de gestión y desempeño contenidas en el modelo y su efectividad en relación con la estructura de control, este útlimo, aspecto esecial para garantizar el buen manejo de los recursos, que las metas y objetivos se cumplan y se mejore la prestación del servicio a los usuarios, ejes fundamentales para la generación de valor público. Teniendo en cuenta lo anterior y dada la necesidad de dar cumplimiento a la dispuesto en el articulo 156 del Decreto 2106 de 2019, el presente formato busca que las entidades cuenten con una herramienta para evaluar sus Sistemas de Control Interno de manera integral y permitirle al Jefe de Control Interno o quien haga sus veces llevar a cabo el informe de evaluación independiente sobre el mismo para su publicación cada seis (6) meses, en el sitio web de la entidad.
B8: Orientaciones Generales
B9: El archivo contiene las siguientes hojas: - Pestañas por cada uno de los componentes de control interno: "Ambiente de Control", "Evaluación de riesgos", "Actividades de control", "Información y Comunicación", y " Actividades de Monitoreo". las cuales cuentan todas con la siguiente estructura:
C12: Columna | E12: Descripción
C13: Lineamiento X: | E13: Esta columna define los lineamientos generales para cada uno de los componentes del MECI y se asocian los temas específicos que se deben analizar en cada uno.
C14: DIMENSIÓN O POLÍTICA DEL MIPG ASOCIADA AL REQUERIMIENTO | E14: En esta columna se deben asociar la (las) dimensión (es), así como la (s) política (s) de gestión y desempeño que permiten el desarrollo del tema en la entidad, en el marco del Modelo Integrado de Planeación y Gestión MIPG.
C15: Evaluación "si se encuentra Presente" Referencia a Procesos, Manuales/Políticas de Operación/Procedimientos/Instructivos u otros desarrollos que den cuente de su aplicación | E15: Indicar el nombre del proceso, manual, política de operación, procedimiento o instructivo en donde se encuentra documentado y su fuente de consulta. De acuerdo con lo identificado como resultado de la evaluación del requerimiento, seleccione de la lista desplegable 1, 2 o 3 de acuerdo con las siguientes definiciones: 1 - No existen actividades diseñadas para cubrir el requerimiento. 2 - Existen actividades diseñadas o en proceso de diseño, pero éstas no se encuentran documentadas en las políticas/procedimientos u otras herramientas 3 - Las actividades se encuentran diseñadas, documentadas y socializadas de acuerdo con el requerimiento. Nota: Entiendase "diseñada" como aquella actividad que cuenta con un responsable(s), periodicidad (cada cuanto se realiza ), proposito (objetivo), Como se lleva a cabo (procedimiento), qué pasa con las desviaciones y/o excepciones (producto de su ejecucion) y cuenta con evidencia (documentacion).
C16: EVIDENCIA DEL CONTROL | D16: No. | E16: Relaciona el consecutivo de las evidencias que se identifican en relación con la efectividad del control.
D17: Referencia a Análisis y verificaciones en el marco del Comité Institucional de Coordinación de Control Interno | E17: Indicar las acciones que se han adelantado para evaluar el estado del Sistema de Control Interno en el marco del Comité Institucional de Coordinación de Control Interno. Acciones entendidas a las modificaciones, actualizaciones y actividades de fortalecimiento del sistema a partir de la normatividad vigente.
D18: Observaciones de la evaluacion independiente (tener encuenta papel de líneas de defensa) | E18: Indicar las acciones que se han adelantado en el marco de la evaluaciòn independiente (auditoria interna), sobre el estado del Sistema de Control Interno . Acciones entendidas en la evaluación y monitoreo de la efectividad del control, incluyendo el seguimiento a los controles de la primera y segunda linea de defensa.
C19: Evaluación "si se encuentra Funcionando" | E19: Seleccionar de la lista desplegable 1, 2 o 3 de acuerdo con los siguientes criterios y basado en los resultados reportados por la Oficina de Control Interno así: 1 - El control no opera como está diseñado o bien no está presente (no se ha implementado) 2 - El control opera como está diseñado pero con algunas falencias 3- El control opera como está diseñado y es efectivo frente al cumplimiento de los objetivos y para evitar la materialización del riesgo.
B21: - Análisis de Resultados: Esta hoja permite establecer si el Sistema de Control Interno evaluado se encuentra PRESENTE y FUNCIONANDO, permitiéndo definir puntos de mejora a través de los componentes del MECI y su articulacion con las Dimensiones del MIPG.
C23: Clasificación | D23: Descripción | F23: Observaciones del Control
C24: Mantenimiento del Control | D24: Cuando en el análisis de los requerimientos en los diferentes componentes del MECI se cuente con aspectos evaluados en nivel 3 (presente) y 3 (funcionando). | F24: Se encuentra presente y funciona correctamente, por lo tanto se requiere acciones o actividades dirigidas a su mantenimiento dentro del marco de las lineas de defensa.
C25: Oportunidad de Mejora | D25: Cuando en el análisis de los requerimientos en los diferentes componentes del MECI se cuente con aspectos evaluados en nivel 2 (presente) y 3 (funcionando). | F25: Se encuentra presente y funcionando, pero requiere mejoras frente a su diseño, ya que opera de manera efectiva
C26: Deficiencia de Control (Diseño o Ejecución) | D26: Cuando en el análisis de los requerimientos en los diferentes componentes del MECI se cuente con aspectos evaluados en nivel 2 (presente) y 2 (funcionando); 3 (presente) y 1 (funcionando); 3 (presente) y 2 (funcionando); 2 (presente) y 1 (funcionando) | F26: Se encuentra presente y funcionando, pero requiere acciones dirigidas a fortalecer o mejorar su diseño y/o ejecucion.
C27: Deficiencia de Control Mayor (Diseño y Ejecución) | D27: Cuando en el análisis de los requerimientos en los diferentes componentes del MECI se cuente con aspectos evaluados en nivel 1 (presente) y 1 (funcionando);1 (presente) y 2 (funcionando); 1(presente) y 3 (funcionando). | F27: No se encuentra presente por lo tanto no esta funcionando, lo que hace que se requieran acciones dirigidas a fortalecer su diseño y puesta en marcha
B30: - Conclusiones: Esta hoja permite establecer si el Sistema de Control Interno evaluado se encuentra PRESENTE y FUNCIONANDO, definiendo puntos de mejora a través de los componentes del MECI y su relación con las Dimensiones del MIPG.
B32: - Definiciones: Algunos términos asociados a con control interno y utilizados en diferentes partes del formato.

Sheet Definiciones
B2: Términos y Definiciones
B4: Término | C4: Descripción
B5: Actividad de control | C5: Acciones establecidas en los procesos, políticas, procedimientos u otras herramientas que permiten que se lleven a cabo las instrucciones de la Administración para mitigar los riesgos relacionados con el logro de los objetivos. Las Actividades de Control son un Componente del Control Interno.
B6: Alta Dirección | C6: Comprende los empleos del Nivel Directivo a los cuales corresponden funciones de dirección general, de formulación de políticas institucionales y de adopción de planes, programas y proyectos. (Decreto 770 de 2005)
B7: Ambiente de control | C7: El ambiente de control establece el tono de una organización. Es la base de los otros componentes del control interno pues define los valores y principios con los cuales se rige la entidad e influye en la conciencia de los servidores sobre la forma en que se deben llevar a cabo las operaciones.
B8: Comité Institucional de Coordinación de Control Interno | C8: Instancia del más alto nivel jerárquico, creado como órgano asesor e instancia decisora en los asuntos de control interno, de oblgatoria conformación para todas las entidades estatales. (Ley 87 de 1993, art 13 y Decreto 648 de 2017).
B9: Comité Institucional de Gestión y Desempeño | C9: Instancia del más alto nivel jerárquico, encargado de orientar la implementación y operación del Modelo Integrado de Planeación y Gestión MIPG, de oblgatoria conformación para todas las entidades estatales. (Decreto 1499 de 2017).
B10: Componente | C10: Uno de los cinco elementos del Modelo Estándar de Control Interno MECI.
B11: Conflicto de interés | C11: Situación en la cual un auditor interno, que ocupa un puesto de confianza, tiene interés personal o profesional en competencia con otros intereses. Tales intereses pueden hacerle difícil el cumplimiento imparcial de sus tareas. (Tomado de las Normas Internacionales de Auditoría Interna Norma 1120) En el sector público el conflicto de interés existe cuando el interés personal de quien ejerce una función pública colisiona con los deberes y obligaciones del cargo que desempeña. (Guía Conflictos de Interés de Servidores Públicos. Función Pública. 2018).
B12: Control Interno | C12: Estructura de procesos, políticas, procedimientos, manuales y otras herramientas diseñadas por la entidad para proporcionar seguridad razonable de que los objetivos y metas se alcanzarán y que los eventos no deseados se evitaran o bien se detectaran y corregirán.
B13: Control interno efectivo | C13: El Sistema de Control Interno para que sea efectivo requiere que cada uno de los cinco componentes del MECI y sus lineamientos, estén presentes, funcionando y operando de manera articulada con el MIPG.
B14: Controles generales de TI | C14: Actividades de control que ayudan a asegurar la apropiada operación de la tecnología, incluyen los controles sobre la infraestructura de tecnología, seguridad de la información, adquisición de tecnología su desarrollo y mantenimiento.
B15: Corrupción | C15: Posibilidad de que por acción u omisión, se use el poder para desviar la gestión de lo público hacia un beneficio privado. (Secretaría de Transparencia)
B16: COSO | C16: Committe of Sponsoring Organizations of the Treadway Commission (por sus siglas en inglés). COSO es una iniciativa conjunta de cinco organizaciones del sector privado y se dedica a liderar el desarrollo de marcos y guías en control interno y gestión de riesgos.
B17: Cumplimiento | C17: Esta relacionado con el cumplimiento a las leyes y regulaciones aplicables a la Entidad.
B18: Deficiencia de control | C18: Es una falla con respecto a un control particular o actividad de control.
B19: Deficiencia del Sistema de control interno | C19: Se asocia a fallas o brechas en un componente o componentes y sus lineamientos que tiene la capacidad para generar riesgos.
B20: Evaluación de Riesgos | C20: Proceso que permite a cada entidad identificar, analizar y administrar riesgos relevantes para el logro de sus objetivos.
B21: Evaluaciones continuas | C21: Corresponden a actividades (manuales o automáticas) que sirven para monitorear la efectividad del control interno en el día a día de las operaciones. Estas evaluaciones incluyen actos regulares de administración, comparaciones, conciliaciones y otras acciones rutinarias.
B22: Evaluaciones separadas | C22: Incluye autoevaluaciones, en las que las personas responsables por una unidad o función particular (2a línea de defensa) determinan la efectividad de los controles para sus actividades clave para el logro de los objetivos institucionales. Así mismo, se incluyen las evaluaciones realizadas por las Auditorías (interna y externa).
B23: Funcionando | C23: La determinación que los componentes y lineamientos son aplicados de forma sistemática como han sido diseñados y es posible analizar su efectividad para evitar la materialización de riesgos, mediante el contraste de información relevante.
B24: Integridad | C24: El economista estadounidense Anthony Downs “la integridad consiste en la coherencia entre las declaraciones y las realizaciones[1]”, entendiéndose esta como una característica personal, que en el sector público también se refiere al cumplimiento de la promesa que cada servidor le hace al Estado y a la ciudadanía de ejercer a cabalidad su labor. (Tomado micrositio MIPG, Dimensión Talento Humano).
B25: Lineamiento | C25: Especificaciones fundamentales asociadas a cada uno de los componentes del MECI que permitirán establecer la efectividad del Sistema de Control Interno.
B26: Mantenimieto del Control | C26: Verificar periodicamente el control y ante cambios en el entorno externo o interno realizar los ajustes correspondientes o incluir un nuevo control
B27: Mapa de riesgos | C27: Herramiento cualitativa que permite identificar los riesgos de la organización en el cual se presenta una descripción de cada uno de ellos y su tratamiento.
B28: Oportunidad de Mejora | C28: Hallazgo en el cual sí existe un cumplimiento, pero a pesar de ello se determina, bajo criterios objetivos, que existe un margen de mejora para optimizar más una actividad, tarea o proceso concreto.
B29: Política | C29: Declaración emitida por la administración acerca de lo que debe hacerse para el control. Las políticas son la base para la definición de procedimientos.
B30: Presente | C30: La determinación que existen en diseño e implementación de los requerimientos asociados a las políticas de gestión y desempeño.
B31: Procedimiento | C31: Actividades desagregadas que implementan una política o determinan acciones concretas para la consecución de un objetivo o meta.
B32: Reporte | C32: Información suministrada por diferentes instancias de la entidad, que incluye datos internos y externos, así como información financiera y no financiera, necesaria para la toma de decisiones.
B33: Riesgo | C33: La posibilidad de que un evento ocurra y afecte de manera adversa el logro de los objetivos.
B34: Riesgo inherente | C34: El riesgo frente al logro de los objetivos en ausencia de cualquier acción por parte de la administración para afectar el impacto o probabilidad de dicho riesgo.
B35: Riesgo residual | C35: El riesgo frente al logro de los objetivos que permanece una vez la respuesta al riesgo ha sido diseñada e implementada por parte de la administración.
B36: Segregación de Funciones | C36: Se refiere a la asignación de las responsabilidades con diferentes niveles de autorización con el fin de reducir errores o posibles situaciones de corrupción durante el normal desarrollo de sus funciones.
B37: Seguridad razonable | C37: Determina que no importa que tan bien esté diseñado e implementado el control interno, no se puede garantizar que los objetivos de la entidad se van a cumplir. Esto por las limitaciones inherentes de todo Sistemas de Control Interno.
B38: Evaluación Independiente | C38: Se entiende como las prácticas de examen al control interno y ejercicio de auditoría llevadas a cabo por la oficina de control interno o quien haga sus veces, teniendo en cuenta las normas de auditoria generalmente aceptadas.
B39: Lineas de Defensa | C39: Esquema de asignación de responsabilidades, adaptada del Modelo de las 3 Líneas de Defensa” del Instituto de Auditores, el cual proporciona una manera simple y efectiva para mejorar las comunicaciones en la gestión de riesgos y control mediante la aclaración de las funciones y deberes esenciales relacionados, que permiten contar con diferentes niveles para el control.

Sheet Ambiente de Control
C18: AMBIENTE DE CONTROL
C19: La entidad debe asegurar un ambiente de control que le permita disponer de las condiciones mínimas para el ejercicio del control interno. Esto se logra con el compromiso, liderazgo y los lineamientos de la alta dirección y del Comité Institucional de Coordinación de Control Interno. El Ambiente de Control es el fundamento de todos los demás componentes del control interno, se incluyen la integridad y valores éticos, la competencia (capacidad) de los servidores de la entidad; la manera en que la Alta Dirección asigna autoridad y responsabilidad, así como también el direccionamiento estratégico definido.
B21: ID | C21: Lineamiento 1: La entidad demuestra el compromiso con la integridad (valores) y principio+I186+C21:I31+I186+C21:I31+C21:I31+C21:I31 | D21: Explicación de cómo la Entidad evidencia que está dando respuesta al requerimiento Referencia a Procesos, Manuales/Políticas+C21:I31n/Procedimientos/Instructivos u otros desarrollos que den cuente de su aplicación | E21: Explicación de cómo la Entidad evidencia que está dando respuesta al requerimiento Referencia a Procesos, Manuales/Políticas de Operación/Procedimientos/Instructivos u otros desarrollos que den cuente de su aplicación | F21: Presente (1/2/3) | G21: EVIDENCIA DEL CONTROL | J21: Funcionando (1/2/3) | K21: Evaluación
G22: No. | H22: Referencia a Análisis y verificaciones en el marco del Comité Institucional de Coordinación de Control Interno | I22: Observaciones de la evaluacion independiente (tener encuenta papel de líneas de defensa)
A24: EJEMPLO | B24: =+LEFT(C24,3) -> Ap | C24: Aplicación del Código de Integridad. (incluye análisis de desviaciones, convivencia laboral, temas disciplinarios internos, quejas o denuncias sobres los servidores de la entidad, u otros temas relacionados). | D24: Dimensión Talento Humano Política Integridad | E24: Se implementó el Código de Integridad acorde con el esquema definido de 5 valores y sus lineamientos de conducta y se desarrollaron ejercicios internos con talleres para la socialización e interiorización a todos los servidores y contratistas de la entidad. | F24: 1 | G24: 1 | H24: Seguimiento al cumplimiento de la elaboracion y socializacion del Código de Integridad, con base en el informe presentando por la segunda linea de defensa (cuando aplique). | I24: Se llevo a cabo un seguimiento a lo dispuesto en el marco del Comité Institucional de Coordinaciòn de Control Intenro, donde se determino la necesidad de estructurar el codigo de integridad siguiendo la metodologia de Funciòn Pùblica, para ello se delego como responsable del mismo al Secretario General. Se encontro que se realizaron ejercicios ludicos y participativos para la construccion de los 5 valores institucionales, cada mes se hacen campañas de interiorizacion de los mismo al personal de la entidad, teniendo como evidencia el compromiso de los funcionarios con el horario laboral, una reduccion del ausentismo asi como un bajo porcentaje de quejas por parte de los ciudadanos. Por otra parte, se realiza seguimiento mensual por parte del Secretario General al cumplimiento de las actividades propuestas en el cronograma. | J24: 3 | K24: =+IF(OR(ISBLANK(F24),ISBLANK(J24)),"",IF(OR(AND(F24=1,J24=1),AND(F24=1,J24=2),AND(F24=1,J24=3)),"Deficiencia de control mayor (diseño y ejecución)",IF(OR(AND(F24=2,J24=2),AND(F24=3,J24=1),AND(F24=3,J24=2),AND(F24=2,J24=1)),"Deficiencia de control (diseño o ejecución)",IF(AND(F24=2,J24=3),"Oportunidad de mejora","Mantenimiento del control")))) -> Deficiencia de control mayor (diseño y ejecución)
G25: 2 | H25: En el marco del Comité Institucional de Control Interno bimensualmente se contrastan quejas internas y externas sobre situaciones irregulares.
G26: 3 | H26: Se han analizado los temas más críticos acerca en relación con el ausentismo, acoso laboral, solicitudes de traslado y rotación del personal.
G27: 4
G28: 5
G29: 6
G30: 7
G31: 8
B32: =+LEFT(C32,3) -> 1.1 | C32: 1.1 Aplicación del Código de Integridad. (incluye análisis de desviaciones, convivencia laboral, temas disciplinarios internos, quejas o denuncias sobres los servidores de la entidad, u otros temas relacionados). | D32: Dimensión Talento Humano Política Integridad | E32: La corporación cuenta con un Código de Integridad, el cual es un documento que recopila los principios, valores, deberes y derechos de los funcionarios adscritos a la corporación. | F32: 2 | G32: 1 | H32: Implementar el Código de Integridad de la C.R.A | I32: La OCI verificó que la Secretaría General, a través del grupo SGI generó el informe de satisfacción de los usuarios, vigencia 2024, con los servicios que ofrece la Corporación. | J32: 3 | K32: =+IF(OR(ISBLANK(F32),ISBLANK(J32)),"",IF(OR(AND(F32=1,J32=1),AND(F32=1,J32=2),AND(F32=1,J32=3)),"Deficiencia de control mayor (diseño y ejecución)",IF(OR(AND(F32=2,J32=2),AND(F32=3,J32=1),AND(F32=3,J32=2),AND(F32=2,J32=1)),"Deficiencia de control (diseño o ejecución)",IF(AND(F32=2,J32=3),"Oportunidad de mejora","Mantenimiento del control")))) -> Oportunidad de mejora | L32: =+IF(K32="",0,IF(K32="Deficiencia de control mayor (diseño y ejecución)",4,IF(K32="Deficiencia de control (diseño o ejecución)",20,IF(K32="Oportunidad de mejora",40,60)))) -> 40 | M32: 0.04587 | N32: =+L32+M32 -> 40.05
G33: 2 | H33: Informe de satisfacción de los usuarios vigencia 2024
G34: 3
G35: 4
G36: 5
G37: 6
G38: 7
G39: 8
B40: =+LEFT(C40,3) -> 1.2 | C40: 1.2 Mecanismos para el manejo de conflictos de interés. | D40: Dimensión Talento Humano Política Integridad | E40: Código Único Disciplinario (Ley 1952 de 2019). Dentro del Manual de Buen Gobierno, se incorporó la información relativa al manejo de conflictos de interés. | F40: 3 | G40: 1 | H40: Se incluyó información relativa al manejo de conflictos de interés en la Corporación, en el Manual de Buen Gobierno el cual fue actualizado. | I40: La OCI evidencio que se han llevado a cabo la planificación de las actividades de apropiación y seguimiento a la implementación de mecanismos para el manejo de conflictos de interes. | J40: 2 | K40: =+IF(OR(ISBLANK(F40),ISBLANK(J40)),"",IF(OR(AND(F40=1,J40=1),AND(F40=1,J40=2),AND(F40=1,J40=3)),"Deficiencia de control mayor (diseño y ejecución)",IF(OR(AND(F40=2,J40=2),AND(F40=3,J40=1),AND(F40=3,J40=2),AND(F40=2,J40=1)),"Deficiencia de control (diseño o ejecución)",IF(AND(F40=2,J40=3),"Oportunidad de mejora","Mantenimiento del control")))) -> Deficiencia de control (diseño o ejecución) | L40: =+IF(K40="",0,IF(K40="Deficiencia de control mayor (diseño y ejecución)",4,IF(K40="Deficiencia de control (diseño o ejecución)",20,IF(K40="Oportunidad de mejora",40,60)))) -> 20 | M40: 0.05569 | N40: =+L40+M40 -> 20.06
G41: 2 | H41: Implementación de un mecanimo que permita establecer el manejo de conflictos de interés, como parte del Manual de Buen Gobierno de la Corporación.
G42: 3
G43: 4
G44: 5
G45: 6
G46: 7
G47: 8
B48: =+LEFT(C48,3) -> 1.3 | C48: 1.3 Mecanismos frente a la detección y prevención del uso inadecuado de información privilegiada u otras situaciones que puedan implicar riesgos para la entidad. | D48: Dimensión Información y Comunicación Política Transparencia y Acceso a la Información Pública Política Gestión Documental | E48: Políticas para la accesibilidad a la información, establecida en la entidad para brindar a los usuarios confianza y tranquilidad respecto a la información pública disponible en la página Web. Dentro de los Instrumentos de Gestión de Información Pública que se encuentra en la página Web de la corporación, se tiene definido la Política de Gestión Documental Plan de Mejoramiento vigente suscrito con el Archivo General de la Nación. | F48: 3 | G48: 1 | H48: Seguimiento a la aplicación de los procedimientos que componen el proceso de Gestión Documental | I48: Actualmente los instrumentos archivísticos se encuentran actualizados, en la página Web de la corporación; por otro lado, se debe realizar una revisión de los cambios en la estructura organizacional de la entidad para iniciar el proceso de actualización de los instrumentos según lo consignado en las actividades en el nuevo plan de Acción 2024-2027. Respecto a los documentos de planeación y apoyo de la gestión documental, se reevaluarán y se harán los ajustes pertinentes según las necesidades y el presupuesto disponible para la presente vigencia. el Plan de Mejoramiento Archivístico suscrito con el AGN, se continuó desarrollando durante la vigencia 2025, se continuaron realizando las actividades y a la espera de responder a las observaciones dejadas por el Archivo general de la nación, sobre el informe presentado en el 2025.. | J48: 2 | K48: =+IF(OR(ISBLANK(F48),ISBLANK(J48)),"",IF(OR(AND(F48=1,J48=1),AND(F48=1,J48=2),AND(F48=1,J48=3)),"Deficiencia de control mayor (diseño y ejecución)",IF(OR(AND(F48=2,J48=2),AND(F48=3,J48=1),AND(F48=3,J48=2),AND(F48=2,J48=1)),"Deficiencia de control (diseño o ejecución)",IF(AND(F48=2,J48=3),"Oportunidad de mejora","Mantenimiento del control")))) -> Deficiencia de control (diseño o ejecución) | L48: =+IF(K48="",0,IF(K48="Deficiencia de control mayor (diseño y ejecución)",4,IF(K48="Deficiencia de control (diseño o ejecución)",20,IF(K48="Oportunidad de mejora",40,60)))) -> 20 | M48: 0.066896 | N48: =+L48+M48 -> 20.067
G49: 2 | H49: Seguimiento al proceso de inducciones y reinducciones a los funcionarios y colaboradores en la aplicación de técnicas sobre conservación documental, los instrumentos archivísticos de la gestión documental, y los documentos de planeación y apoyo de la gestión documental.
G50: 3 | H50: Informe semestral de avance del Plan de Mejoramiento suscrito con el Archivo General de la Nación.
G51: 4
G52: 5
G53: 6
G54: 7
G55: 8
B56: =+LEFT(C56,3) -> 1.4 | C56: 1.4 La evaluación de las acciones transversales de integridad, mediante el monitoreo permanente de los riesgos de corrupción. | D56: Dimension Talento Humano Politica de Integridad | E56: Procedimiento de Seguimiento al Programa de Transparencia y Ética Pública Formato Seguimiento al Programa de Transparencia y Ética Pública v5 (Código AG-FT-09). Estrategias para la Construcción al Programa de Transparencia y Ética Pública v5 Código de Integridad y Ética Pública | F56: 3 | G56: 1 | H56: Verificación de la aplicación y efectividad de los controles frente a los riesgos de corrupción de la Entidad, registrados en los mapas de riesgos que identifican los inductores de riesgos. | I56: La OCI llevó a cabo seguimiento a la Gestión de Riesgos de los procesos de la Entidad de acuerdo con lo establecido en el Programa de Transparencia y Ética Pública 2025 corte diciembre de 2025. OCI verificó la aplicación y efectividad de los controles, durante los ciclos de auditoria de gestión realizados durante la vigencia 2025 La OCI verificará la trasversalidad de los valores establecidos en el código de integridad y ética publica con los componentes del programa de Transparencia y ética publica | J56: 2 | K56: =+IF(OR(ISBLANK(F56),ISBLANK(J56)),"",IF(OR(AND(F56=1,J56=1),AND(F56=1,J56=2),AND(F56=1,J56=3)),"Deficiencia de control mayor (diseño y ejecución)",IF(OR(AND(F56=2,J56=2),AND(F56=3,J56=1),AND(F56=3,J56=2),AND(F56=2,J56=1)),"Deficiencia de control (diseño o ejecución)",IF(AND(F56=2,J56=3),"Oportunidad de mejora","Mantenimiento del control")))) -> Deficiencia de control (diseño o ejecución) | L56: =+IF(K56="",0,IF(K56="Deficiencia de control mayor (diseño y ejecución)",4,IF(K56="Deficiencia de control (diseño o ejecución)",20,IF(K56="Oportunidad de mejora",40,60)))) -> 20 | M56: 0.06691 | N56: =+L56+M56 -> 20.0669
G57: 2 | H57: Reporte del seguimiento a la gestión de riesgos de los procesos de la Entidad y publicación de los informes en la página Web a corte de diciembre 2025
G58: 3 | H58: Actividad de revisión y actualización del documento Guía para la Gestión de Riesgos v5, código (GM-GI-01 ) y los mapas de riesgos del procesos de la corporación
G59: 4 | H59: Revisión y socialización del código de integridad y ética publica
G60: 5
G61: 6
G62: 7
G63: 8
B64: =+LEFT(C64,3) -> 1.5 | C64: 1.5 Análisis sobre viabilidad para el establecimiento de una línea de denuncia interna sobre situaciones irregulares o posibles incumplimientos al código de integridad. NOTA: Si la entidad ya cuenta con esta línea en funcionamiento, establecezca si ha aportado para la mejora de los mapas de riesgos o bien en otros ámbitos organizacionales. | D64: Dimensión Direccionamiento Estratégico y Planeación Plan Anticorrupción y de Atención al Ciudadano | E64: Diseño e implantación de un procedimiento para el seguimiento y evaluación de la implementación del código de integridad adoptado en la corporación | F64: 1 | G64: 1 | H64: La Oficina de Gestión Humana, la Oficina de Control Interno Disciplinario y la Secretaría General (SGI) documentarán el análisis de viabilidad para el establecimiento de la línea de denuncia que solicita este numeral. | I64: Por parte de la OCI se verificó la existencia de un documento que se encuentra en fase de contrucción, el cual, contiene el análisis de viabilidad que se requiere en este item. | J64: 2 | K64: =+IF(OR(ISBLANK(F64),ISBLANK(J64)),"",IF(OR(AND(F64=1,J64=1),AND(F64=1,J64=2),AND(F64=1,J64=3)),"Deficiencia de control mayor (diseño y ejecución)",IF(OR(AND(F64=2,J64=2),AND(F64=3,J64=1),AND(F64=3,J64=2),AND(F64=2,J64=1)),"Deficiencia de control (diseño o ejecución)",IF(AND(F64=2,J64=3),"Oportunidad de mejora","Mantenimiento del control")))) -> Deficiencia de control mayor (diseño y ejecución) | L64: =+IF(K64="",0,IF(K64="Deficiencia de control mayor (diseño y ejecución)",4,IF(K64="Deficiencia de control (diseño o ejecución)",20,IF(K64="Oportunidad de mejora",40,60)))) -> 4 | M64: 0.073569 | N64: =+L64+M64 -> 4.07
G65: 2
G66: 3
G67: 4
G68: 5
G69: 6
G70: 7
G71: 8
C72: Lineamiento 2: Aplicación de mecanismos para ejercer una adecuada supervisión del Sistema de Control Interno | D72: DIMENSIÓN O POLÍTICA DEL MIPG ASOCIADA AL REQUERIMIENTO | E72: Explicación de cómo la Entidad evidencia que está dando respuesta al requerimiento Referencia a Procesos, Manuales/Políticas de Operación/Procedimientos/Instructivos u otros desarrollos que den cuente de su aplicación | F72: Presente (1/2/3) | G72: EVIDENCIA DEL CONTROL | J72: Funcionando (1/2/3) | K72: Evaluación
G73: No. | H73: Referencia a Análisis y verificaciones en el marco del Comité Institucional de Coordinación de Control Interno | I73: Observaciones de la evaluacion independiente (tener encuenta papel de líneas de defensa)
B75: =+LEFT(C75,3) -> 2.1 | C75: 2.1 Creación o actualización del Comité Institucional de Coordinación de Control Interno (incluye ajustes en periodicidad para reunión, articulación con el Comité Institucioanl de Gestión y Desempeño). | D75: Dimension Control Interno Politica de Control Interno | E75: Funcionamiento del Comité de Control Interno. | F75: 3 | G75: 1 | H75: Accionar del comité de Control Interno | I75: Se llevó a cabo reunión del Comité de Control Interno registrado en el Acta No. 015 de 2025, en el cual se trataron temas referentes al Informe final Auditoría Financiera 2024 CGR y suscripción del Plan de mejoramiento 2025, Presentación de la evaluación Institucional por dependencias, primer semestre 2025, Desarrollo de la Auditoría de Control Interno y elaboración del Informe de Auditoría a la Gestión de Riesgos 2025, en el marco del Programa de Transparencia y ética Pública 2025. | J75: 3 | K75: =+IF(OR(ISBLANK(F75),ISBLANK(J75)),"",IF(OR(AND(F75=1,J75=1),AND(F75=1,J75=2),AND(F75=1,J75=3)),"Deficiencia de control mayor (diseño y ejecución)",IF(OR(AND(F75=2,J75=2),AND(F75=3,J75=1),AND(F75=3,J75=2),AND(F75=2,J75=1)),"Deficiencia de control (diseño o ejecución)",IF(AND(F75=2,J75=3),"Oportunidad de mejora","Mantenimiento del control")))) -> Mantenimiento del control | L75: =+IF(K75="",0,IF(K75="Deficiencia de control mayor (diseño y ejecución)",4,IF(K75="Deficiencia de control (diseño o ejecución)",20,IF(K75="Oportunidad de mejora",40,60)))) -> 60 | M75: 0.0889653 | N75: =+L75+M75 -> 60.09
G76: 2 | H76: Convocación a reuniones de Comité de Control Interno
G77: 3
G78: 4
G79: 5
G80: 6
G81: 7
G82: 8
B83: =+LEFT(C83,3) -> 2.2 | C83: 2.2 Definición y documentación del Esquema de Líneas de Defensa | D83: Dimension Control Interno Politica de Control Interno Lineas de defensa | E83: OCI elaborará un procedimiento mediante el cual se formula anualmente el Plan de Ejecución y Monitoreo, considerado en el Programa de Transparencia y Ética Pública 2025, teniendo como base la primera línea de defensa de la Corporación. | F83: 2 | G83: 1 | H83: Documentación de procedimiento mediante el cual se formula anualmente el Plan de Ejecución y Monitoreo. | I83: OCI documentará el procedimiento mediante el cual se formula anualmente el Plan de Ejecución y Monitoreo. | J83: 1 | K83: =+IF(OR(ISBLANK(F83),ISBLANK(J83)),"",IF(OR(AND(F83=1,J83=1),AND(F83=1,J83=2),AND(F83=1,J83=3)),"Deficiencia de control mayor (diseño y ejecución)",IF(OR(AND(F83=2,J83=2),AND(F83=3,J83=1),AND(F83=3,J83=2),AND(F83=2,J83=1)),"Deficiencia de control (diseño o ejecución)",IF(AND(F83=2,J83=3),"Oportunidad de mejora","Mantenimiento del control")))) -> Deficiencia de control (diseño o ejecución) | L83: =+IF(K83="",0,IF(K83="Deficiencia de control mayor (diseño y ejecución)",4,IF(K83="Deficiencia de control (diseño o ejecución)",20,IF(K83="Oportunidad de mejora",40,60)))) -> 20 | M83: 0.0989653 | N83: =+L83+M83 -> 20.10
G84: 2
G85: 3
G86: 4
G87: 5
G88: 6
G89: 7
G90: 8
B91: =+LEFT(C91,3) -> 2.3 | C91: 2.3 Definición de líneas de reporte en temas clave para la toma de decisiones, atendiendo el Esquema de Líneas de Defensa | D91: Dimension Control Interno Politica de Control Interno Linea de Defensa Dimension de Informaciòn y Comunicaciòn | E91: OCI elaborará un procedimiento mediante el cual se formula anualmente el Plan de Ejecución y Monitoreo. Cada Líder y su grupo de trabajo deberán dar aplicación al procedimiento y deberán generar los reportes a que haya lugar, citados en el PTEP. | F91: 2 | G91: 1 | H91: Documentación procedimiento mediante el cual se formula anualmente el Plan de Ejecución y Monitoreo. | I91: OCI documentará el procedimiento mediante el cual se formula anualmente el Plan de Ejecución y Monitoreo. | J91: 1 | K91: =+IF(OR(ISBLANK(F91),ISBLANK(J91)),"",IF(OR(AND(F91=1,J91=1),AND(F91=1,J91=2),AND(F91=1,J91=3)),"Deficiencia de control mayor (diseño y ejecución)",IF(OR(AND(F91=2,J91=2),AND(F91=3,J91=1),AND(F91=3,J91=2),AND(F91=2,J91=1)),"Deficiencia de control (diseño o ejecución)",IF(AND(F91=2,J91=3),"Oportunidad de mejora","Mantenimiento del control")))) -> Deficiencia de control (diseño o ejecución) | L91: =+IF(K91="",0,IF(K91="Deficiencia de control mayor (diseño y ejecución)",4,IF(K91="Deficiencia de control (diseño o ejecución)",20,IF(K91="Oportunidad de mejora",40,60)))) -> 20 | M91: 0.15698 | N91: =+L91+M91 -> 20.16
G92: 2 | H92: Apoyo en la Oficina de Comunicaciones para el flujo de los reportes a que haya lugar, de acuerdo con el PTEP.
G93: 3
G94: 4
G95: 5
G96: 6
G97: 7
G98: 8
C99: Lineamiento 3: Establece la planeación estratégica con responsables, metas, tiempos que faciliten el seguimiento y aplicación de controles que garanticen de forma razonable su cumplimiento. Así mismo a partir de la política de riesgo, establecer sistemas de gestión de riesgos y las responsabilidades para controlar riesgos específicos bajo la supervisión de la alta dirección. | D99: DIMENSIÓN O POLÍTICA DEL MIPG ASOCIADA AL REQUERIMIENTO | E99: Explicación de cómo la Entidad evidencia que está dando respuesta al requerimiento Referencia a Procesos, Manuales/Políticas de Operación/Procedimientos/Instructivos u otros desarrollos que den cuente de su aplicación | F99: Presente (1/2/3) | G99: EVIDENCIA DEL CONTROL | J99: Funcionando (1/2/3) | K99: Evaluación
G100: No. | H100: Referencia a Análisis y verificaciones en el marco del Comité Institucional de Coordinación de Control Interno | I100: Observaciones de la evaluacion independiente (tener encuenta papel de líneas de defensa)
B102: =+LEFT(C102,3) -> 3.1 | C102: 3.1 Definición y evaluación de la Política de Administración del Riesgo (Acorde con lineamientos de la Guía para la Administración del Riesgo de Gestión y Corrupción y Diseño de Controles en Entidades Públicas). La evaluación debe considerar su aplicación en la entidad, cambios en el entorno que puedan defnir ajustes, dificultades para su desarrollo. | D102: Dimension de Direccionamiento Estrategico y Planeaciòn Politica de Planeaciòn Institucional Dimension Control Interno | E102: OCI elaborará un procedimiento mediante el cual se formula anualmente el Plan de Ejecución y Monitoreo. Cada Líder y su grupo de trabajo deberán dar aplicación al procedimiento y deberán generar los reportes a que haya lugar, citados en el PTEP. | F102: 1 | G102: 1 | H102: La política de Administración del Riesgo fue actualizada junto con la revisión y ajuste junto con la guía de Gestión de Riesgo y Oportunidades de la Entidad. | I102: Tanto la Oficina de Control Interno como la del Sistema de Gestión Integrado, tienen programado la evaluación del cumplimiento de la Política de Administración de Riesgos y de los lineamientos establecidos en la Guía, en el desarrollo del ciclo de auditoría de gestión, que se realizara durante la vigencia 2025. | J102: 2 | K102: =+IF(OR(ISBLANK(F102),ISBLANK(J102)),"",IF(OR(AND(F102=1,J102=1),AND(F102=1,J102=2),AND(F102=1,J102=3)),"Deficiencia de control mayor (diseño y ejecución)",IF(OR(AND(F102=2,J102=2),AND(F102=3,J102=1),AND(F102=3,J102=2),AND(F102=2,J102=1)),"Deficiencia de control (diseño o ejecución)",IF(AND(F102=2,J102=3),"Oportunidad de mejora","Mantenimiento del control")))) -> Deficiencia de control mayor (diseño y ejecución) | L102: =+IF(K102="",0,IF(K102="Deficiencia de control mayor (diseño y ejecución)",4,IF(K102="Deficiencia de control (diseño o ejecución)",20,IF(K102="Oportunidad de mejora",40,60)))) -> 4 | M102: 0.28965 | N102: =+L102+M102 -> 4.29
G103: 2 | H103: Actualmente se encuentra implementando un cronograma de acompañamiento a las dependencias de la entidad para la actualización de los mapas de riesgos, los cuales incluye la gestión de los riesgos de corrupción
G104: 3
G105: 4
G106: 5
G107: 6
G108: 7
G109: 8
B110: =+LEFT(C110,3) -> 3.2 | C110: 3.2 La Alta Dirección frente a la política de Administración del Riesgo definen los niveles de aceptación del riesgo, teniendo en cuenta cada uno de los objetivos establecidos. | D110: Dimension Control Interno Politica de Control Interno Linea Estrategica | E110: Los niveles de aceptación del riesgo frente a la política de administración del Riesgo se encuentran definidos en la Guía de Gestión de Riesgo y Oportunidades | F110: 3 | G110: 1 | H110: Los niveles de aceptación de riesgos fueron revisados y ajustados con la última versión de la guía de Gestión de riesgos y Oportunidades | I110: La Oficina de Control Interno tiene programada la evaluación del cumplimiento de la Política de Administración de Riesgos y de los lineamientos establecidos en la Guía, durante el desarrollo del ciclo de auditoría de gestión, que se realizara durante el segundo semestre de 2025. | J110: 2 | K110: =+IF(OR(ISBLANK(F110),ISBLANK(J110)),"",IF(OR(AND(F110=1,J110=1),AND(F110=1,J110=2),AND(F110=1,J110=3)),"Deficiencia de control mayor (diseño y ejecución)",IF(OR(AND(F110=2,J110=2),AND(F110=3,J110=1),AND(F110=3,J110=2),AND(F110=2,J110=1)),"Deficiencia de control (diseño o ejecución)",IF(AND(F110=2,J110=3),"Oportunidad de mejora","Mantenimiento del control")))) -> Deficiencia de control (diseño o ejecución) | L110: =+IF(K110="",0,IF(K110="Deficiencia de control mayor (diseño y ejecución)",4,IF(K110="Deficiencia de control (diseño o ejecución)",20,IF(K110="Oportunidad de mejora",40,60)))) -> 20 | M110: 0.389653 | N110: =+L110+M110 -> 20.39
G111: 2
G112: 3
G113: 4
G114: 5
G115: 6
G116: 7
G117: 8
B118: =+LEFT(C118,3) -> 3.3 | C118: 3.3 Evaluación de la planeación estratégica, considerando alertas frente a posibles incumplimientos, necesidades de recursos, cambios en el entorno que puedan afectar su desarrollo, entre otros aspectos que garanticen de forma razonable su cumplimiento. | D118: Diimensiòn Evaluacion de Resultados Politica de Seguimiento y Evaluaciòn al Desemepeño Institucional Dimension Control Interno Lineas de defensa | E118: Informe de Gestión de la entidad, corte 31 de diciembre de 2025 | F118: 3 | G118: 1 | H118: A través de las evaluaciones Institucionales por dependencias la OCI llevó a cabo una medición de la ejecución del PAI 2024 - 2027, durante la vigencia 2025. | I118: La OCI evidencio que durante el segundo semestre de la vigencia 2025 la corporación llevó a cabo los procesos de contratación correspondientes a su gestión a través del PAI. | J118: 3 | K118: =+IF(OR(ISBLANK(F118),ISBLANK(J118)),"",IF(OR(AND(F118=1,J118=1),AND(F118=1,J118=2),AND(F118=1,J118=3)),"Deficiencia de control mayor (diseño y ejecución)",IF(OR(AND(F118=2,J118=2),AND(F118=3,J118=1),AND(F118=3,J118=2),AND(F118=2,J118=1)),"Deficiencia de control (diseño o ejecución)",IF(AND(F118=2,J118=3),"Oportunidad de mejora","Mantenimiento del control")))) -> Mantenimiento del control | L118: =+IF(K118="",0,IF(K118="Deficiencia de control mayor (diseño y ejecución)",4,IF(K118="Deficiencia de control (diseño o ejecución)",20,IF(K118="Oportunidad de mejora",40,60)))) -> 60 | M118: 0.48965 | N118: =+L118+M118 -> 60.49
G119: 2 | H119: Realización de la Contratación para la Gestión de las metas y objetivos establecidos en el PAI
G120: 3
G121: 4
G122: 5
G123: 6
G124: 7
G125: 8
C126: Lineamiento 4: Compromiso con la competencia de todo el personal, por lo que la gestión del talento humano tiene un carácter estratégico con el despliegue de actividades clave para todo el ciclo de vida del servidor público –ingreso, permanencia y retiro. | D126: DIMENSIÓN O POLÍTICA DEL MIPG ASOCIADA AL REQUERIMIENTO | E126: Explicación de cómo la Entidad evidencia que está dando respuesta al requerimiento Referencia a Procesos, Manuales/Políticas de Operación/Procedimientos/Instructivos u otros desarrollos que den cuente de su aplicación | F126: Presente (1/2/3) | G126: EVIDENCIA DEL CONTROL | J126: Funcionando (1/2/3) | K126: Evaluación
G127: No. | H127: Referencia a Análisis y verificaciones en el marco del Comité Institucional de Coordinación de Control Interno | I127: Observaciones de la evaluacion independiente (tener encuenta papel de líneas de defensa)
B129: =+LEFT(C129,3) -> 4.1 | C129: 4.1 Evaluación de la Planeación Estratégica del Talento Humano. | D129: Dimension de Talento Humano Politica Gestion Estrategica del Talento Humano Dimension de Control Interno Lineas de Defensa | E129: La planeación estratégica del talento humano fue evaluada en el autodiagnóstico de Gestión Estratégica del Talento Humano | F129: 2 | G129: 1 | H129: Evaluación del autodiagnóstico de Gestión Estratégica del Talento Humano | I129: OCI verificó el autodiagnóstico de Gestión Humana encontrando que se encuentra evaluada la planeación estratégica del talento humano | J129: 3 | K129: =+IF(OR(ISBLANK(F129),ISBLANK(J129)),"",IF(OR(AND(F129=1,J129=1),AND(F129=1,J129=2),AND(F129=1,J129=3)),"Deficiencia de control mayor (diseño y ejecución)",IF(OR(AND(F129=2,J129=2),AND(F129=3,J129=1),AND(F129=3,J129=2),AND(F129=2,J129=1)),"Deficiencia de control (diseño o ejecución)",IF(AND(F129=2,J129=3),"Oportunidad de mejora","Mantenimiento del control")))) -> Oportunidad de mejora | L129: =+IF(K129="",0,IF(K129="Deficiencia de control mayor (diseño y ejecución)",4,IF(K129="Deficiencia de control (diseño o ejecución)",20,IF(K129="Oportunidad de mejora",40,60)))) -> 40 | M129: 0.58965 | N129: =+L129+M129 -> 40.59
G130: 2 | H130: Planes de Gestión Estratégica del Talento Humano, elaborados en la entidad de acuerdo al Decreto 612 de 2018
G131: 3
G132: 4
G133: 5
G134: 6
G135: 7
G136: 8
B137: =+LEFT(C137,3) -> 4.2 | C137: 4.2 Evaluación de las actividades relacionadas con el Ingreso del personal. | D137: Dimension de Talento Humano Politica Gestion Estrategica del Talento Humano Dimension de Control Interno Lineas de Defensa | E137: La evaluación de las actividades de ingreso de personal se encuentra establecidas en el Procedimiento Ingreso y retiro de funcionarios v2. (Código: GH-PR-04). | F137: 2 | G137: 1 | H137: Actividades de ingreso de personal se encuentra establecidas en el Procedimiento Ingreso y retiro de funcionarios v2. | I137: La Oficina de Gestión Humana cuenta con las evidencias del ingreso de personal que hubo durante el año 2025 | J137: 3 | K137: =+IF(OR(ISBLANK(F137),ISBLANK(J137)),"",IF(OR(AND(F137=1,J137=1),AND(F137=1,J137=2),AND(F137=1,J137=3)),"Deficiencia de control mayor (diseño y ejecución)",IF(OR(AND(F137=2,J137=2),AND(F137=3,J137=1),AND(F137=3,J137=2),AND(F137=2,J137=1)),"Deficiencia de control (diseño o ejecución)",IF(AND(F137=2,J137=3),"Oportunidad de mejora","Mantenimiento del control")))) -> Oportunidad de mejora | L137: =+IF(K137="",0,IF(K137="Deficiencia de control mayor (diseño y ejecución)",4,IF(K137="Deficiencia de control (diseño o ejecución)",20,IF(K137="Oportunidad de mejora",40,60)))) -> 40 | M137: 0.68965 | N137: =+L137+M137 -> 40.69
G138: 2
G139: 3
G140: 4
G141: 5
G142: 6
G143: 7
G144: 8
B145: =+LEFT(C145,3) -> 4.3 | C145: 4.3 Evaluación de las actividades relacionadas con la permanencia del personal. | D145: Dimension de Talento Humano Politica Gestion Estrategica del Talento Humano Dimension de Control Interno Lineas de Defensa | E145: Procedimiento Evaluación de Desempeño Laboral v2, (Código GH-PR-07). Formato Evaluación de Desempeño General v3, (Código: GH-FT-05) | F145: 3 | G145: 1 | H145: Evaluaciones de desempeño del personal de carrera administrativa | I145: La OCI verificará que los funcionarios realicen la Evaluación de desempeño del personal semestral, en el mes de febrero de 2026, periodo comprendido entre julio de 2025 y enero 2026. | J145: 2 | K145: =+IF(OR(ISBLANK(F145),ISBLANK(J145)),"",IF(OR(AND(F145=1,J145=1),AND(F145=1,J145=2),AND(F145=1,J145=3)),"Deficiencia de control mayor (diseño y ejecución)",IF(OR(AND(F145=2,J145=2),AND(F145=3,J145=1),AND(F145=3,J145=2),AND(F145=2,J145=1)),"Deficiencia de control (diseño o ejecución)",IF(AND(F145=2,J145=3),"Oportunidad de mejora","Mantenimiento del control")))) -> Deficiencia de control (diseño o ejecución) | L145: =+IF(K145="",0,IF(K145="Deficiencia de control mayor (diseño y ejecución)",4,IF(K145="Deficiencia de control (diseño o ejecución)",20,IF(K145="Oportunidad de mejora",40,60)))) -> 20 | M145: 0.78965 | N145: =+L145+M145 -> 20.79
G146: 2
G147: 3
G148: 4
G149: 5
G150: 6
G151: 7
G152: 8
B153: =+LEFT(C153,3) -> 4.4 | C153: 4.4Analizar si se cuenta con políticas claras y comunicadas relacionadas con la responsabilidad de cada servidor sobre el desarrollo y mantenimiento del control interno (1a línea de defensa) | D153: Dimension de Talento Humano Politica Gestion Estrategica del Talento Humano Dimension de Control Interno Lineas de Defensa | E153: OCI elaborará un procedimiento mediante el cual se formula anualmente el Plan de Ejecución y Monitoreo. Cada Líder y su grupo de trabajo deberán dar aplicación al procedimiento y deberán generar los reportes a que haya lugar, citados en el PTEP. | F153: 1 | G153: 1 | H153: La Secretaría General (SGI) y la Oficina de Control Interno modificarán la Guía de Gestión de Riesgos y Oportunidades con el objetivo de incluir la definición del esquema de líneas de defensa en la C.R.A, polítca de gestión del riesgo y responsabilidades frente a este esquema. | I153: OCI documentará el procedimiento mediante el cual se desarrolla anualmente el Plan de Ejecución y Monitoreo, el cual está basado en el esquema de las lineas de defensa de MIPG. | J153: 2 | K153: =+IF(OR(ISBLANK(F153),ISBLANK(J153)),"",IF(OR(AND(F153=1,J153=1),AND(F153=1,J153=2),AND(F153=1,J153=3)),"Deficiencia de control mayor (diseño y ejecución)",IF(OR(AND(F153=2,J153=2),AND(F153=3,J153=1),AND(F153=3,J153=2),AND(F153=2,J153=1)),"Deficiencia de control (diseño o ejecución)",IF(AND(F153=2,J153=3),"Oportunidad de mejora","Mantenimiento del control")))) -> Deficiencia de control mayor (diseño y ejecución) | L153: =+IF(K153="",0,IF(K153="Deficiencia de control mayor (diseño y ejecución)",4,IF(K153="Deficiencia de control (diseño o ejecución)",20,IF(K153="Oportunidad de mejora",40,60)))) -> 4 | M153: 0.88965 | N153: =+L153+M153 -> 4.89
G154: 2
G155: 3
G156: 4
G157: 5
G158: 6
G159: 7
G160: 8
B161: =+LEFT(C161,3) -> 4.5 | C161: 4.5 Evaluación de las actividades relacionadas con el retiro del personal. | D161: Dimension de Talento Humano Politica Gestion Estrategica del Talento Humano Dimension de Control Interno Lineas de Defensa | E161: Procedimiento Ingreso y retiro de funcionarios v2. (Código: GH-PR-04). | F161: 3 | G161: 1 | H161: Procedimiento Ingreso y Retiro de funcionarios | I161: La Oficina de Gestión Humana cuenta con las evidencias relacionadas con el retiro del personal en la entidad | J161: 3 | K161: =+IF(OR(ISBLANK(F161),ISBLANK(J161)),"",IF(OR(AND(F161=1,J161=1),AND(F161=1,J161=2),AND(F161=1,J161=3)),"Deficiencia de control mayor (diseño y ejecución)",IF(OR(AND(F161=2,J161=2),AND(F161=3,J161=1),AND(F161=3,J161=2),AND(F161=2,J161=1)),"Deficiencia de control (diseño o ejecución)",IF(AND(F161=2,J161=3),"Oportunidad de mejora","Mantenimiento del control")))) -> Mantenimiento del control | L161: =+IF(K161="",0,IF(K161="Deficiencia de control mayor (diseño y ejecución)",4,IF(K161="Deficiencia de control (diseño o ejecución)",20,IF(K161="Oportunidad de mejora",40,60)))) -> 60 | M161: 0.98965 | N161: =+L161+M161 -> 60.990
G162: 2
G163: 3
G164: 4
G165: 5
G166: 6
G167: 7
G168: 8
B169: =+LEFT(C169,3) -> 4.6 | C169: 4.6 Evaluar el impacto del Plan Institucional de Capacitación - PIC | D169: Dimension de Talento Humano Politica Gestion Estrategica del Talento Humano Dimension de Control Interno Lineas de Defensa | E169: Se tiene definido en el Procedimiento Programa de Capacitación v2 (Código: GH-PR-08), todas las actividades para la evaluación de la satisfacción de la capacitación. | F169: 2 | G169: 1 | H169: Se determinan las capacitaciones a desarrollarse en la vigencia, teniendo en cuenta las necesidades de formación que solicitan los funcionarios. | I169: Durante el periodo de ejecución del PAI la oficina de Gestión del Talento Humano estableció la metodología de construir del PIC para la vigencia 2025 | J169: 2 | K169: =+IF(OR(ISBLANK(F169),ISBLANK(J169)),"",IF(OR(AND(F169=1,J169=1),AND(F169=1,J169=2),AND(F169=1,J169=3)),"Deficiencia de control mayor (diseño y ejecución)",IF(OR(AND(F169=2,J169=2),AND(F169=3,J169=1),AND(F169=3,J169=2),AND(F169=2,J169=1)),"Deficiencia de control (diseño o ejecución)",IF(AND(F169=2,J169=3),"Oportunidad de mejora","Mantenimiento del control")))) -> Deficiencia de control (diseño o ejecución) | L169: =+IF(K169="",0,IF(K169="Deficiencia de control mayor (diseño y ejecución)",4,IF(K169="Deficiencia de control (diseño o ejecución)",20,IF(K169="Oportunidad de mejora",40,60)))) -> 20 | M169: 0.989652 | N169: =+L169+M169 -> 20.9897
G170: 2
G171: 3
G172: 4
G173: 5
G174: 6
G175: 7
G176: 8
B177: =+LEFT(C177,3) -> 4.7 | C177: 4.7 Evaluación frente a los productos y servicios en los cuales participan los contratistas de apoyo. | D177: Dimension de Talento Humano Politica Gestion Estrategica del Talento Humano Dimension de Control Interno Lineas de Defensa | E177: Manual de Contratación, Supervisión e interventoría AB - OT 01. Informes de los supervisores de contratos de prestación de servicios | F177: 3 | G177: 1 | H177: Seguimiento a la contratación segundo semestre 2025, a través de auditoría de Gestión al proceso de adquisición de bienes y servicios. | I177: La Oficina de juricica cuenta con las evidencias de contratación | J177: 3 | K177: =+IF(OR(ISBLANK(F177),ISBLANK(J177)),"",IF(OR(AND(F177=1,J177=1),AND(F177=1,J177=2),AND(F177=1,J177=3)),"Deficiencia de control mayor (diseño y ejecución)",IF(OR(AND(F177=2,J177=2),AND(F177=3,J177=1),AND(F177=3,J177=2),AND(F177=2,J177=1)),"Deficiencia de control (diseño o ejecución)",IF(AND(F177=2,J177=3),"Oportunidad de mejora","Mantenimiento del control")))) -> Mantenimiento del control | L177: =+IF(K177="",0,IF(K177="Deficiencia de control mayor (diseño y ejecución)",4,IF(K177="Deficiencia de control (diseño o ejecución)",20,IF(K177="Oportunidad de mejora",40,60)))) -> 60 | M177: 1.89623 | N177: =+L177+M177 -> 61.90
G178: 2
G179: 3
G180: 4
G181: 5
G182: 6
G183: 7
G184: 8
C185: Lineamiento 5: La entidad establece líneas de reporte dentro de la entidad para evaluar el funcionamiento del Sistema de Control Interno. | D185: DIMENSIÓN O POLÍTICA DEL MIPG ASOCIADA AL REQUERIMIENTO | E185: Explicación de cómo la Entidad evidencia que está dando respuesta al requerimiento Referencia a Procesos, Manuales/Políticas de Operación/Procedimientos/Instructivos u otros desarrollos que den cuente de su aplicación | F185: Presente (1/2/3) | G185: EVIDENCIA DEL CONTROL | J185: Funcionando (1/2/3) | K185: Evaluación
G186: No. | H186: Referencia a Análisis y verificaciones en el marco del Comité Institucional de Coordinación de Control Interno | I186: Observaciones de la evaluacion independiente (tener encuenta papel de líneas de defensa)
B188: =+LEFT(C188,3) -> 5.1 | C188: 5.1 Acorde con la estructura del Esquema de Líneas de Defensa se han definido estándares de reporte, periodicidad y responsables frente a diferentes temas críticos de la entidad. | D188: Dimension de Informaciòn y Comunicaciòn Dimensiòn de Control Interno Lineas de Defensa | E188: Se cuenta con personal asignado a la labor de reporte frente a diferentes temas críticos de la entidad, quienes generan los comunicados e informes respectivos. Adicional a lo anterior, la entidad tiene estructurado su Plan de Comunicaciones | F188: 3 | G188: 1 | H188: Realizar las publicaciones de las actividades y gestión de la corporación en los distintos medios de comunicaciones página web, prensa, noticieros, emisoras, redes sociales | I188: OCI evidenció los reportes y comunicados generados por esta oficina para atender las inquietudes y la postura de la corporación en aquellos temas críticos de impacto ambiental, durante el segundo semestre de 2024, conforme a lo establecido en el plan de Comunicaciones vigente. También se evidencio que esta oficina está en el diseño del nuevo plan de comunicaciones | J188: 3 | K188: =+IF(OR(ISBLANK(F188),ISBLANK(J188)),"",IF(OR(AND(F188=1,J188=1),AND(F188=1,J188=2),AND(F188=1,J188=3)),"Deficiencia de control mayor (diseño y ejecución)",IF(OR(AND(F188=2,J188=2),AND(F188=3,J188=1),AND(F188=3,J188=2),AND(F188=2,J188=1)),"Deficiencia de control (diseño o ejecución)",IF(AND(F188=2,J188=3),"Oportunidad de mejora","Mantenimiento del control")))) -> Mantenimiento del control | L188: =+IF(K188="",0,IF(K188="Deficiencia de control mayor (diseño y ejecución)",4,IF(K188="Deficiencia de control (diseño o ejecución)",20,IF(K188="Oportunidad de mejora",40,60)))) -> 60 | M188: 1.1896 | N188: =+L188+M188 -> 61.19
G189: 2 | H189: Realizar las publicaciones de las actividades internas y gestión de la corporación en los medios de comunicación internos tales como en WhatsApp e intranet
G190: 3 | H190: Desarrollar las estrategias de comunicación diseñadas para la vigencia.
G191: 4 | H191: Garantizar el personal idóneo para el cumplimiento de los objetivos de comunicación.
G192: 5
G193: 6
G194: 7
G195: 8
B196: =+LEFT(C196,3) -> 5.2 | C196: 5.2 La Alta Dirección analiza la información asociada con la generación de reportes financieros. | D196: Dimensiòn de Control Interno Linea de Estrategica | E196: Informe Financiero de la Entidad que se presenta al Consejo Directivo | F196: 3 | G196: 1 | H196: Presentación de la ejecución acumulada a 31 de diciembre de 2025 | I196: la OCI evidencio la ejecución acumulada en el segundo semestre 2025 | J196: 3 | K196: =+IF(OR(ISBLANK(F196),ISBLANK(J196)),"",IF(OR(AND(F196=1,J196=1),AND(F196=1,J196=2),AND(F196=1,J196=3)),"Deficiencia de control mayor (diseño y ejecución)",IF(OR(AND(F196=2,J196=2),AND(F196=3,J196=1),AND(F196=3,J196=2),AND(F196=2,J196=1)),"Deficiencia de control (diseño o ejecución)",IF(AND(F196=2,J196=3),"Oportunidad de mejora","Mantenimiento del control")))) -> Mantenimiento del control | L196: =+IF(K196="",0,IF(K196="Deficiencia de control mayor (diseño y ejecución)",4,IF(K196="Deficiencia de control (diseño o ejecución)",20,IF(K196="Oportunidad de mejora",40,60)))) -> 60 | M196: 1.28965 | N196: =+L196+M196 -> 61.29
G197: 2
G198: 3
G199: 4
G200: 5
G201: 6
G202: 7
G203: 8
B204: =+LEFT(C204,3) -> 5.3 | C204: 5.3 Teniendo en cuenta la información suministrada por la 2a y 3a línea de defensa se toman decisiones a tiempo para garantizar el cumplimiento de las metas y objetivos. | D204: Dimensiòn de Control Interno Lineas de Defensa | E204: Auditoría de Gestión 2025 | F204: 3 | G204: 1 | H204: Programación de la Auditoría de Gestión 2025 | I204: La OCI ejecutó el Plan de auditorías de gestión vigencia 2025. | J204: 3 | K204: =+IF(OR(ISBLANK(F204),ISBLANK(J204)),"",IF(OR(AND(F204=1,J204=1),AND(F204=1,J204=2),AND(F204=1,J204=3)),"Deficiencia de control mayor (diseño y ejecución)",IF(OR(AND(F204=2,J204=2),AND(F204=3,J204=1),AND(F204=3,J204=2),AND(F204=2,J204=1)),"Deficiencia de control (diseño o ejecución)",IF(AND(F204=2,J204=3),"Oportunidad de mejora","Mantenimiento del control")))) -> Mantenimiento del control | L204: =+IF(K204="",0,IF(K204="Deficiencia de control mayor (diseño y ejecución)",4,IF(K204="Deficiencia de control (diseño o ejecución)",20,IF(K204="Oportunidad de mejora",40,60)))) -> 60 | M204: 1.38963 | N204: =+L204+M204 -> 61.39
G205: 2
G206: 3
G207: 4
G208: 5
G209: 6
G210: 7
G211: 8
B212: =+LEFT(C212,3) -> 5.4 | C212: 5.4 Se evalúa la estructura de control a partir de los cambios en procesos, procedimientos, u otras herramientas, a fin de garantizar su adecuada formulación y afectación frente a la gestión del riesgo. | D212: Dimension de Gestion con Valores para Resultado Politica de Fortalecimiento Organizacional y Simplificaciòn de Procesos Dimension Control Interno Lineas de Defensa | E212: Procedimientos, Formatos, Caracterizaciones y Mapa de Riesgos actualizados durante el primer semestre de 2025 | F212: 3 | G212: 1 | H212: Se implemento el control sobre la creación modificación y eliminación de documentos a partir del funcionamiento del comité institucional del comité de desempeño durante segundo semestre de 2025 | J212: 3 | K212: =+IF(OR(ISBLANK(F212),ISBLANK(J212)),"",IF(OR(AND(F212=1,J212=1),AND(F212=1,J212=2),AND(F212=1,J212=3)),"Deficiencia de control mayor (diseño y ejecución)",IF(OR(AND(F212=2,J212=2),AND(F212=3,J212=1),AND(F212=3,J212=2),AND(F212=2,J212=1)),"Deficiencia de control (diseño o ejecución)",IF(AND(F212=2,J212=3),"Oportunidad de mejora","Mantenimiento del control")))) -> Mantenimiento del control | L212: =+IF(K212="",0,IF(K212="Deficiencia de control mayor (diseño y ejecución)",4,IF(K212="Deficiencia de control (diseño o ejecución)",20,IF(K212="Oportunidad de mejora",40,60)))) -> 60 | M212: 1.48963 | N212: =+L212+M212 -> 61.49
G213: 2 | H213: El comité Institucional de gestión y desempeño ha funcionado de acuerdo a la normatividad vigente aplicable
G214: 3 | H214: Los procesos del sistema de gestión integrados han hecho uso del procedimiento de la gestión del cambio y del procedimiento de control de documentos
G215: 4
G216: 5
G217: 6
G218: 7
G219: 8
B220: =+LEFT(C220,3) -> 5.5 | C220: 5.5 La entidad aprueba y hace seguimiento al Plan Anual de Auditoría presentado y ejecutado por parte de la Oficina de Control Interno. | D220: Dimension Control Interno Linea Estrategica | E220: Plan de Auditoria establecido y aprobado por el Comité de Control Interno | F220: 3 | G220: 1 | H220: Plan de Auditoría de Gestión 2025 | I220: La OCI evidencia el plan aprobado por el Comité de Control Interno para el ciclo de auditoria vigencia 2025 el cual se realizó en el segundo semestre de 2025 | J220: 3 | K220: =+IF(OR(ISBLANK(F220),ISBLANK(J220)),"",IF(OR(AND(F220=1,J220=1),AND(F220=1,J220=2),AND(F220=1,J220=3)),"Deficiencia de control mayor (diseño y ejecución)",IF(OR(AND(F220=2,J220=2),AND(F220=3,J220=1),AND(F220=3,J220=2),AND(F220=2,J220=1)),"Deficiencia de control (diseño o ejecución)",IF(AND(F220=2,J220=3),"Oportunidad de mejora","Mantenimiento del control")))) -> Mantenimiento del control | L220: =+IF(K220="",0,IF(K220="Deficiencia de control mayor (diseño y ejecución)",4,IF(K220="Deficiencia de control (diseño o ejecución)",20,IF(K220="Oportunidad de mejora",40,60)))) -> 60 | M220: 1.58965 | N220: =+L220+M220 -> 61.59
G221: 2 | H221: Informe de las fortalezas y hallazgos identificados en ciclo de auditoría.
G222: 3
G223: 4
... 12 more rows

Sheet Evaluación de riesgos
C10: EVALUACIÓN DE RIESGOS
C11: Este componente hace referencia al ejercicio efectuado bajo el liderazgo del equipo directivo y de todos los servidores de la entidad, y permite identificar, evaluar y gestionar eventos potenciales, tanto internos como externos, que puedan afectar el logro de los objetivos institucionales. La condición para la evaluación de riesgos es el establecimiento de objetivos, vinculados a varios niveles de la entidad, lo que implica que la Alta Dirección define objetivos y los agrupa en categorías en todos los niveles de la entidad, con el fin de evaluarlos
B13: ID | C13: Lineamiento 6: Definición de objetivos con suficiente claridad para identificar y evaluar los riesgos relacionados: i)Estratégicos; ii)Operativos; iii)Legales y Presupuestales; iv)De Información Financiera y no Financiera. | D13: DIMENSIÓN O POLÍTICA DEL MIPG ASOCIADA AL REQUERIMIENTO | E13: Explicación de cómo la Entidad evidencia que está dando respuesta al requerimiento Referencia a Procesos, Manuales/Políticas de Operación/Procedimientos/Instructivos u otros desarrollos que den cuente de su aplicación | F13: Presente (1/2/3) | G13: EVIDENCIA DEL CONTROL | J13: Funcionando (1/2/3) | K13: Evaluación
G14: No. | H14: Referencia a Análisis y verificaciones en el marco del Comité Institucional de Coordinación de Control Interno | I14: Observaciones de la evaluacion independiente (tener encuenta papel de líneas de defensa)
B16: =+LEFT(C16,3) -> 6.1 | C16: 6.1 La Entidad cuenta con mecanismos para vincular o relacionar el plan estratégico con los objetivos estratégicos y estos a su vez con los objetivos operativos. | D16: Dimension de Direccionamiento Estratetegico y Planeacion. Politica de Planeacion Institucional | E16: Plan de Accion Intitucional 2024 - 2027. Planes de Mejoramiento. Mapa de Procesos. | F16: 3 | G16: 1 | H16: Informe de Gestion | I16: Se estudia el Informe de Gestion y de acuerdo al avance del Plan de accion, se hacen las recomendaciones necesarias. Se hace un informe a la Direccion General. | J16: 3 | K16: =+IF(OR(ISBLANK(F16),ISBLANK(J16)),"",IF(OR(AND(F16=1,J16=1),AND(F16=1,J16=2),AND(F16=1,J16=3)),"Deficiencia de control mayor (diseño y ejecución)",IF(OR(AND(F16=2,J16=2),AND(F16=3,J16=1),AND(F16=3,J16=2),AND(F16=2,J16=1)),"Deficiencia de control (diseño o ejecución)",IF(AND(F16=2,J16=3),"Oportunidad de mejora","Mantenimiento del control")))) -> Mantenimiento del control | L16: =+IF(K16="",75,IF(K16="Deficiencia de control mayor (diseño y ejecución)",80,IF(K16="Deficiencia de control (diseño o ejecución)",100,IF(K16="Oportunidad de mejora",120,140)))) -> 140 | M16: 1.7896 | N16: =+L16+M16 -> 141.79
G17: 2 | H17: Informe de Evaluacion por Dependencias
G18: 3 | H18: Auditorias de Gestion
G19: 4 | H19: Informe del Estado del Sistema de Control Interno
G20: 5 | H20: Planes de Mejoramiento Institucional
G21: 6
G22: 7
G23: 8
B24: =+LEFT(C24,3) -> 6.2 | C24: 6.2 Los objetivos de los procesos, programas o proyectos (según aplique) que están definidos, son específicos, medibles, alcanzables, relevantes, delimitados en el tiempo. | D24: Dimension de Gestion con Valores para Resultado Politica de Fortalecimiento Organizacional y Simplificaciòn de Procesos | E24: Informe de Gestion. Indicadores Institucionales. Objetivos Institucionales, Caracterizaciòn de los Procesos. | F24: 3 | G24: 1 | H24: Auditorias de Gestion | I24: La corporación cuenta con un mapa de procesos estructurado por 18 procesos alineados entre si, con sus respectivas caracterizaciones en donde se establece el objetivo de cada proceso e indicadores para medir su efectividad. | J24: 3 | K24: =+IF(OR(ISBLANK(F24),ISBLANK(J24)),"",IF(OR(AND(F24=1,J24=1),AND(F24=1,J24=2),AND(F24=1,J24=3)),"Deficiencia de control mayor (diseño y ejecución)",IF(OR(AND(F24=2,J24=2),AND(F24=3,J24=1),AND(F24=3,J24=2),AND(F24=2,J24=1)),"Deficiencia de control (diseño o ejecución)",IF(AND(F24=2,J24=3),"Oportunidad de mejora","Mantenimiento del control")))) -> Mantenimiento del control | L24: =+IF(K24="",75,IF(K24="Deficiencia de control mayor (diseño y ejecución)",80,IF(K24="Deficiencia de control (diseño o ejecución)",100,IF(K24="Oportunidad de mejora",120,140)))) -> 140 | M24: 1.8896 | N24: =+L24+M24 -> 141.89
G25: 2 | H25: Informe Ejecutivo Anual
G26: 3 | H26: Planes de Mejoramiento Institucional
G27: 4
G28: 5
G29: 6
G30: 7
G31: 8
B32: =+LEFT(C32,3) -> 6.3 | C32: 6.3 La Alta Dirección evalúa periódicamente los objetivos establecidos para asegurar que estos continúan siendo consistentes y apropiados para la Entidad. | D32: Dimension de Direccionamiento Estratetegico y Planeacion. Politica de Planeacion Institucional Dimension Control Interno Linea Estrategica | E32: Procedimiento de Revision por la Direccion, Procedimiento de Observaciones, no conformidades y Acciones Correctivas, Manual del Sistema de Gestión Integrado, procedimiento de Auditorias internas - Sistema de Gestión Integral y procedimiento de Auditorias de Gestion. Política de Gestión del Riesgo. | F32: 3 | G32: 1 | H32: Informe de Revisión por la Dirección. | I32: La Alta Direcciòn evalua el cumplimiento de los objetivos periódicamente, con la emisión de los respectivos informes. | J32: 3 | K32: =+IF(OR(ISBLANK(F32),ISBLANK(J32)),"",IF(OR(AND(F32=1,J32=1),AND(F32=1,J32=2),AND(F32=1,J32=3)),"Deficiencia de control mayor (diseño y ejecución)",IF(OR(AND(F32=2,J32=2),AND(F32=3,J32=1),AND(F32=3,J32=2),AND(F32=2,J32=1)),"Deficiencia de control (diseño o ejecución)",IF(AND(F32=2,J32=3),"Oportunidad de mejora","Mantenimiento del control")))) -> Mantenimiento del control | L32: =+IF(K32="",75,IF(K32="Deficiencia de control mayor (diseño y ejecución)",80,IF(K32="Deficiencia de control (diseño o ejecución)",100,IF(K32="Oportunidad de mejora",120,140)))) -> 140 | M32: 1.9754 | N32: =+L32+M32 -> 141.98
G33: 2 | H33: Informe de Auditoría de Gestión
G34: 3 | H34: Informe de Gestión
G35: 4 | H35: Informe de Auditorías internas - Sistema de Gestión Integral
G36: 5 | H36: Formato Acción correctiva (Plan de acciones correctivas)
G37: 6 | H37: Plan de Mejoramiento Institucional
G38: 7
G39: 8
C40: Lineamiento 7: Identificación y análisis de riesgos (Analiza factores internos y externos; Implica a los niveles apropiados de la dirección; Determina cómo responder a los riesgos; Determina la importancia de los riesgos). | D40: DIMENSIÓN O POLÍTICA DEL MIPG ASOCIADA AL REQUERIMIENTO | E40: Explicación de cómo la Entidad evidencia que está dando respuesta al requerimiento Referencia a Procesos, Manuales/Políticas de Operación/Procedimientos/Instructivos u otros desarrollos que den cuente de su aplicación | F40: Presente (1/2/3) | G40: EVIDENCIA DEL CONTROL | J40: Funcionando (1/2/3) | K40: Evaluación
G41: No. | H41: Referencia a Análisis y verificaciones en el marco del Comité Institucional de Coordinación de Control Interno | I41: Observaciones de la evaluacion independiente (tener encuenta papel de líneas de defensa)
B43: =+LEFT(C43,3) -> 7.1 | C43: 7.1 Teniendo en cuenta la estructura de la política de Administración del Riesgo, su alcance define lineamientos para toda la entidad, incluyendo regionales, áreas tercerizadas u otras instancias que afectan la prestación del servicio. | D43: Dimension de Direccionamiento Estratetegico y Planeacion. Politica de Planeacion Institucional | E43: Guia para la Gestiòn de Riesgos (Política de Gestión de Riesgos). Mapa de Riesgos Institucional. Mapa de Riesgos de Corrupcion. Plan Anticorrupcion y de Atencion al ciudadano. Política de Gestión del Riesgo | F43: 3 | G43: 1 | H43: Seguimiento a los Mapas de Riesgos institucionales y de corrupción | I43: La corporación para la gestión de sus riesgos, adoptò formalmente la "Guía para la Gestión de Riesgos", el cual es un documento que contiene la política y metodología para la adminstraciòn de los riesgos tanto institucionales como los de corrupciòn. | J43: 3 | K43: =+IF(OR(ISBLANK(F43),ISBLANK(J43)),"",IF(OR(AND(F43=1,J43=1),AND(F43=1,J43=2),AND(F43=1,J43=3)),"Deficiencia de control mayor (diseño y ejecución)",IF(OR(AND(F43=2,J43=2),AND(F43=3,J43=1),AND(F43=3,J43=2),AND(F43=2,J43=1)),"Deficiencia de control (diseño o ejecución)",IF(AND(F43=2,J43=3),"Oportunidad de mejora","Mantenimiento del control")))) -> Mantenimiento del control | L43: =+IF(K43="",75,IF(K43="Deficiencia de control mayor (diseño y ejecución)",80,IF(K43="Deficiencia de control (diseño o ejecución)",100,IF(K43="Oportunidad de mejora",120,140)))) -> 140 | M43: 2.0896 | N43: =+L43+M43 -> 142.09
G44: 2 | H44: Seguimiento al Programa de Transparencia y Ética Pública 2025
G45: 3 | H45: Informe Auditorias de Gestion
G46: 4 | H46: Aplicación de los lineamientos establecidos en la Guìa para la Gestiòn de Riesgos
G47: 5
G48: 6
G49: 7
G50: 8
B51: =+LEFT(C51,3) -> 7.2 | C51: 7.2 La Oficina de Planeación, Gerencia de Riesgos (donde existan), como 2a línea de defensa, consolidan información clave frente a la gestión del riesgo. | D51: Dimension Control Interno Lineas de Defensa | E51: Guia para la Gestiòn de Riesgos (Política de Gestión de Riesgos). | F51: 3 | G51: 1 | H51: Seguimiento Mapa de Riesgos institucionales y de corrupción | I51: En representación de la Alta Dirección, la Secretaría General a través de la Coordinación del Sistema Integrado, es la encargada de liderar el proceso de administración y/o gestión del riesgo dentro de la corporación. | J51: 3 | K51: =+IF(OR(ISBLANK(F51),ISBLANK(J51)),"",IF(OR(AND(F51=1,J51=1),AND(F51=1,J51=2),AND(F51=1,J51=3)),"Deficiencia de control mayor (diseño y ejecución)",IF(OR(AND(F51=2,J51=2),AND(F51=3,J51=1),AND(F51=3,J51=2),AND(F51=2,J51=1)),"Deficiencia de control (diseño o ejecución)",IF(AND(F51=2,J51=3),"Oportunidad de mejora","Mantenimiento del control")))) -> Mantenimiento del control | L51: =+IF(K51="",75,IF(K51="Deficiencia de control mayor (diseño y ejecución)",80,IF(K51="Deficiencia de control (diseño o ejecución)",100,IF(K51="Oportunidad de mejora",120,140)))) -> 140 | M51: 2.1456 | N51: =+L51+M51 -> 142.15
G52: 2 | H52: Seguimiento al Programa de Transparencia y Ética Pública 2025
G53: 3
G54: 4
G55: 5
G56: 6
G57: 7
G58: 8
B59: =+LEFT(C59,3) -> 7.3 | C59: 7.3 A partir de la información consolidada y reportada por la 2a línea de defensa (7.2), la Alta Dirección analiza sus resultados y en especial considera si se han presentado materializaciones de riesgo. | D59: Dimension Control Interno Lineas de Defensa | E59: Guia para la Gestiòn de Riesgos (Política de Gestión de Riesgos). | F59: 3 | G59: 1 | H59: Seguimiento Mapa de Riesgos institucionales y de corrupción | I59: Dentro de la Guìa para la Gestiòn de Riesgos, que se encuentra en la intranet de la corporaciòn, se definen los lineamientos a seguir cuando se materializa algun inductor de riesgo identificado en los mapas de cada proceso. Durante el perìodo evaluado no se reportò por parte de los lìderes de proceso, materializaciòn alguna de riesgo. | J59: 3 | K59: =+IF(OR(ISBLANK(F59),ISBLANK(J59)),"",IF(OR(AND(F59=1,J59=1),AND(F59=1,J59=2),AND(F59=1,J59=3)),"Deficiencia de control mayor (diseño y ejecución)",IF(OR(AND(F59=2,J59=2),AND(F59=3,J59=1),AND(F59=3,J59=2),AND(F59=2,J59=1)),"Deficiencia de control (diseño o ejecución)",IF(AND(F59=2,J59=3),"Oportunidad de mejora","Mantenimiento del control")))) -> Mantenimiento del control | L59: =+IF(K59="",75,IF(K59="Deficiencia de control mayor (diseño y ejecución)",80,IF(K59="Deficiencia de control (diseño o ejecución)",100,IF(K59="Oportunidad de mejora",120,140)))) -> 140 | M59: 2.2365 | N59: =+L59+M59 -> 142.24
G60: 2 | H60: Seguimiento al Programa de Transparencia y Ética Pública 2025
G61: 3 | H61: Informe de Revision por la Direccion. Informe de Auditoría de Gestión 2025
G62: 4
G63: 5
G64: 6
G65: 7
G66: 8
B67: =+LEFT(C67,3) -> 7.4 | C67: 7.4 Cuando se detectan materializaciones de riesgo, se definen los cursos de acción en relación con la revisión y actualización del mapa de riesgos correspondiente. | D67: Dimension de Direccionamiento Estratetegico y Planeacion. Politica de Planeacion Institucional Dimension Control Interno Lineas de Defensa | E67: Guia para la Gestiòn de Riesgos (Política de Gestión de Riesgos). | F67: 3 | G67: 1 | H67: Mapas de riesgos institucionales y de corrupción | I67: Dentro de la Guìa para la Gestiòn de Riesgos, que se encuentra en la intranet de la corporaciòn, se definen los lineamientos a seguir cuando se materializa algun inductor de riesgo identificado en los mapas de cada proceso. | J67: 3 | K67: =+IF(OR(ISBLANK(F67),ISBLANK(J67)),"",IF(OR(AND(F67=1,J67=1),AND(F67=1,J67=2),AND(F67=1,J67=3)),"Deficiencia de control mayor (diseño y ejecución)",IF(OR(AND(F67=2,J67=2),AND(F67=3,J67=1),AND(F67=3,J67=2),AND(F67=2,J67=1)),"Deficiencia de control (diseño o ejecución)",IF(AND(F67=2,J67=3),"Oportunidad de mejora","Mantenimiento del control")))) -> Mantenimiento del control | L67: =+IF(K67="",75,IF(K67="Deficiencia de control mayor (diseño y ejecución)",80,IF(K67="Deficiencia de control (diseño o ejecución)",100,IF(K67="Oportunidad de mejora",120,140)))) -> 140 | M67: 2.3896 | N67: =+L67+M67 -> 142.39
G68: 2 | H68: Acciones correctivas
G69: 3 | H69: Seguimiento a Controles
G70: 4
G71: 5
G72: 6
G73: 7
G74: 8
B75: =+LEFT(C75,3) -> 7.5 | C75: 7.5 Se llevan a cabo seguimientos a las acciones definidas para resolver materializaciones de riesgo detectadas. | D75: Dimension de Evaluacion de Resultados Politica de Seguimiento y evaluacion al Desempeño Institucional. Dimension Control Interno Lineas de Defensa | E75: Guìa para la Gestiòn de Riesgos. Procedimiento de Auditorìa de Gestiòn y Auditoría - Sistema de Gestión Integral. Política de Gestión del Riesgo. | F75: 3 | G75: 1 | H75: Programa de Auditorìa de Gestiòn y del SGI. Cronograma de Actividades de la Oficina de Control Interno. | I75: Dentro de la Guìa para la Gestiòn de Riesgos, que se encuentra en la intranet de la corporaciòn, se encuenta definido la medologia para la ejecuciìn de los respectivos seguimientos y monitoreo de los riesgos identificados en los mapas de cada proceso. En el proceso de seguimiento, se hace monitoreo a la ejecuciòn de los controles y efectividad de los inductores de riesgos identificados. | J75: 3 | K75: =+IF(OR(ISBLANK(F75),ISBLANK(J75)),"",IF(OR(AND(F75=1,J75=1),AND(F75=1,J75=2),AND(F75=1,J75=3)),"Deficiencia de control mayor (diseño y ejecución)",IF(OR(AND(F75=2,J75=2),AND(F75=3,J75=1),AND(F75=3,J75=2),AND(F75=2,J75=1)),"Deficiencia de control (diseño o ejecución)",IF(AND(F75=2,J75=3),"Oportunidad de mejora","Mantenimiento del control")))) -> Mantenimiento del control | L75: =+IF(K75="",75,IF(K75="Deficiencia de control mayor (diseño y ejecución)",80,IF(K75="Deficiencia de control (diseño o ejecución)",100,IF(K75="Oportunidad de mejora",120,140)))) -> 140 | M75: 2.4563 | N75: =+L75+M75 -> 142.46
G76: 2 | H76: Informes de auditorìas de Gestión y Auditoría - Sistema de Gestión Integrado
G77: 3
G78: 4
G79: 5
G80: 6
G81: 7
G82: 8
C83: Lineamiento 8: Evaluación del riesgo de fraude o corrupción. Cumplimiento artículo 73 de la Ley 1474 de 2011, relacionado con la prevención de los riesgos de corrupción. | D83: DIMENSIÓN O POLÍTICA DEL MIPG ASOCIADA AL REQUERIMIENTO | E83: Explicación de cómo la Entidad evidencia que está dando respuesta al requerimiento Referencia a Procesos, Manuales/Políticas de Operación/Procedimientos/Instructivos u otros desarrollos que den cuente de su aplicación | F83: Presente (1/2/3) | G83: EVIDENCIA DEL CONTROL | J83: Funcionando (1/2/3) | K83: Evaluación
G84: No. | H84: Referencia a Análisis y verificaciones en el marco del Comité Institucional de Coordinación de Control Interno | I84: Observaciones de la evaluacion independiente (tener encuenta papel de líneas de defensa)
B86: =+LEFT(C86,3) -> 8.1 | C86: 8.1 La Alta Dirección acorde con el análisis del entorno interno y externo, define los procesos, programas o proyectos (según aplique), susceptibles de posibles actos de corrupción. | D86: Dimension de Direccionamiento Estratetegico y Planeacion. Politica de Planeacion Institucional | E86: Programa de Transparencia y ética Pública 2025 Guìa para la Gestiòn de Riesgos. Comprensiòn de la Organizaciòn y Contexto DOFA | F86: 3 | G86: 1 | H86: Plan de Acciòn Institucional 2024 - 2027 | I86: En el mes de febrero de 2026 la OCI realizará una evaluación independiente del Informe de Gestión de la Entidad, de la vigencia 2025. De igual forma se desarrolló el programa de Auditorías de Gestión en el segundo semestre de 2025. | J86: 3 | K86: =+IF(OR(ISBLANK(F86),ISBLANK(J86)),"",IF(OR(AND(F86=1,J86=1),AND(F86=1,J86=2),AND(F86=1,J86=3)),"Deficiencia de control mayor (diseño y ejecución)",IF(OR(AND(F86=2,J86=2),AND(F86=3,J86=1),AND(F86=3,J86=2),AND(F86=2,J86=1)),"Deficiencia de control (diseño o ejecución)",IF(AND(F86=2,J86=3),"Oportunidad de mejora","Mantenimiento del control")))) -> Mantenimiento del control | L86: =+IF(K86="",75,IF(K86="Deficiencia de control mayor (diseño y ejecución)",80,IF(K86="Deficiencia de control (diseño o ejecución)",100,IF(K86="Oportunidad de mejora",120,140)))) -> 140 | M86: 2.5458 | N86: =+L86+M86 -> 142.55
G87: 2 | H87: Seguimiento Programa de Transparencia y Ética Pública, corte 31 de diciembre de 2025
G88: 3 | H88: Informe de Revision por la Direccion. Informe de Auditorias de Gestion y Auditoría - Sistema de Gestión Integrado
G89: 4
G90: 5
G91: 6
G92: 7
G93: 8
B94: =+LEFT(C94,3) -> 8.2 | C94: 8.2 La Alta Dirección monitorea los riesgos de corrupción con la periodicidad establecida en la Política de Administración del Riesgo. | D94: Dimension de Control Interno Linea Estrategica | E94: Guia para la Gestiòn de Riesgos (Política de Gestión de Riesgos). | F94: 3 | G94: 1 | H94: Informes Auditorias de Gestion | I94: Para el período evaluado, la Alta Dirección monitoreó el sistema de riesgo de la corporación en el informe de Seguimiento al Programa de Transparencia y Ética Pública, corte 31 de diciembre de 2025. | J94: 3 | K94: =+IF(OR(ISBLANK(F94),ISBLANK(J94)),"",IF(OR(AND(F94=1,J94=1),AND(F94=1,J94=2),AND(F94=1,J94=3)),"Deficiencia de control mayor (diseño y ejecución)",IF(OR(AND(F94=2,J94=2),AND(F94=3,J94=1),AND(F94=3,J94=2),AND(F94=2,J94=1)),"Deficiencia de control (diseño o ejecución)",IF(AND(F94=2,J94=3),"Oportunidad de mejora","Mantenimiento del control")))) -> Mantenimiento del control | L94: =+IF(K94="",75,IF(K94="Deficiencia de control mayor (diseño y ejecución)",80,IF(K94="Deficiencia de control (diseño o ejecución)",100,IF(K94="Oportunidad de mejora",120,140)))) -> 140 | M94: 2.6321 | N94: =+L94+M94 -> 142.63
G95: 2 | H95: Informes de Auditorías del Sistema de Gestión.
G96: 3 | H96: Informe de Seguimiento al Programa de Transparencia y Ética Pública, corte 31 de diciembre de 2025. Informe de seguimiento a la Gestión de Riesgos de la Corporación.
G97: 4
G98: 5
G99: 6
G100: 7
G101: 8
B102: =+LEFT(C102,3) -> 8.3 | C102: 8.3 Para el desarrollo de las actividades de control, la entidad considera la adecuada división de las funciones y que éstas se encuentren segregadas en diferentes personas para reducir el riesgo de acciones fraudulentas. | D102: Dimension de Contro Interno Lineas de Defensa | E102: Manual de funciones y competencias Estudios previos de contratistas | F102: 3 | G102: 1 | H102: Evaluacion de desempeño. | I102: En la Entidad se encuentra el Manual de Funiones y competencias actualizado en abril de 2025 y con los estudios técnicos o previos para el caso de los contratistas, lo que debe llevar a una mejor segregación de funciones entre el personal de planta y contratistas . En los procedimientos establecidos en cada proceso, se encuentran definidos los controles de los mismos, los cuales son monitoreados en la ejecución de las auditorías de gestión y de SGI anualmente. | J102: 2 | K102: =+IF(OR(ISBLANK(F102),ISBLANK(J102)),"",IF(OR(AND(F102=1,J102=1),AND(F102=1,J102=2),AND(F102=1,J102=3)),"Deficiencia de control mayor (diseño y ejecución)",IF(OR(AND(F102=2,J102=2),AND(F102=3,J102=1),AND(F102=3,J102=2),AND(F102=2,J102=1)),"Deficiencia de control (diseño o ejecución)",IF(AND(F102=2,J102=3),"Oportunidad de mejora","Mantenimiento del control")))) -> Deficiencia de control (diseño o ejecución) | L102: =+IF(K102="",75,IF(K102="Deficiencia de control mayor (diseño y ejecución)",80,IF(K102="Deficiencia de control (diseño o ejecución)",100,IF(K102="Oportunidad de mejora",120,140)))) -> 100 | M102: 2.7456 | N102: =+L102+M102 -> 102.75
G103: 2 | H103: Procedimientos establecidos en cada proceso.
G104: 3 | H104: Registros Financieros
G105: 4
G106: 5
G107: 6
G108: 7
G109: 8
B110: =+LEFT(C110,3) -> 8.4 | C110: 8.4 La Alta Dirección evalúa fallas en los controles (diseño y ejecución) para definir cursos de acción apropiados para su mejora. | D110: Dimension de Control Interno Linea Estrategica | E110: Procedimiento de Revisión por la Dirección. Guìa para la Gestiòn de Riesgos. Procedimiento de Auditorías de Gestión. Reglamento de Elaboración, Envío y Seguimiento al PDM. Procedimiento de Observaciones, no conformidades y acciones correctivas | F110: 2 | G110: 1 | H110: Informes Auditorías de Gestión PDM. Informe de Seguimiento a los Mapas de Riesgos. | I110: Se evalua la aplicaicón de los controles establecidos en los diferentes procedimientos e inductores de riesgos de cada proceso , en el desarrollo del programa de auditorías de gestión, de SGI y el informe de seguimiento a controles de riesgos. Teniendo en cuenta los hallazgos detectados, por politica, se tiene establecido la elaboración de los PDM y los Planes de Acciones correctivas, lo cuales son monitoreados periodicamente. | J110: 3 | K110: =+IF(OR(ISBLANK(F110),ISBLANK(J110)),"",IF(OR(AND(F110=1,J110=1),AND(F110=1,J110=2),AND(F110=1,J110=3)),"Deficiencia de control mayor (diseño y ejecución)",IF(OR(AND(F110=2,J110=2),AND(F110=3,J110=1),AND(F110=3,J110=2),AND(F110=2,J110=1)),"Deficiencia de control (diseño o ejecución)",IF(AND(F110=2,J110=3),"Oportunidad de mejora","Mantenimiento del control")))) -> Oportunidad de mejora | L110: =+IF(K110="",75,IF(K110="Deficiencia de control mayor (diseño y ejecución)",80,IF(K110="Deficiencia de control (diseño o ejecución)",100,IF(K110="Oportunidad de mejora",120,140)))) -> 120 | M110: 2.8745 | N110: =+L110+M110 -> 122.87
G111: 2 | H111: Informe de Revisión por la Dirección.
G112: 3
G113: 4
G114: 5
G115: 6
G116: 7
G117: 8
C118: Lineamiento 9: Identificación y análisis de cambios significativos | D118: DIMENSIÓN O POLÍTICA DEL MIPG ASOCIADA AL REQUERIMIENTO | E118: Explicación de cómo la Entidad evidencia que está dando respuesta al requerimiento Referencia a Procesos, Manuales/Políticas de Operación/Procedimientos/Instructivos u otros desarrollos que den cuente de su aplicación | F118: Presente (1/2/3) | G118: EVIDENCIA DEL CONTROL | J118: Funcionando (1/2/3) | K118: Evaluación
G119: No. | H119: Referencia a Análisis y verificaciones en el marco del Comité Institucional de Coordinación de Control Interno | I119: Observaciones de la evaluacion independiente (tener encuenta papel de líneas de defensa)
B121: =+LEFT(C121,3) -> 9.1 | C121: 9.1 Acorde con lo establecido en la política de Administración del Riesgo, se monitorean los factores internos y externos definidos para la entidad, a fin de establecer cambios en el entorno que determinen nuevos riesgos o ajustes a los existentes. | D121: Dimension de Direccionamiento Estrategico Politica de Planeacion Institucional | E121: Guia para la Gestion de Riesgos. Procedimiento de Auditorías de Gestión. Política de Gestión de Riesgos. | F121: 3 | G121: 1 | H121: Informe de Seguimiento a los Mapas de Riesgos | I121: Periódicamente la corporación analiza los Mapas de Riesgo de cada proceso y de ser necesario son actualizados. La Oficina de Control Interno de acuerdo a su cronograma para la vigencia y junto con el grupo SGI realizó auditoría a los riesgos establecidos. | J121: 3 | K121: =+IF(OR(ISBLANK(F121),ISBLANK(J121)),"",IF(OR(AND(F121=1,J121=1),AND(F121=1,J121=2),AND(F121=1,J121=3)),"Deficiencia de control mayor (diseño y ejecución)",IF(OR(AND(F121=2,J121=2),AND(F121=3,J121=1),AND(F121=3,J121=2),AND(F121=2,J121=1)),"Deficiencia de control (diseño o ejecución)",IF(AND(F121=2,J121=3),"Oportunidad de mejora","Mantenimiento del control")))) -> Mantenimiento del control | L121: =+IF(K121="",75,IF(K121="Deficiencia de control mayor (diseño y ejecución)",80,IF(K121="Deficiencia de control (diseño o ejecución)",100,IF(K121="Oportunidad de mejora",120,140)))) -> 140 | M121: 2.9635 | N121: =+L121+M121 -> 142.96
G122: 2 | H122: Informe de Revision por la Direccion
G123: 3 | H123: Informes Auditorías de Gestión
G124: 4
G125: 5
G126: 6
G127: 7
G128: 8
B129: =+LEFT(C129,3) -> 9.2 | C129: 9.2 La Alta Dirección analiza los riesgos asociados a actividades tercerizadas, regionales u otras figuras externas que afecten la prestación del servicio a los usuarios, basados en los informes de la segunda y tercera linea de defensa. | D129: Dimension de Control Interno Lineas de Defensa | E129: Guia para la Gestion de Riesgos. Proceso de Adquisición de Bienes y servicios, y Gestión de Infraestructura. | F129: 3 | G129: 1 | H129: Informe de Revision por la Direccion | I129: En la Guia para la Gestion de Riesgos,adoptada por la corporación, se establecen las directrices para la identificaión, analisis, evaluación y seguimiento a los diferentes inductores de riesgos de cada proceso. En los infomes de Auditoría de Gestión, del SGI y de Seguimiento a los Mapas de Riesgos, se registran las observaciones pertinentes. En los Mapas de Riesgos de los procesos de Gestión de Infraestructura y Adquisión de Bienes y Servicios, se encuentran registrados inductores de riesgos asociados a actividades tercerizadas | J129: 3 | K129: =+IF(OR(ISBLANK(F129),ISBLANK(J129)),"",IF(OR(AND(F129=1,J129=1),AND(F129=1,J129=2),AND(F129=1,J129=3)),"Deficiencia de control mayor (diseño y ejecución)",IF(OR(AND(F129=2,J129=2),AND(F129=3,J129=1),AND(F129=3,J129=2),AND(F129=2,J129=1)),"Deficiencia de control (diseño o ejecución)",IF(AND(F129=2,J129=3),"Oportunidad de mejora","Mantenimiento del control")))) -> Mantenimiento del control | L129: =+IF(K129="",75,IF(K129="Deficiencia de control mayor (diseño y ejecución)",80,IF(K129="Deficiencia de control (diseño o ejecución)",100,IF(K129="Oportunidad de mejora",120,140)))) -> 140 | M129: 3.0125 | N129: =+L129+M129 -> 143.01
G130: 2 | H130: Informes de Auditorias de Gestion
G131: 3 | H131: Informe de Seguimiento Mapa de Riesgos
G132: 4 | H132: Informes de Auditorias del Sistema de Gestión
G133: 5 | H133: Mapas de riesgos institucionales y de corrupción
G134: 6
G135: 7
G136: 8
B137: =+LEFT(C137,3) -> 9.3 | C137: 9.3 La Alta Dirección monitorea los riesgos aceptados revisando que sus condiciones no hayan cambiado y definir su pertinencia para sostenerlos o ajustarlos. | D137: Dimension de Control Interno Linea Estrategica | E137: Guia para la Gestion de Riesgos. Procedimiento de Auditorías de Gestión. Política de Gestión de Riesgos. | F137: 3 | G137: 1 | H137: Informes de Auditorias de Gestion | I137: La Alta Dirección por medio de la Oficna de Control Interno, quien a traves de la ejecución de las auditorías y seguimientos, monitorea los diferentes Mapas de Riesgos de los procesos. Asimismo, para la elaboración del informe de revisión por parte de la Dirección que se presenta anualemte, se realiza una revisión a los mapas de riesgos. | J137: 3 | K137: =+IF(OR(ISBLANK(F137),ISBLANK(J137)),"",IF(OR(AND(F137=1,J137=1),AND(F137=1,J137=2),AND(F137=1,J137=3)),"Deficiencia de control mayor (diseño y ejecución)",IF(OR(AND(F137=2,J137=2),AND(F137=3,J137=1),AND(F137=3,J137=2),AND(F137=2,J137=1)),"Deficiencia de control (diseño o ejecución)",IF(AND(F137=2,J137=3),"Oportunidad de mejora","Mantenimiento del control")))) -> Mantenimiento del control | L137: =+IF(K137="",75,IF(K137="Deficiencia de control mayor (diseño y ejecución)",80,IF(K137="Deficiencia de control (diseño o ejecución)",100,IF(K137="Oportunidad de mejora",120,140)))) -> 140 | M137: 3.1236 | N137: =+L137+M137 -> 143.12
G138: 2 | H138: Informe de Seguimiento Mapa de Riesgos
G139: 3 | H139: Acciones correctivas
G140: 4 | H140: Informe de Gestión por partte de la Dirección
G141: 5 | H141: Informe de revisión por la dirección
G142: 6
G143: 7
G144: 8
B145: =+LEFT(C145,3) -> 9.4 | C145: 9.4 La Alta Dirección evalúa fallas en los controles (diseño y ejecución) para definir cursos de acción apropiados para su mejora, basados en los informes de la segunda y tercera linea de defensa. | D145: Dimension de Control Interno Lineas de Defensa | E145: Mapa de Riesgos. Informe de Revision por la Direccion Guia para la Gestion de Riesgos. Procedimiento de Auditorías de Gestión. Política de Gestión del Riesgo. | F145: 3 | G145: 1 | H145: Informes de Auditorias de Gestion | I145: La Alta Dirección por medio de la Oficna de Control Interno, quien a traves de la ejecución de las auditorías y seguimientos, monitorea la aplicación de los controles definido en los diferentes Mapas de Riesgos de los procesos. Asimismo, para la elaboración del informe de gestión por parte de la Dirección que se presenta cada año, se realiza una revisión al mapas de riesgos. | J145: 3 | K145: =+IF(OR(ISBLANK(F145),ISBLANK(J145)),"",IF(OR(AND(F145=1,J145=1),AND(F145=1,J145=2),AND(F145=1,J145=3)),"Deficiencia de control mayor (diseño y ejecución)",IF(OR(AND(F145=2,J145=2),AND(F145=3,J145=1),AND(F145=3,J145=2),AND(F145=2,J145=1)),"Deficiencia de control (diseño o ejecución)",IF(AND(F145=2,J145=3),"Oportunidad de mejora","Mantenimiento del control")))) -> Mantenimiento del control | L145: =+IF(K145="",75,IF(K145="Deficiencia de control mayor (diseño y ejecución)",80,IF(K145="Deficiencia de control (diseño o ejecución)",100,IF(K145="Oportunidad de mejora",120,140)))) -> 140 | M145: 3.2456 | N145: =+L145+M145 -> 143.25
G146: 2 | H146: Informes de Seguimiento a Controles
G147: 3
G148: 4 | H148: Informe de Revision por la Direccion
G149: 5 | H149: Informe de Gestión por partte de la Dirección
G150: 6
G151: 7
G152: 8
B153: =+LEFT(C153,3) -> 9.5 | C153: 9.5 La entidad analiza el impacto sobre el control interno por cambios en los diferentes niveles organizacionales. | D153: Dimension de Direccionamiento Estrategico y Planeacion Politica de Planeacion Institucional Dimension de Control Interno Linea Estrategica | E153: Guia para la Gestion de Riesgos. Política de Gestión del Riesgo. . | F153: 3 | G153: 1 | H153: Informe de Seguimiento a Controles | I153: El impacto que tiene el control interno en la entidad, es evidenciado en los informes de auditorías que se realizan en las respectivas vigencias, en los cuales se refleja de forma positiva a medida que se presenten menos hallazgos detectados. | J153: 3 | K153: =+IF(OR(ISBLANK(F153),ISBLANK(J153)),"",IF(OR(AND(F153=1,J153=1),AND(F153=1,J153=2),AND(F153=1,J153=3)),"Deficiencia de control mayor (diseño y ejecución)",IF(OR(AND(F153=2,J153=2),AND(F153=3,J153=1),AND(F153=3,J153=2),AND(F153=2,J153=1)),"Deficiencia de control (diseño o ejecución)",IF(AND(F153=2,J153=3),"Oportunidad de mejora","Mantenimiento del control")))) -> Mantenimiento del control | L153: =+IF(K153="",75,IF(K153="Deficiencia de control mayor (diseño y ejecución)",80,IF(K153="Deficiencia de control (diseño o ejecución)",100,IF(K153="Oportunidad de mejora",120,140)))) -> 140 | M153: 3.3654 | N153: =+L153+M153 -> 143.37
G154: 2 | H154: Identificacion de Riesgo Inherente
G155: 3 | H155: Identificacion zonas de riesgo
G156: 4
G157: 5
G158: 6
G159: 7
G160: 8

Sheet Actividades de control
C15: ACTIVIDADES DE CONTROL
C16: La entidad define y desarrolla actividades de control que contribuyen a la mitigación de los riesgos hasta niveles aceptables para la consecución de los objetivos estratégicos y de proceso. Implementa políticas de operación mediante procedimientos u otros mecanismos que den cuenta de su aplicación en el día a día de las operaciones.
B18: ID | C18: Lineamiento 10: Diseño y desarrollo de actividades de control (Integra el desarrollo de controles con la evaluación de riesgos; tiene en cuenta a qué nivel se aplican las actividades; facilita la segregación de funciones). | D18: DIMENSIÓN O POLÍTICA DEL MIPG ASOCIADA AL REQUERIMIENTO | E18: Explicación de cómo la Entidad evidencia que está dando respuesta al requerimiento Referencia a Procesos, Manuales/Políticas de Operación/Procedimientos/Instructivos u otros desarrollos que den cuente de su aplicación | F18: Presente (1/2/3) | G18: EVIDENCIA DEL CONTROL | J18: Funcionando (1/2/3) | K18: Evaluación
G19: No. | H19: Referencia a Análisis y verificaciones en el marco del Comité Institucional de Coordinación de Control Interno | I19: Observaciones de la evaluacion independiente (tener encuenta papel de líneas de defensa)
B21: =+LEFT(C21,4) -> 10.1 | C21: 10.1 Para el desarrollo de las actividades de control, la entidad considera la adecuada división de las funciones y que éstas se encuentren segregadas en diferentes personas para reducir el riesgo de error o de incumplimientos de alto impacto en la operación. | D21: Dimension de Control Interno Lineas de Defensa | E21: En la Entidad se encuentra el Manual de Funiones y competencias actializado en abril de 2025. Por lo anterior la segregación de algunas funciones en los funcionarios debe funcionar de mejor forma. | F21: 2 | G21: 1 | H21: Auditorias de Gestión | I21: La OCI evidencia que se han realizado auditorias al Proceso Adquisición de bienes y servicios, Gestión de Riesgos e indicadores de Gestión. | J21: 3 | K21: =+IF(OR(ISBLANK(F21),ISBLANK(J21)),"",IF(OR(AND(F21=1,J21=1),AND(F21=1,J21=2),AND(F21=1,J21=3)),"Deficiencia de control mayor (diseño y ejecución)",IF(OR(AND(F21=2,J21=2),AND(F21=3,J21=1),AND(F21=3,J21=2),AND(F21=2,J21=1)),"Deficiencia de control (diseño o ejecución)",IF(AND(F21=2,J21=3),"Oportunidad de mejora","Mantenimiento del control")))) -> Oportunidad de mejora | L21: =+IF(K21="",152,IF(K21="Deficiencia de control mayor (diseño y ejecución)",160,IF(K21="Deficiencia de control (diseño o ejecución)",180,IF(K21="Oportunidad de mejora",200,220)))) -> 200 | M21: 3.4569 | N21: =+L21+M21 -> 203.4569
G22: 2 | H22: Procesos del Sistema de Gestión Integrado
G23: 3 | H23: Estudios previos para la contratación.
G24: 4
G25: 5
G26: 6
G27: 7
G28: 8
B29: =+LEFT(C29,4) -> 10.2 | C29: 10.2 Se han idenfificado y documentado las situaciones específicas en donde no es posible segregar adecuadamente las funciones (ej: falta de personal, presupuesto), con el fin de definir actividades de control alternativas para cubrir los riesgos identificados. | D29: Dimension de Control Interno Lineas de Defensa | E29: En la Entidad se encuentra el Manual de Funiones y competencias actializado en abril de 2025. Por lo anterior la segregación de algunas funciones en los funcionarios debe funcionar de mejor forma. | F29: 2 | G29: 1 | H29: Rediseño Institucional de la planta de personal de la Corporación | I29: OCI ha verificado en auditorías de gestión la incorporación a la planta de personal de 36 nuevos cargos con lo cual la corporación ha venido adenlantando acciones para subsanar la debilidad de falta de personal. | J29: 3 | K29: =+IF(OR(ISBLANK(F29),ISBLANK(J29)),"",IF(OR(AND(F29=1,J29=1),AND(F29=1,J29=2),AND(F29=1,J29=3)),"Deficiencia de control mayor (diseño y ejecución)",IF(OR(AND(F29=2,J29=2),AND(F29=3,J29=1),AND(F29=3,J29=2),AND(F29=2,J29=1)),"Deficiencia de control (diseño o ejecución)",IF(AND(F29=2,J29=3),"Oportunidad de mejora","Mantenimiento del control")))) -> Oportunidad de mejora | L29: =+IF(K29="",152,IF(K29="Deficiencia de control mayor (diseño y ejecución)",160,IF(K29="Deficiencia de control (diseño o ejecución)",180,IF(K29="Oportunidad de mejora",200,220)))) -> 200 | M29: 3.5478 | N29: =+L29+M29 -> 203.5478
G30: 2 | H30: Mapas de Riesgos Institucionales y de Corrupción de cada proceso
G31: 3
G32: 4
G33: 5
G34: 6
G35: 7
G36: 8
B37: =+LEFT(C37,4) -> 10.3 | C37: 10.3 El diseño de otros sistemas de gestión (bajo normas o estándares internacionales como la ISO), se intregan de forma adecuada a la estructura de control de la entidad. | D37: Dimension de Gestion con Valores para Resultados Dimension de Control Interno Lineas de Defensa | E37: Existe un Sistema de Gestión Integrado en la Entidad, dentro del cual mediante acto administrativo fue creado el Comité Institucional de Gestión y Desempeño. Controles definidos en los diferentes procedimientos estructurados en los respectivos procesos Marco de referencia MIPG | F37: 3 | G37: 1 | H37: Acto administrativo 296 de 2019 en donde se crea el Comité Institucional de Gestión y Desempeño. | I37: OCI verificó que la Entidad trabajó para renovar la certificación de su SGI, se realizaron reuniones con los lideres de cada proceso para actualizar e integrar los procedimientos a ISO 14001, ISO 45001, ISO 9001 (SGI) | J37: 3 | K37: =+IF(OR(ISBLANK(F37),ISBLANK(J37)),"",IF(OR(AND(F37=1,J37=1),AND(F37=1,J37=2),AND(F37=1,J37=3)),"Deficiencia de control mayor (diseño y ejecución)",IF(OR(AND(F37=2,J37=2),AND(F37=3,J37=1),AND(F37=3,J37=2),AND(F37=2,J37=1)),"Deficiencia de control (diseño o ejecución)",IF(AND(F37=2,J37=3),"Oportunidad de mejora","Mantenimiento del control")))) -> Mantenimiento del control | L37: =+IF(K37="",152,IF(K37="Deficiencia de control mayor (diseño y ejecución)",160,IF(K37="Deficiencia de control (diseño o ejecución)",180,IF(K37="Oportunidad de mejora",200,220)))) -> 220 | M37: 3.6458 | N37: =+L37+M37 -> 223.6458
G38: 2 | H38: Procedimientos diseñados en los 15 procesos que conforman la corparación.
G39: 3 | H39: Informes de Auditorías de Gestión.
G40: 4
G41: 5
G42: 6
G43: 7
G44: 8
C45: Lineamiento 11: Seleccionar y Desarrolla controles generales sobre TI para apoyar la consecución de los objetivos . | D45: DIMENSIÓN O POLÍTICA DEL MIPG ASOCIADA AL REQUERIMIENTO | E45: Explicación de cómo la Entidad evidencia que está dando respuesta al requerimiento Referencia a Procesos, Manuales/Políticas de Operación/Procedimientos/Instructivos u otros desarrollos que den cuente de su aplicación | F45: Presente (1/2/3) | G45: EVIDENCIA DEL CONTROL | J45: Funcionando (1/2/3) | K45: Evaluación
G46: No. | H46: Referencia a Análisis y verificaciones en el marco del Comité Institucional de Coordinación de Control Interno | I46: Observaciones de la evaluacion independiente (tener encuenta papel de líneas de defensa)
B48: =+LEFT(C48,4) -> 11.1 | C48: 11.1 La entidad establece actividades de control relevantes sobre las infraestructuras tecnológicas; los procesos de gestión de la seguridad y sobre los procesos de adquisición, desarrollo y mantenimiento de tecnologías. | D48: Dimension de Gestion con Valores para el Resultado Politica de Gobierno Digital Politica de Seguridad Digital | E48: Procedimientos diseñados en el proceso de Gestión de Sistemas. Procedimientos de Auditorías de Gestión y de Calidad. | F48: 2 | G48: 1 | H48: Informes de Auditorías de Gestión y de Calidad del proceso de Gestión de Sistemas. | I48: OCI realizará auditoría al Proceso de Gestión de Sistemas en la que se indagará sobre el proceso de seguridad de la información. Se cuenta con un sistema de tecnologías de información adecuado a las necesidades de la entidad. Pese a ello se necesita fortalecer las actividades referentes a la gestión de seguridad de la información y gestor documental. | J48: 3 | K48: =+IF(OR(ISBLANK(F48),ISBLANK(J48)),"",IF(OR(AND(F48=1,J48=1),AND(F48=1,J48=2),AND(F48=1,J48=3)),"Deficiencia de control mayor (diseño y ejecución)",IF(OR(AND(F48=2,J48=2),AND(F48=3,J48=1),AND(F48=3,J48=2),AND(F48=2,J48=1)),"Deficiencia de control (diseño o ejecución)",IF(AND(F48=2,J48=3),"Oportunidad de mejora","Mantenimiento del control")))) -> Oportunidad de mejora | L48: =+IF(K48="",152,IF(K48="Deficiencia de control mayor (diseño y ejecución)",160,IF(K48="Deficiencia de control (diseño o ejecución)",180,IF(K48="Oportunidad de mejora",200,220)))) -> 200 | M48: 3.7896 | N48: =+L48+M48 -> 203.7896
G49: 2 | H49: Mapa de riesgos del proceso Gestión de Sistemas
G50: 3
G51: 4
G52: 5
G53: 6
G54: 7
G55: 8
B56: =+LEFT(C56,4) -> 11.2 | C56: 11.2 Para los proveedores de tecnología selecciona y desarrolla actividades de control internas sobre las actividades realizadas por el proveedor de servicios. | D56: Dimension de Gestion con Valores para el Resultado Politica de Gobierno Digital Politica de Seguridad Digital | E56: Manual de contratación, supervisión e interventoría. Informe de Supervisión, en el cual se determinan las acciones que se ejercen como control a efectos que se ejecute debidamente el objeto del contrato con todas las obligaciones acordadas por parte de los proveedores en general. | F56: 3 | G56: 1 | H56: Informes de Interventoria y/o de supervisión | I56: Se evidencia que el Interventor y/o supervisor de los proveedores de servicios relacionados con las TIC, de acuerdo a sus competencias, realiza seguimiento, vigilancia y control sobre algunas de las actividades requeridas para una correcta, debida y completa ejecución del objeto del contrato con las obligaciones establecidas en el mismo. Igualmente, el interventor o el supervisor, realiza informes de Interventoria o de supervisión según el caso que den cuenta del estado de ejecución del contrato y de las irregularidades que se presenten en la ejecución del mismo. | J56: 2 | K56: =+IF(OR(ISBLANK(F56),ISBLANK(J56)),"",IF(OR(AND(F56=1,J56=1),AND(F56=1,J56=2),AND(F56=1,J56=3)),"Deficiencia de control mayor (diseño y ejecución)",IF(OR(AND(F56=2,J56=2),AND(F56=3,J56=1),AND(F56=3,J56=2),AND(F56=2,J56=1)),"Deficiencia de control (diseño o ejecución)",IF(AND(F56=2,J56=3),"Oportunidad de mejora","Mantenimiento del control")))) -> Deficiencia de control (diseño o ejecución) | L56: =+IF(K56="",152,IF(K56="Deficiencia de control mayor (diseño y ejecución)",160,IF(K56="Deficiencia de control (diseño o ejecución)",180,IF(K56="Oportunidad de mejora",200,220)))) -> 180 | M56: 3.8456 | N56: =+L56+M56 -> 183.8456
G57: 2
G58: 3
G59: 4
G60: 5
G61: 6
G62: 7
G63: 8
B64: =+LEFT(C64,4) -> 11.3 | C64: 11.3 Se cuenta con matrices de roles y usuarios siguiendo los principios de segregación de funciones. | D64: Dimension de Gestion con Valores para el Resultado Politica de Fortalecimiento Organizacional y Simplificacion de Procesos. | E64: Aunque se encuentran definidos los roles y perfiles en los diferentes aplicativos y programas de la corporación, no se cuenta con la matriz de roles y usuarios donde se definen a qué se tiene acceso según los cargos definidos en la entidad. | F64: 1 | G64: 1 | H64: la Oficina CTeI está en mora de consolidar una base de datos que consolida la información relacionada con la asignación de usuarios y contraseñas, así como los atributos en cada sistema de información con el que interactúa la entidad. | I64: Debido a la no existencia de la matriz de roles, perfiles y usuarios según las funciones de cada funcionario, la OCI recomendará la elabortación de dicha herramienta. | J64: 1 | K64: =+IF(OR(ISBLANK(F64),ISBLANK(J64)),"",IF(OR(AND(F64=1,J64=1),AND(F64=1,J64=2),AND(F64=1,J64=3)),"Deficiencia de control mayor (diseño y ejecución)",IF(OR(AND(F64=2,J64=2),AND(F64=3,J64=1),AND(F64=3,J64=2),AND(F64=2,J64=1)),"Deficiencia de control (diseño o ejecución)",IF(AND(F64=2,J64=3),"Oportunidad de mejora","Mantenimiento del control")))) -> Deficiencia de control mayor (diseño y ejecución) | L64: =+IF(K64="",152,IF(K64="Deficiencia de control mayor (diseño y ejecución)",160,IF(K64="Deficiencia de control (diseño o ejecución)",180,IF(K64="Oportunidad de mejora",200,220)))) -> 160 | M64: 3.9654 | N64: =+L64+M64 -> 163.9654
G65: 2 | H65: Reporte de perfiles exportados de cada aplicativo
G66: 3
G67: 4
G68: 5
G69: 6
G70: 7
G71: 8
B72: =+LEFT(C72,4) -> 11.4 | C72: 11.4 Se cuenta con información de la 3a línea de defensa, como evaluador independiente en relación con los controles implementados por el proveedor de servicios, para asegurar que los riesgos relacionados se mitigan. | D72: Dimension Control Interno Tercera Linea de Defensa | E72: No se cuenta con información de la tercera linea de defensa referente a la evaluación de los controles sobre los proveedores de servicios | F72: 1 | G72: 1 | H72: Elaborar la información de la tercera linea de defensa referente a la evaluación de los controles sobre los proveedores de de servicios | I72: No se cuenta con información de la tercera linea de defensa referente a la evaluación de los controles sobre los proveedores de servicios | J72: 1 | K72: =+IF(OR(ISBLANK(F72),ISBLANK(J72)),"",IF(OR(AND(F72=1,J72=1),AND(F72=1,J72=2),AND(F72=1,J72=3)),"Deficiencia de control mayor (diseño y ejecución)",IF(OR(AND(F72=2,J72=2),AND(F72=3,J72=1),AND(F72=3,J72=2),AND(F72=2,J72=1)),"Deficiencia de control (diseño o ejecución)",IF(AND(F72=2,J72=3),"Oportunidad de mejora","Mantenimiento del control")))) -> Deficiencia de control mayor (diseño y ejecución) | L72: =+IF(K72="",152,IF(K72="Deficiencia de control mayor (diseño y ejecución)",160,IF(K72="Deficiencia de control (diseño o ejecución)",180,IF(K72="Oportunidad de mejora",200,220)))) -> 160 | M72: 4.0123 | N72: =+L72+M72 -> 164.0123
G73: 2
G74: 3
G75: 4
G76: 5
G77: 6
G78: 7
G79: 8
C80: Lineamiento 12: Despliegue de políticas y procedimientos (Establece responsabilidades sobre la ejecución de las políticas y procedimientos; Adopta medidas correctivas; Revisa las políticas y procedimientos). | D80: DIMENSIÓN O POLÍTICA DEL MIPG ASOCIADA AL REQUERIMIENTO | E80: Explicación de cómo la Entidad evidencia que está dando respuesta al requerimiento Referencia a Procesos, Manuales/Políticas de Operación/Procedimientos/Instructivos u otros desarrollos que den cuente de su aplicación | F80: Presente (1/2/3) | G80: EVIDENCIA DEL CONTROL | J80: Funcionando (1/2/3) | K80: Evaluación
G81: No. | H81: Referencia a Análisis y verificaciones en el marco del Comité Institucional de Coordinación de Control Interno | I81: Observaciones de la evaluacion independiente (tener encuenta papel de líneas de defensa)
B83: =+LEFT(C83,4) -> 12.1 | C83: 12.1 Se evalúa la actualización de procesos, procedimientos, políticas de operación, instructivos, manuales u otras herramientas para garantizar la aplicación adecuada de las principales actividades de control. | D83: Dimension de Gestion con Valores para el Resultado Politica de Fortalecimiento Organizacional y Simplificacion de Procesos. | E83: Manual del sistema de gestión integrado Procedimiento de Revisión por la Dirección. Procedimiento de Auditorías de Gestión. Procedimiento Auditorias de Gestion y Auditoría - Sistema de Gestión Integrado | F83: 3 | G83: 1 | H83: Informe de Auditorías de Gestión. | I83: La OCI y el Grupo de SGI evalúa la actualización de procesos, procedimientos y demás documentos, las cuales son realizadas de acuerdo con las necesidades que tenga cada Area de la Entidad | J83: 3 | K83: =+IF(OR(ISBLANK(F83),ISBLANK(J83)),"",IF(OR(AND(F83=1,J83=1),AND(F83=1,J83=2),AND(F83=1,J83=3)),"Deficiencia de control mayor (diseño y ejecución)",IF(OR(AND(F83=2,J83=2),AND(F83=3,J83=1),AND(F83=3,J83=2),AND(F83=2,J83=1)),"Deficiencia de control (diseño o ejecución)",IF(AND(F83=2,J83=3),"Oportunidad de mejora","Mantenimiento del control")))) -> Mantenimiento del control | L83: =+IF(K83="",152,IF(K83="Deficiencia de control mayor (diseño y ejecución)",160,IF(K83="Deficiencia de control (diseño o ejecución)",180,IF(K83="Oportunidad de mejora",200,220)))) -> 220 | M83: 4.1236 | N83: =+L83+M83 -> 224.1236
G84: 2 | H84: Informe de Auditorias de Gestion y Auditoría - Sistema de Gestión Integrado
G85: 3 | H85: Informe de Revisión por la Dirección.
G86: 4
G87: 5
G88: 6
G89: 7
G90: 8
B91: =+LEFT(C91,4) -> 12.2 | C91: 12.2 El diseño de controles se evalúa frente a la gestión del riesgo. | D91: Todas las Dimensiones de MIPG | E91: Guìa para la Gestiòn de Riesgos. Procedimiento de Revisión por la Dirección. Procedimiento de Auditorías de Gestión. Procedimiento Auditorias de Gestion y Auditoría - Sistema de Gestión Integrado. Política de Gestión de Riesgos. | F91: 3 | G91: 1 | H91: Informe de Seguimiento al Programa de Transparencia y Ética Pública. | I91: La OCI realiza un informe de verificación de controles descritos en los diferentes mapas de riesgos tanto institucionales como de corrupción. En el mes de enero del presente año para la publicación del seguimiento del Programa de Transparencia y Ética Pública 2025, se realizó seguimiento a la aplicación de los controles de los inductores de riesgos. | J91: 3 | K91: =+IF(OR(ISBLANK(F91),ISBLANK(J91)),"",IF(OR(AND(F91=1,J91=1),AND(F91=1,J91=2),AND(F91=1,J91=3)),"Deficiencia de control mayor (diseño y ejecución)",IF(OR(AND(F91=2,J91=2),AND(F91=3,J91=1),AND(F91=3,J91=2),AND(F91=2,J91=1)),"Deficiencia de control (diseño o ejecución)",IF(AND(F91=2,J91=3),"Oportunidad de mejora","Mantenimiento del control")))) -> Mantenimiento del control | L91: =+IF(K91="",152,IF(K91="Deficiencia de control mayor (diseño y ejecución)",160,IF(K91="Deficiencia de control (diseño o ejecución)",180,IF(K91="Oportunidad de mejora",200,220)))) -> 220 | M91: 4.2365 | N91: =+L91+M91 -> 224.236500
G92: 2 | H92: Informe de verificación de controles que realiza OCI
G93: 3 | H93: Informe de Revisión por la Dirección.
G94: 4 | H94: Informe de Auditorías de Gestión.
G95: 5 | H95: Informe de Auditorias de Gestion y Auditoría - Sistema de Gestión Integrado
G96: 6
G97: 7
G98: 8
B99: =+LEFT(C99,4) -> 12.3 | C99: 12.3 Monitoreo a los riesgos acorde con la política de administración de riesgo establecida para la entidad. | D99: Dimension de Direccionamiento Estrategico y Planeacion Politica de Planeacion Institucional. | E99: Guìa para la Gestiòn de Riesgos. Procedimiento de Revisión por la Dirección. Procedimiento de Auditorías de Gestión. Procedimiento Auditorias de Gestion y Auditoría - Sistema de Gestión Integrado. Política de Gestión de Riesgos. | F99: 3 | G99: 1 | H99: Informe de Auditorías de Gestión. | I99: En la Guía establecida, se encuentra definido la metodologia para el monitoreo de los controles que se encuentran en los diferentes mapas de riesgos. La OCI realizará seguimiento a la aplicación de los controles de los riesgos de los procesos a través del formato Mapa de Riesgos Consolidado, en las auditorías programadas a realizarse durante la vigencia 2025. | J99: 2 | K99: =+IF(OR(ISBLANK(F99),ISBLANK(J99)),"",IF(OR(AND(F99=1,J99=1),AND(F99=1,J99=2),AND(F99=1,J99=3)),"Deficiencia de control mayor (diseño y ejecución)",IF(OR(AND(F99=2,J99=2),AND(F99=3,J99=1),AND(F99=3,J99=2),AND(F99=2,J99=1)),"Deficiencia de control (diseño o ejecución)",IF(AND(F99=2,J99=3),"Oportunidad de mejora","Mantenimiento del control")))) -> Deficiencia de control (diseño o ejecución) | L99: =+IF(K99="",152,IF(K99="Deficiencia de control mayor (diseño y ejecución)",160,IF(K99="Deficiencia de control (diseño o ejecución)",180,IF(K99="Oportunidad de mejora",200,220)))) -> 180 | M99: 4.23656 | N99: =+L99+M99 -> 184.236560
G100: 2 | H100: Informe de Auditorias de Gestion y Auditoría - Sistema de Gestión Integrado
G101: 3 | H101: Informe de verificación de controles que realiza OCI
G102: 4
G103: 5
G104: 6
G105: 7
G106: 8
B107: =+LEFT(C107,4) -> 12.4 | C107: 12.4 Verificación de que los responsables estén ejecutando los controles tal como han sido diseñados. | D107: Dimension Control Interno Segunda Linea de Defensa | E107: Guìa para la Gestiòn de Riesgos. Procedimiento de Revisión por la Dirección. Procedimiento de Auditorías de Gestión. Procedimiento Auditorias de Gestion y Auditoría - Sistema de Gestión Integrado. Política de Gestión de Riesgos. | F107: 3 | G107: 1 | H107: Informe de Auditorías de Gestión. | I107: En la Guía establecida, se encuentra definido la metodologia para verificar la aplicación de los controles que se encuentran en los diferentes mapas de riesgos, por parte de los responsables de los mismos. La OCI realizará seguimiento a la aplicación de los controles de los riesgos de los procesos a través del formato Mapa de Riesgos Consolidado, en las auditorías programadas a realizarse durante el segundo semestre de la vigencia 2025. | J107: 2 | K107: =+IF(OR(ISBLANK(F107),ISBLANK(J107)),"",IF(OR(AND(F107=1,J107=1),AND(F107=1,J107=2),AND(F107=1,J107=3)),"Deficiencia de control mayor (diseño y ejecución)",IF(OR(AND(F107=2,J107=2),AND(F107=3,J107=1),AND(F107=3,J107=2),AND(F107=2,J107=1)),"Deficiencia de control (diseño o ejecución)",IF(AND(F107=2,J107=3),"Oportunidad de mejora","Mantenimiento del control")))) -> Deficiencia de control (diseño o ejecución) | L107: =+IF(K107="",152,IF(K107="Deficiencia de control mayor (diseño y ejecución)",160,IF(K107="Deficiencia de control (diseño o ejecución)",180,IF(K107="Oportunidad de mejora",200,220)))) -> 180 | M107: 4.236568 | N107: =+L107+M107 -> 184.236568
G108: 2 | H108: Informe de Auditorias de Gestion y Auditoría - Sistema de Gestión Integral
G109: 3 | H109: Informe de verificación de controles que realiza OCI
G110: 4
G111: 5
G112: 6
G113: 7
G114: 8
B115: =+LEFT(C115,4) -> 12.5 | C115: 12.5 Se evalúa la adecuación de los controles a las especificidades de cada proceso, considerando cambios en regulaciones, estructuras internas u otros aspectos que determinen cambios en su diseño. | D115: Dimension Control Interno Lineas de Defensa | E115: Guìa para la Gestiòn de Riesgos. Procedimiento de Revisión por la Dirección. Procedimiento de Auditorías de Gestión. Procedimiento Auditorias de Gestion y Auditoría - Sistema de Gestión Integral. Política de Gestión de Riesgos. | F115: 3 | G115: 1 | H115: Informe de Auditorías de Gestión. | I115: En la Guía establecida, se encuentra definido la metodologia para diseñar y evaluar que los controles que se encuentran en los diferentes mapas de riesgos, esten acorde al proceso y actualizados, teniendo en cuenta la evaluación del contexto del proceso. La OCI realizará seguimiento a la aplicación de los controles de los riesgos de los procesos a través del formato Mapa de Riesgos Consolidado, en las auditorías programadas a realizarse durante el segundo semestre de la vigencia 2025. | J115: 3 | K115: =+IF(OR(ISBLANK(F115),ISBLANK(J115)),"",IF(OR(AND(F115=1,J115=1),AND(F115=1,J115=2),AND(F115=1,J115=3)),"Deficiencia de control mayor (diseño y ejecución)",IF(OR(AND(F115=2,J115=2),AND(F115=3,J115=1),AND(F115=3,J115=2),AND(F115=2,J115=1)),"Deficiencia de control (diseño o ejecución)",IF(AND(F115=2,J115=3),"Oportunidad de mejora","Mantenimiento del control")))) -> Mantenimiento del control | L115: =+IF(K115="",152,IF(K115="Deficiencia de control mayor (diseño y ejecución)",160,IF(K115="Deficiencia de control (diseño o ejecución)",180,IF(K115="Oportunidad de mejora",200,220)))) -> 220 | M115: 4.3569 | N115: =+L115+M115 -> 224.3569
G116: 2 | H116: Informe de Auditorias de Gestion y Auditoría - Sistema de Gestión Integral
G117: 3 | H117: Informe de verificación de controles que realiza OCI
G118: 4
G119: 5
G120: 6
G121: 7
G122: 8

Sheet Info y Comunicación
C12: INFORMACIÓN Y COMUNICACIÓN
C13: Este componente verifica que las políticas, directrices y mecanismos de consecución, captura, procesamiento y generación de datos dentro y en el entorno de cada entidad, satisfagan la necesidad de divulgar los resultados, de mostrar mejoras en la gestión administrativa y procurar que la información y la comunicación de la entidad y de cada proceso sea adecuada a las necesidades específicas de los grupos de valor y grupos de interés. Se requiere que todos los servidores de la entidad reciban un claro mensaje de la Alta Dirección sobre las responsabilidades de control. Deben comprender su función frente al Sistema de Control Interno.
B15: ID | C15: Lineamiento 13: Utilización de información relevante (Identifica requisitos de información; Capta fuentes de datos internas y externas; Procesa datos relevantes y los transforma en información). | D15: DIMENSIÓN O POLÍTICA DEL MIPG ASOCIADA AL REQUERIMIENTO | E15: Explicación de cómo la Entidad evidencia que está dando respuesta al requerimiento Referencia a Procesos, Manuales/Políticas de Operación/Procedimientos/Instructivos u otros desarrollos que den cuente de su aplicación | F15: Presente (1/2/3) | G15: EVIDENCIA DEL CONTROL | J15: Funcionando (1/2/3) | K15: Evaluación
G17: No. | H17: Referencia a Análisis y verificaciones en el marco del Comité Institucional de Coordinación de Control Interno | I17: Observaciones de la evaluacion independiente (tener encuenta papel de líneas de defensa)
B19: =+LEFT(C19,4) -> 13.1 | C19: 13.1 La entidad ha diseñado sistemas de información para capturar y procesar datos y transformarlos en información para alcanzar los requerimientos de información definidos. | D19: Dimension de Informacion y comunicación | E19: Plan de tratamiento de riesgos de seguridad y privacidad de la informacion. | F19: 3 | G19: 1 | H19: Auditorias de Gestion | I19: Desde la OCI, evidenciaremos el funcionamiento de los diferentes canales de información con los que cuenta la Entidad. | J19: 2 | K19: =+IF(OR(ISBLANK(F19),ISBLANK(J19)),"",IF(OR(AND(F19=1,J19=1),AND(F19=1,J19=2),AND(F19=1,J19=3)),"Deficiencia de control mayor (diseño y ejecución)",IF(OR(AND(F19=2,J19=2),AND(F19=3,J19=1),AND(F19=3,J19=2),AND(F19=2,J19=1)),"Deficiencia de control (diseño o ejecución)",IF(AND(F19=2,J19=3),"Oportunidad de mejora","Mantenimiento del control")))) -> Deficiencia de control (diseño o ejecución) | L19: =+IF(K19="",231,IF(K19="Deficiencia de control mayor (diseño y ejecución)",240,IF(K19="Deficiencia de control (diseño o ejecución)",260,IF(K19="Oportunidad de mejora",280,300)))) -> 260 | M19: 4.4569 | N19: =+L19+M19 -> 264.4569
G20: 2 | H20: Seguimiento Programa de Transparencia y Etica Publica 2025
G21: 3 | H21: Planes de Mejoramiento
G22: 4
G23: 5
G24: 6
G25: 7
G26: 8
B27: =+LEFT(C27,4) -> 13.2 | C27: 13.2 La entidad cuenta con el inventario de información relevante (interno/externa) y cuenta con un mecanismo que permita su actualización. | D27: Dimension de Informacion y comunicación Politica de Transparencia y Acceso a la Informaciòn Publica | E27: Instrumentos Documentales. Registro de activos de informacion. | F27: 3 | G27: 1 | H27: Auditorias de Gestion | I27: La Entidad cuenta con inventario de información relevante (interno/externo) | J27: 2 | K27: =+IF(OR(ISBLANK(F27),ISBLANK(J27)),"",IF(OR(AND(F27=1,J27=1),AND(F27=1,J27=2),AND(F27=1,J27=3)),"Deficiencia de control mayor (diseño y ejecución)",IF(OR(AND(F27=2,J27=2),AND(F27=3,J27=1),AND(F27=3,J27=2),AND(F27=2,J27=1)),"Deficiencia de control (diseño o ejecución)",IF(AND(F27=2,J27=3),"Oportunidad de mejora","Mantenimiento del control")))) -> Deficiencia de control (diseño o ejecución) | L27: =+IF(K27="",231,IF(K27="Deficiencia de control mayor (diseño y ejecución)",240,IF(K27="Deficiencia de control (diseño o ejecución)",260,IF(K27="Oportunidad de mejora",280,300)))) -> 260 | M27: 4.5632 | N27: =+L27+M27 -> 264.5632
G28: 2 | H28: Seguimiento Programa de Transparencia y Etica Publica 2025
G29: 3 | H29: Planes de Mejoramiento
G30: 4 | H30: Mapa de Riesgos procesos de Gestión de Sistemas y Gestión documental
G31: 5
G32: 6
G33: 7
G34: 8
B35: =+LEFT(C35,4) -> 13.3 | C35: 13.3 La entidad considera un ámbito amplio de fuentes de datos (internas y externas), para la captura y procesamiento posterior de información clave para la consecución de metas y objetivos. | D35: Dimension de Informacion y comunicación Politica de Transparencia y Acceso a la Informaciòn Publica | E35: Mapas de vulnerabilidad (Informacion SIG). Mapas de susceptibilidad (Informacion SIG). Mapas de erosion (Informacion SIG). Registro de muestreo de calidad de agua los priorizados humedales. Registro estaciones de monitoreo del aire. Registro de monitoreo de ruido en casos puntuales de seguimiento a infractores o denuncias (G.A.) | F35: 3 | G35: 1 | H35: Auditorias de Gestion | I35: Desde la OCI, evidenciaremos el funcionamiento de los diferentes canales de información con los que cuenta la Entidad. | J35: 2 | K35: =+IF(OR(ISBLANK(F35),ISBLANK(J35)),"",IF(OR(AND(F35=1,J35=1),AND(F35=1,J35=2),AND(F35=1,J35=3)),"Deficiencia de control mayor (diseño y ejecución)",IF(OR(AND(F35=2,J35=2),AND(F35=3,J35=1),AND(F35=3,J35=2),AND(F35=2,J35=1)),"Deficiencia de control (diseño o ejecución)",IF(AND(F35=2,J35=3),"Oportunidad de mejora","Mantenimiento del control")))) -> Deficiencia de control (diseño o ejecución) | L35: =+IF(K35="",231,IF(K35="Deficiencia de control mayor (diseño y ejecución)",240,IF(K35="Deficiencia de control (diseño o ejecución)",260,IF(K35="Oportunidad de mejora",280,300)))) -> 260 | M35: 4.6321 | N35: =+L35+M35 -> 264.6321
G36: 2 | H36: Seguimiento Programa de Transparencia y Etica Publica 2025
G37: 3 | H37: Planes de Mejoramiento
G38: 4 | H38: Mapa de Riesgos procesos de Gestión de Sistemas y Gestión documental
G39: 5
G40: 6
G41: 7
G42: 8
B43: =+LEFT(C43,4) -> 13.4 | C43: 13.4 La entidad ha desarrollado e implementado actividades de control sobre la integridad, confidencialidad y disponibilidad de los datos e información definidos como relevantes. | D43: Dimension de Informacion y comunicación Politica de Transparencia y Acceso a la Informaciòn Publica | E43: Plan de tratamiento de riesgos de seguridad y privacidad de la informacion. | F43: 3 | G43: 1 | H43: Seguimiento Programa de Transparencia y Etica Publica 2025 | I43: OCI evidencia que existe una politica de seguridad de la información que se encuentra un formato en Intranet y que se aplica para todos los trámites contractuales y usuarios de la Entidad. | J43: 3 | K43: =+IF(OR(ISBLANK(F43),ISBLANK(J43)),"",IF(OR(AND(F43=1,J43=1),AND(F43=1,J43=2),AND(F43=1,J43=3)),"Deficiencia de control mayor (diseño y ejecución)",IF(OR(AND(F43=2,J43=2),AND(F43=3,J43=1),AND(F43=3,J43=2),AND(F43=2,J43=1)),"Deficiencia de control (diseño o ejecución)",IF(AND(F43=2,J43=3),"Oportunidad de mejora","Mantenimiento del control")))) -> Mantenimiento del control | L43: =+IF(K43="",231,IF(K43="Deficiencia de control mayor (diseño y ejecución)",240,IF(K43="Deficiencia de control (diseño o ejecución)",260,IF(K43="Oportunidad de mejora",280,300)))) -> 300 | M43: 4.7896 | N43: =+L43+M43 -> 304.7896
G44: 2 | H44: Auditorias de Gestion
G45: 3 | H45: Mapa de Riesgos procesos de Gestión de Sistemas y Gestión documental
G46: 4
G47: 5
G48: 6
G49: 7
G50: 8
C51: Lineamiento 14: Comunicación Interna (Se comunica con el Comité Institucional de Coordinación de Control Interno o su equivalente; Facilita líneas de comunicación en todos los niveles; Selecciona el método de comunicación pertinente). | D51: DIMENSIÓN O POLÍTICA DEL MIPG ASOCIADA AL REQUERIMIENTO | E51: Explicación de cómo la Entidad evidencia que está dando respuesta al requerimiento Referencia a Procesos, Manuales/Políticas de Operación/Procedimientos/Instructivos u otros desarrollos que den cuente de su aplicación | F51: Presente (1/2/3) | G51: EVIDENCIA DEL CONTROL | J51: Funcionando (1/2/3) | K51: Evaluación
G53: No. | H53: Referencia a Análisis y verificaciones en el marco del Comité Institucional de Coordinación de Control Interno | I53: Observaciones de la evaluacion independiente (tener encuenta papel de líneas de defensa)
B55: =+LEFT(C55,4) -> 14.1 | C55: 14.1 Para la comunicación interna la Alta Dirección tiene mecanismos que permitan dar a conocer los objetivos y metas estratégicas, de manera tal que todo el personal entiende su papel en su consecución. (Considera los canales más apropiados y evalúa su efectividad). | D55: Dimension de Informacion y comunicación | E55: Informativo CRA. Carteleras. Chat Interno (Whatsapp). Comunicaciones Gestion Humana. | F55: 3 | G55: 1 | H55: Plan de Bienestar | I55: La OCI verifica de manera permanente el cumplimiento de este lineamiento, el cual ha sido eficiente, efectivo y pertinente. | J55: 3 | K55: =+IF(OR(ISBLANK(F55),ISBLANK(J55)),"",IF(OR(AND(F55=1,J55=1),AND(F55=1,J55=2),AND(F55=1,J55=3)),"Deficiencia de control mayor (diseño y ejecución)",IF(OR(AND(F55=2,J55=2),AND(F55=3,J55=1),AND(F55=3,J55=2),AND(F55=2,J55=1)),"Deficiencia de control (diseño o ejecución)",IF(AND(F55=2,J55=3),"Oportunidad de mejora","Mantenimiento del control")))) -> Mantenimiento del control | L55: =+IF(K55="",231,IF(K55="Deficiencia de control mayor (diseño y ejecución)",240,IF(K55="Deficiencia de control (diseño o ejecución)",260,IF(K55="Oportunidad de mejora",280,300)))) -> 300 | M55: 4.8965 | N55: =+L55+M55 -> 304.8965
G56: 2 | H56: Auditorias de Gestion
G57: 3 | H57: Indicadores de Gestión
G58: 4
G59: 5
G60: 6
G61: 7
G62: 8
B63: =+LEFT(C63,4) -> 14.2 | C63: 14.2 La entidad cuenta con políticas de operación relacionadas con la administración de la información (niveles de autoridad y responsabilidad) | D63: Dimension de Informacion y comunicación | E63: Plan de Comunicaciones. | F63: 3 | G63: 1 | H63: Mapa de Procesos (procedimientos) | I63: OCI evidencia que el proceso de Gestión de sistemas y los procedimientos de Comunicación Interna y Comunicación externa tienen líderes de procesos encargados del funcionamiento adecuado de sus procesos y procedimientos. | J63: 3 | K63: =+IF(OR(ISBLANK(F63),ISBLANK(J63)),"",IF(OR(AND(F63=1,J63=1),AND(F63=1,J63=2),AND(F63=1,J63=3)),"Deficiencia de control mayor (diseño y ejecución)",IF(OR(AND(F63=2,J63=2),AND(F63=3,J63=1),AND(F63=3,J63=2),AND(F63=2,J63=1)),"Deficiencia de control (diseño o ejecución)",IF(AND(F63=2,J63=3),"Oportunidad de mejora","Mantenimiento del control")))) -> Mantenimiento del control | L63: =+IF(K63="",231,IF(K63="Deficiencia de control mayor (diseño y ejecución)",240,IF(K63="Deficiencia de control (diseño o ejecución)",260,IF(K63="Oportunidad de mejora",280,300)))) -> 300 | M63: 4.9854 | N63: =+L63+M63 -> 304.9854
G64: 2 | H64: Auditorias de Gestion
G65: 3
G66: 4
G67: 5
G68: 6
G69: 7
G70: 8
B71: =+LEFT(C71,4) -> 14.3 | C71: 14.3 La entidad cuenta con canales de información internos para la denuncia anónima o confidencial de posibles situaciones irregulares y se cuenta con mecanismos específicos para su manejo, de manera tal que generen la confianza para utilizarlos. | D71: Dimension de Informacion y comunicación | E71: Control Interno de Gestion. Actas del Comité de Conviviencia Laboral. | F71: 3 | G71: 1 | H71: Auditorias de Gestion | I71: OCI verificará a traves de las actas del comité COCOLA y en las auditorias de gestión las actuaciones que hayan sido necesarias en cada caso. | J71: 2 | K71: =+IF(OR(ISBLANK(F71),ISBLANK(J71)),"",IF(OR(AND(F71=1,J71=1),AND(F71=1,J71=2),AND(F71=1,J71=3)),"Deficiencia de control mayor (diseño y ejecución)",IF(OR(AND(F71=2,J71=2),AND(F71=3,J71=1),AND(F71=3,J71=2),AND(F71=2,J71=1)),"Deficiencia de control (diseño o ejecución)",IF(AND(F71=2,J71=3),"Oportunidad de mejora","Mantenimiento del control")))) -> Deficiencia de control (diseño o ejecución) | L71: =+IF(K71="",231,IF(K71="Deficiencia de control mayor (diseño y ejecución)",240,IF(K71="Deficiencia de control (diseño o ejecución)",260,IF(K71="Oportunidad de mejora",280,300)))) -> 260 | M71: 5.0123 | N71: =+L71+M71 -> 265.0123
G72: 2 | H72: Actas del COCOLA
G73: 3 | H73: Actuaciones de Control Interno disciplinario
G74: 4
G75: 5
G76: 6
G77: 7
G78: 8
B79: =+LEFT(C79,4) -> 14.4 | C79: 14.4 La entidad establece e implementa políticas y procedimientos para facilitar una comunicación interna efectiva. | D79: Dimension de Informacion y comunicación | E79: Plan de comunicaciones. Chat Interno (Whatsapp) | F79: 3 | G79: 1 | H79: Auditorias de Gestion | I79: La OCI verifica de manera permanente el cumplimiento de este lineamiento, el cual ha sido eficiente, efectivo y pertinente. | J79: 3 | K79: =+IF(OR(ISBLANK(F79),ISBLANK(J79)),"",IF(OR(AND(F79=1,J79=1),AND(F79=1,J79=2),AND(F79=1,J79=3)),"Deficiencia de control mayor (diseño y ejecución)",IF(OR(AND(F79=2,J79=2),AND(F79=3,J79=1),AND(F79=3,J79=2),AND(F79=2,J79=1)),"Deficiencia de control (diseño o ejecución)",IF(AND(F79=2,J79=3),"Oportunidad de mejora","Mantenimiento del control")))) -> Mantenimiento del control | L79: =+IF(K79="",231,IF(K79="Deficiencia de control mayor (diseño y ejecución)",240,IF(K79="Deficiencia de control (diseño o ejecución)",260,IF(K79="Oportunidad de mejora",280,300)))) -> 300 | M79: 5.1236 | N79: =+L79+M79 -> 305.1236
G80: 2 | H80: Indicadores de Gestión
G81: 3 | H81: Plan de Comunicaciones
G82: 4
G83: 5
G84: 6
G85: 7
G86: 8
C87: Lineamiento 15: Comunicación con el exterior (Se comunica con los grupos de valor y con terceros externos interesados; Facilita líneas de comunicación). | D87: DIMENSIÓN O POLÍTICA DEL MIPG ASOCIADA AL REQUERIMIENTO | E87: Explicación de cómo la Entidad evidencia que está dando respuesta al requerimiento Referencia a Procesos, Manuales/Políticas de Operación/Procedimientos/Instructivos u otros desarrollos que den cuente de su aplicación | F87: Presente (1/2/3) | G87: EVIDENCIA DEL CONTROL | J87: Funcionando (1/2/3) | K87: Evaluación
G89: No. | H89: Referencia a Análisis y verificaciones en el marco del Comité Institucional de Coordinación de Control Interno | I89: Observaciones de la evaluacion independiente (tener encuenta papel de líneas de defensa)
B91: =+LEFT(C91,4) -> 15.1 | C91: 15.1 La entidad desarrolla e implementa controles que facilitan la comunicación externa, la cual incluye políticas y procedimientos. Incluye contratistas y proveedores de servicios tercerizados (cuando aplique). | D91: Dimension de Informacion y Comunicación Dimension de Control Interno Primera Linea de Defensa | E91: Plan de Comunicaciones. Redes Sociales (Instagram, Twiter, Facebook). Pagina web. | F91: 3 | G91: 1 | H91: Auditorias de Gestion | I91: La OCI verificó cumplimiento del Plan de comunicaciones 2025 | J91: 3 | K91: =+IF(OR(ISBLANK(F91),ISBLANK(J91)),"",IF(OR(AND(F91=1,J91=1),AND(F91=1,J91=2),AND(F91=1,J91=3)),"Deficiencia de control mayor (diseño y ejecución)",IF(OR(AND(F91=2,J91=2),AND(F91=3,J91=1),AND(F91=3,J91=2),AND(F91=2,J91=1)),"Deficiencia de control (diseño o ejecución)",IF(AND(F91=2,J91=3),"Oportunidad de mejora","Mantenimiento del control")))) -> Mantenimiento del control | L91: =+IF(K91="",231,IF(K91="Deficiencia de control mayor (diseño y ejecución)",240,IF(K91="Deficiencia de control (diseño o ejecución)",260,IF(K91="Oportunidad de mejora",280,300)))) -> 300 | M91: 5.2369 | N91: =+L91+M91 -> 305.2369
G92: 2 | H92: Plan de Comunicaciones 2025
G93: 3 | H93: Proceso Planeación Estrategica
G94: 4 | H94: Manual de Vocería y Manual de Atención al usuario
G95: 5
G96: 6
G97: 7
G98: 8
B99: =+LEFT(C99,4) -> 15.2 | C99: 15.2 La entidad cuenta con canales externos definidos de comunicación, asociados con el tipo de información a divulgar, y éstos son reconocidos a todo nivel de la organización. | D99: Dimension de Informacion y Comunicación Politica de Transparencia, acceso a la información pública y lucha contra la corrupción | E99: Pagina Web. Redes Sociales (Instagram, Facebook, Twiter). Chat Institucional | F99: 3 | G99: 1 | H99: Auditorias de Gestion | I99: La OCI junto con el grupo SGI evidenciaron los indicadores de gestión, los procesos y procedimientos en las auditorias que se realizaron en el segundo semestre de 2025. | J99: 3 | K99: =+IF(OR(ISBLANK(F99),ISBLANK(J99)),"",IF(OR(AND(F99=1,J99=1),AND(F99=1,J99=2),AND(F99=1,J99=3)),"Deficiencia de control mayor (diseño y ejecución)",IF(OR(AND(F99=2,J99=2),AND(F99=3,J99=1),AND(F99=3,J99=2),AND(F99=2,J99=1)),"Deficiencia de control (diseño o ejecución)",IF(AND(F99=2,J99=3),"Oportunidad de mejora","Mantenimiento del control")))) -> Mantenimiento del control | L99: =+IF(K99="",231,IF(K99="Deficiencia de control mayor (diseño y ejecución)",240,IF(K99="Deficiencia de control (diseño o ejecución)",260,IF(K99="Oportunidad de mejora",280,300)))) -> 300 | M99: 5.3654 | N99: =+L99+M99 -> 305.3654
G100: 2 | H100: Pagina web
G101: 3 | H101: Proceso Planeación Estrategica
G102: 4 | H102: Plan de Comunicaciones
G103: 5 | H103: Indicadores de Gestión
G104: 6 | H104: Manual de Vocería y Manual de Atención al usuario
G105: 7
G106: 8
B107: =+LEFT(C107,4) -> 15.3 | C107: 15.3 La entidad cuenta con procesos o procedimiento para el manejo de la información entrante (quién la recibe, quién la clasifica, quién la analiza), y a la respuesta requierida (quién la canaliza y la responde). | D107: Dimension de Informacion y Comunicación Politica de Gestion Documental Politica de Transparencia, acceso a la información pública y lucha contra la corrupción | E107: Orfeo. Pagina web. | F107: 2 | G107: 1 | H107: Auditorias de Gestion | I107: La OCI junto con el grupo SGI evidenciaron los indicadores de gestión, los procesos y procedimientos en las auditorias que se realizaron en el segundo semestre de 2025. | J107: 3 | K107: =+IF(OR(ISBLANK(F107),ISBLANK(J107)),"",IF(OR(AND(F107=1,J107=1),AND(F107=1,J107=2),AND(F107=1,J107=3)),"Deficiencia de control mayor (diseño y ejecución)",IF(OR(AND(F107=2,J107=2),AND(F107=3,J107=1),AND(F107=3,J107=2),AND(F107=2,J107=1)),"Deficiencia de control (diseño o ejecución)",IF(AND(F107=2,J107=3),"Oportunidad de mejora","Mantenimiento del control")))) -> Oportunidad de mejora | L107: =+IF(K107="",231,IF(K107="Deficiencia de control mayor (diseño y ejecución)",240,IF(K107="Deficiencia de control (diseño o ejecución)",260,IF(K107="Oportunidad de mejora",280,300)))) -> 280 | M107: 5.4563 | N107: =+L107+M107 -> 285.4563
G108: 2 | H108: Proceso Planeación Estrategica
G109: 3 | H109: Indicadores de Gestión
G110: 4 | H110: Proceso Gestión documental y de archivo
G111: 5 | H111: Manual de Vocería y Manual de Atención al usuario
G112: 6
G113: 7
G114: 8
B115: =+LEFT(C115,4) -> 15.4 | C115: 15.4 La entidad cuenta con procesos o procedimientos encaminados a evaluar periodicamente la efectividad de los canales de comunicación con partes externas, así como sus contenidos, de tal forma que se puedan mejorar. | D115: Dimension de Informacion y Comunicación Politica deControl Interno Lineas de Defensa | E115: Plan de comunicaciones 2025 | F115: 3 | G115: 1 | H115: Auditorias de Gestion | I115: La OCI junto con el grupo SGI evidenciaron los indicadores de gestión, los procesos y procedimientos en las auditorias que se realizaron en el segundo semestre de 2025. | J115: 3 | K115: =+IF(OR(ISBLANK(F115),ISBLANK(J115)),"",IF(OR(AND(F115=1,J115=1),AND(F115=1,J115=2),AND(F115=1,J115=3)),"Deficiencia de control mayor (diseño y ejecución)",IF(OR(AND(F115=2,J115=2),AND(F115=3,J115=1),AND(F115=3,J115=2),AND(F115=2,J115=1)),"Deficiencia de control (diseño o ejecución)",IF(AND(F115=2,J115=3),"Oportunidad de mejora","Mantenimiento del control")))) -> Mantenimiento del control | L115: =+IF(K115="",231,IF(K115="Deficiencia de control mayor (diseño y ejecución)",240,IF(K115="Deficiencia de control (diseño o ejecución)",260,IF(K115="Oportunidad de mejora",280,300)))) -> 300 | M115: 5.5632 | N115: =+L115+M115 -> 305.5632
G116: 2 | H116: Plan de Comunicaciones
G117: 3 | H117: Indicadores de Gestión
G118: 4 | H118: Proceso Planeación Estrategica
G119: 5 | H119: Manual de Vocería y Manual de Atención al usuario
G120: 6
G121: 7
G122: 8
B123: =+LEFT(C123,4) -> 15.5 | C123: 15.5 La entidad analiza periodicamente su caracterización de usuarios o grupos de valor, a fin de actualizarla cuando sea pertinente. | D123: Dimension de Direccionamiento Estrategico y Planeaciòn Politica de Planeacion Institucional | E123: Planes de Mejoramiento. Programa de Transparencia y Etica Publica | F123: 3 | G123: 1 | H123: Auditorias de Gestion | I123: OCI evidencia que se ha realizado revisión de los grupos de valor por medio del Proceso Gestión de mejoramiento. | J123: 3 | K123: =+IF(OR(ISBLANK(F123),ISBLANK(J123)),"",IF(OR(AND(F123=1,J123=1),AND(F123=1,J123=2),AND(F123=1,J123=3)),"Deficiencia de control mayor (diseño y ejecución)",IF(OR(AND(F123=2,J123=2),AND(F123=3,J123=1),AND(F123=3,J123=2),AND(F123=2,J123=1)),"Deficiencia de control (diseño o ejecución)",IF(AND(F123=2,J123=3),"Oportunidad de mejora","Mantenimiento del control")))) -> Mantenimiento del control | L123: =+IF(K123="",231,IF(K123="Deficiencia de control mayor (diseño y ejecución)",240,IF(K123="Deficiencia de control (diseño o ejecución)",260,IF(K123="Oportunidad de mejora",280,300)))) -> 300 | M123: 5.6321 | N123: =+L123+M123 -> 305.6321
G124: 2 | H124: Seguimiento Programa de Transparencia y Etica Publica 2025
G125: 3 | H125: Sistema de Gestión Integrado
G126: 4 | H126: Manual de Vocería y Manual de Atención al usuario
G127: 5
G128: 6
G129: 7
G130: 8
B131: =+LEFT(C131,4) -> 15.6 | C131: 15.6 La entidad analiza periodicamente los resultados frente a la evaluación de percepción por parte de los usuarios o grupos de valor para la incorporación de las mejoras correspondientes. | D131: Dimension de Direccionamiento Estrategico y Planeaciòn Politica de Planeacion Institucional | E131: Pagina web. Encuesta satisafaccion. Informe PQRS primer semestre 2025 | F131: 3 | G131: 1 | H131: Auditorias de Gestion | I131: Se evidencia informe de PQR con corte a 30 de diciembre de 2025, ademas del informe de revisión por la Dirección. | J131: 3 | K131: =+IF(OR(ISBLANK(F131),ISBLANK(J131)),"",IF(OR(AND(F131=1,J131=1),AND(F131=1,J131=2),AND(F131=1,J131=3)),"Deficiencia de control mayor (diseño y ejecución)",IF(OR(AND(F131=2,J131=2),AND(F131=3,J131=1),AND(F131=3,J131=2),AND(F131=2,J131=1)),"Deficiencia de control (diseño o ejecución)",IF(AND(F131=2,J131=3),"Oportunidad de mejora","Mantenimiento del control")))) -> Mantenimiento del control | L131: =+IF(K131="",231,IF(K131="Deficiencia de control mayor (diseño y ejecución)",240,IF(K131="Deficiencia de control (diseño o ejecución)",260,IF(K131="Oportunidad de mejora",280,300)))) -> 300 | M131: 5.7896 | N131: =+L131+M131 -> 305.7896
G132: 2 | H132: Manual de Vocería y Manual de Atención al usuario
G133: 3
G134: 4
G135: 5
G136: 6
G137: 7
G138: 8

Sheet Actividades de Monitoreo
C14: ACTIVIDADES DE MONITOREO
C15: Este componente considera actividades en el día a día de la gestión institucional, así como a través de evaluaciones periódicas (autoevaluación, auditorías). Su propósito es valorar: (i) la efectividad del control interno de la entidad pública; (ii) la eficiencia, eficacia y efectividad de los procesos; (iii) el nivel de ejecución de los planes, programas y proyectos; (iv) los resultados de la gestión, con el propósito de detectar desviaciones, establecer tendencias, y generar recomendaciones para orientar las acciones de mejoramiento de la entidad pública.
B17: ID | C17: Lineamiento 16. Evaluaciones continuas y/o separadas (autoevaluación, auditorías) para determinar si los componentes del Sistema de Control Interno están presentes y funcionando. | D17: DIMENSIÓN O POLÍTICA DEL MIPG ASOCIADA AL REQUERIMIENTO | E17: Explicación de cómo la Entidad evidencia que está dando respuesta al requerimiento Referencia a Procesos, Manuales/Políticas de Operación/Procedimientos/Instructivos u otros desarrollos que den cuente de su aplicación | F17: Presente (1/2/3) | G17: EVIDENCIA DEL CONTROL | J17: Funcionando (1/2/3) | K17: Evaluación
G18: No. | H18: Referencia a Análisis y verificaciones en el marco del Comité Institucional de Coordinación de Control Interno | I18: Observaciones de la evaluacion independiente (tener encuenta papel de líneas de defensa) *Nota: Unicamente diligenciar las observaciones que van vinculadas al desarrollo de actividades de las demas lineas de defensa
B20: =+LEFT(C20,4) -> 16.1 | C20: 16.1 El comité Institucional de Coordinación de Control Interno aprueba anualmente el Plan Anual de Auditoría presentado por parte del Jefe de Control Interno o quien haga sus veces y hace el correspondiente seguimiento a sus ejecución? | D20: Dimension de Control Interno Lineas Estrategica | E20: El Plan Anual de Auditoría para la vigencia 2025, se aprobó por medio de acta. | F20: 3 | G20: 1 | I20: Para la vigencia 2025, el Comité Institucional de Control Interno, aprobó el Plan Anual de Auditoría de Gestión, en el cual, teniendo en cuenta el modelo de priorización, se definieron 5 procesos a auditar. | J20: 3 | K20: =+IF(OR(ISBLANK(F20),ISBLANK(J20)),"",IF(OR(AND(F20=1,J20=1),AND(F20=1,J20=2),AND(F20=1,J20=3)),"Deficiencia de control mayor (diseño y ejecución)",IF(OR(AND(F20=2,J20=2),AND(F20=3,J20=1),AND(F20=3,J20=2),AND(F20=2,J20=1)),"Deficiencia de control (diseño o ejecución)",IF(AND(F20=2,J20=3),"Oportunidad de mejora","Mantenimiento del control")))) -> Mantenimiento del control | L20: =+IF(K20="",312,IF(K20="Deficiencia de control mayor (diseño y ejecución)",320,IF(K20="Deficiencia de control (diseño o ejecución)",340,IF(K20="Oportunidad de mejora",360,380)))) -> 380 | M20: 5.8745 | N20: =+L20+M20 -> 385.87450
G21: 2 | H21: Acta del Comité de Control Interno 014 en la cual se aprobó el Plan Anual de Auditorías de Gestón para la vigencia 2025
G22: 3
G23: 4
G24: 5
G25: 6
G26: 7
G27: 8
B28: =+LEFT(C28,4) -> 16.2 | C28: 16.2 La Alta Dirección periódicamente evalúa los resultados de las evaluaciones (contínuas e independientes) para concluir acerca de la efectividad del Sistema de Control Interno | D28: Dimension de Control Interno Lineas Estrategica | E28: Procedimiento de Revisión por la Dirección. Reglamento de Elaboración, Envío y Seguimiento de Plan de Mejoramiento. Procedimiento de Auditorías de Gestión. | F28: 3 | G28: 1 | I28: La efectividad del Sistema de Control Interno de la corporación, es evaluado por parte de la OCI, en las auditorías que realiza durante la vigencia, quien reporta a la Alta Dirección y los auditados el respectivo informe. Para el año 2025, se desarrolló el ciclo de auditorías en el segundo semestre. Como resultado del ciclo de auditorías de gestión, se generaró el respectivo informe final de auditoría 2025. Asimimso, la Alta DIrección evalua la efactividad del Sistema del Control Interno, en el informe de Revisión por la Dirección que realiza períodicamente y con el resultado que arroja la Evaluación Independiente del Sistema de Control Interno, que se realiza a corte junio y diciembre de cada año. | J28: 3 | K28: =+IF(OR(ISBLANK(F28),ISBLANK(J28)),"",IF(OR(AND(F28=1,J28=1),AND(F28=1,J28=2),AND(F28=1,J28=3)),"Deficiencia de control mayor (diseño y ejecución)",IF(OR(AND(F28=2,J28=2),AND(F28=3,J28=1),AND(F28=3,J28=2),AND(F28=2,J28=1)),"Deficiencia de control (diseño o ejecución)",IF(AND(F28=2,J28=3),"Oportunidad de mejora","Mantenimiento del control")))) -> Mantenimiento del control | L28: =+IF(K28="",312,IF(K28="Deficiencia de control mayor (diseño y ejecución)",320,IF(K28="Deficiencia de control (diseño o ejecución)",340,IF(K28="Oportunidad de mejora",360,380)))) -> 380 | M28: 5.9654 | N28: =+L28+M28 -> 385.96540
G29: 2
G30: 3 | H30: Informe de Revisión por la Dirección.
G31: 4 | H31: Informe del Sistema de Control Interno a corte diciembre de 2025
G32: 5 | H32: Informe de Auditorías de Gestión.
G33: 6 | H33: Planes de Mejoramiento
G34: 7
G35: 8
B36: =+LEFT(C36,4) -> 16.3 | C36: 16.3 La Oficina de Control Interno o quien haga sus veces realiza evaluaciones independientes periódicas (con una frecuencia definida con base en el análisis de riesgo), que le permite evaluar el diseño y operación de los controles establecidos y definir su efectividad para evitar la materialización de riesgos. | D36: Dimension de Control Interno Tercera Linea de Defensa | E36: Guìa para la Gestiòn de Riesgos. Procedimiento de Revisión por la Dirección. Procedimiento de Auditorías de Gestión. | F36: 3 | G36: 1 | H36: Informe de verificación de controles que realiza OCI | I36: La OCI realiza su evaluación independiente, con el desarrollo de las auditorías en cada vigencia, de las cuales se obtiene como resultado un Informe Final de Auditorías de Gestión, en el que se incluye el seguimiento a los controles que se toman para mitigar los riesgos identificados en la Entidad.Adicionalmente, la OCI realizará seguimiento a la aplicación de los controles de los riesgos de todos los procesos de la entidad, en el marco del Programa de Transparencia y ética Pública 2025, seguimiento que se realizó en las auditorías programadas durante la vigencia 2025. | J36: 3 | K36: =+IF(OR(ISBLANK(F36),ISBLANK(J36)),"",IF(OR(AND(F36=1,J36=1),AND(F36=1,J36=2),AND(F36=1,J36=3)),"Deficiencia de control mayor (diseño y ejecución)",IF(OR(AND(F36=2,J36=2),AND(F36=3,J36=1),AND(F36=3,J36=2),AND(F36=2,J36=1)),"Deficiencia de control (diseño o ejecución)",IF(AND(F36=2,J36=3),"Oportunidad de mejora","Mantenimiento del control")))) -> Mantenimiento del control | L36: =+IF(K36="",312,IF(K36="Deficiencia de control mayor (diseño y ejecución)",320,IF(K36="Deficiencia de control (diseño o ejecución)",340,IF(K36="Oportunidad de mejora",360,380)))) -> 380 | M36: 6.0123 | N36: =+L36+M36 -> 386.01230
G37: 2 | H37: Informe Final de Auditorías de Gestión 2025
G38: 3
G39: 4
G40: 5
G41: 6
G42: 7
G43: 8
B44: =+LEFT(C44,4) -> 16.4 | C44: 16.4 Acorde con el Esquema de Líneas de Defensa se han implementado procedimientos de monitoreo continuo como parte de las actividades de la 2a línea de defensa, a fin de contar con información clave para la toma de decisiones. | D44: Dimension de Control Interno Segunda Linea de Defensa | E44: Procedimiento de Revisión por la Dirección. Procedimiento de Auditorías del SGI. | F44: 3 | G44: 1 | H44: Informe de Seguimiento al Programa de Transparencia y ética Pública 2025 | I44: En el mes de diciembre de 2025, la OCI realizó seguimiento al Programa de Transperencia y Ética Pública 2025. En dicho seguimiento se realizó verificación a la aplicación de los controles descritos en la mapas de riesgos de los diferentes procesos de la corporación durante la vigencia 2025. Como resultado del ciclo de auditorías del SGI, se generará el respectivo informe final de auditoría 2025. | J44: 3 | K44: =+IF(OR(ISBLANK(F44),ISBLANK(J44)),"",IF(OR(AND(F44=1,J44=1),AND(F44=1,J44=2),AND(F44=1,J44=3)),"Deficiencia de control mayor (diseño y ejecución)",IF(OR(AND(F44=2,J44=2),AND(F44=3,J44=1),AND(F44=3,J44=2),AND(F44=2,J44=1)),"Deficiencia de control (diseño o ejecución)",IF(AND(F44=2,J44=3),"Oportunidad de mejora","Mantenimiento del control")))) -> Mantenimiento del control | L44: =+IF(K44="",312,IF(K44="Deficiencia de control mayor (diseño y ejecución)",320,IF(K44="Deficiencia de control (diseño o ejecución)",340,IF(K44="Oportunidad de mejora",360,380)))) -> 380 | M44: 6.1236 | N44: =+L44+M44 -> 386.12360
G45: 2 | H45: Informe de verificación de controles que realiza OCI
G46: 3 | H46: Informe Final de Auditorías del SGI
G47: 4
G48: 5
G49: 6
G50: 7
G51: 8
B52: =+LEFT(C52,4) -> 16.5 | C52: 16.5 Frente a las evaluaciones independientes la entidad considera evaluaciones externas de organismos de control, de vigilancia, certificadores, ONG´s u otros que permitan tener una mirada independiente de las operaciones. | D52: Dimension de Control Interno Lineas de Defensa | E52: Existen actividades diseñadas, pero éstas no se encuentran documentadas en las políticas/procedimientos u otras herramientas | F52: 3 | G52: 1 | H52: Informe de Auditoría expedido por el ICONTEC | I52: La Corporación, para la vigencia 2025, recibió visita de ICONTEC con el fin de obtener la renovación de la certificación del Sistema de Gestión Integrado. En el primer semestre del año 2025 la entidad fue objeto de auditoría por parte de la CGR. | J52: 3 | K52: =+IF(OR(ISBLANK(F52),ISBLANK(J52)),"",IF(OR(AND(F52=1,J52=1),AND(F52=1,J52=2),AND(F52=1,J52=3)),"Deficiencia de control mayor (diseño y ejecución)",IF(OR(AND(F52=2,J52=2),AND(F52=3,J52=1),AND(F52=3,J52=2),AND(F52=2,J52=1)),"Deficiencia de control (diseño o ejecución)",IF(AND(F52=2,J52=3),"Oportunidad de mejora","Mantenimiento del control")))) -> Mantenimiento del control | L52: =+IF(K52="",312,IF(K52="Deficiencia de control mayor (diseño y ejecución)",320,IF(K52="Deficiencia de control (diseño o ejecución)",340,IF(K52="Oportunidad de mejora",360,380)))) -> 380 | M52: 6.2136 | N52: =+L52+M52 -> 386.21360
G53: 2 | H53: Certificado del Sistema de Gestión Integrado
G54: 3 | H54: Informe de Auditoría expedido por la CGR
G55: 4
G56: 5
G57: 6
G58: 7
G59: 8
C60: Lineamiento 17. Evaluación y comunicación de deficiencias oportunamente (Evalúa los resultados, Comunica las deficiencias y Monitorea las medidas correctivas). | D60: DIMENSIÓN O POLÍTICA DEL MIPG ASOCIADA AL REQUERIMIENTO | E60: Explicación de cómo la Entidad evidencia que está dando respuesta al requerimiento Referencia a Procesos, Manuales/Políticas de Operación/Procedimientos/Instructivos u otros desarrollos que den cuente de su aplicación | F60: Presente (1/2/3) | G60: EVIDENCIA DEL CONTROL | J60: Funcionando (1/2/3) | K60: Evaluación
G61: No. | H61: Referencia a Análisis y verificaciones en el marco del Comité Institucional de Coordinación de Control Interno | I61: Observaciones de la evaluacion independiente (tener encuenta papel de líneas de defensa) *Nota: Unicamente diligenciar las observaciones que van vinculadas al desarrollo de actividades de las demas lineas de defensa
B63: =+LEFT(C63,5) -> 17.1 | C63: 17.1 A partir de la información de las evaluaciones independientes, se evalúan para determinar su efecto en el Sistema de Control Interno de la entidad y su impacto en el logro de los objetivos, a fin de determinar cursos de acción para su mejora. | D63: Dimension de Control Interno Lineas de Defensa | E63: Procedimiento Observaciones, no conformidades y acciones correctivas. Reglamento de Elaboración, Envío y Seguimiento de Plan de Mejoramiento. Procedimiento de Auditorías de Gestión. | F63: 3 | G63: 1 | H63: Seguimiento al Plan de Mejoramiento Institucional correspondiente a la Auditoría efectada por la OCI en la vigencia 2024 | I63: Los hallazgos detectados en Auditorías de Vigencias anteriores, fueron objeto de seguimiento teniendo en cuenta la inclusión de las acciones de mejora dentro de los Programas y Proyectos del PAI 2024 - 2027. Los procesos auditados en el año 2023 y 2024, a los que se identificaron Hallazgos y sugirieron Oportunidades de Mejora, suscribieron el respectivo Plan de Mejoramiento el cual fue objeto de seguimiento en el mes de diciembre de 2025. | J63: 3 | K63: =+IF(OR(ISBLANK(F63),ISBLANK(J63)),"",IF(OR(AND(F63=1,J63=1),AND(F63=1,J63=2),AND(F63=1,J63=3)),"Deficiencia de control mayor (diseño y ejecución)",IF(OR(AND(F63=2,J63=2),AND(F63=3,J63=1),AND(F63=3,J63=2),AND(F63=2,J63=1)),"Deficiencia de control (diseño o ejecución)",IF(AND(F63=2,J63=3),"Oportunidad de mejora","Mantenimiento del control")))) -> Mantenimiento del control | L63: =+IF(K63="",312,IF(K63="Deficiencia de control mayor (diseño y ejecución)",320,IF(K63="Deficiencia de control (diseño o ejecución)",340,IF(K63="Oportunidad de mejora",360,380)))) -> 380 | M63: 6.3258 | N63: =+L63+M63 -> 386.32580
G64: 2 | H64: Plan de Mejoramiento Institucional 2024
G65: 3
G66: 4
G67: 5
G68: 6
G69: 7
G70: 8
B71: =+LEFT(C71,5) -> 17.2 | C71: 17.2 Los informes recibidos de entes externos (organismos de control, auditores externos, entidades de vigilancia entre otros) se consolidan y se concluye sobre el impacto en el Sistema de Control Interno, a fin de determinar los cursos de acción. | D71: Dimension de Control Interno Lineas de Defensa | E71: Procedimiento Observaciones, no conformidades y acciones correctivas. Procedimiento de Auditorías de Gestión. | F71: 3 | G71: 1 | H71: Seguimiento al Plan de Mejoramiento suscrito con la CGR, corte 31 de diciembre de 2025 | I71: Como resultado de las auditorías realizadas por la CGR durante el 2025, se levantaron 9 hallazgos, para un total de 12 hallazgos, incluidos los de vigencias anteriores, los cuales fueron registrados en el respectivo Plan de Mejoramiento. | J71: 3 | K71: =+IF(OR(ISBLANK(F71),ISBLANK(J71)),"",IF(OR(AND(F71=1,J71=1),AND(F71=1,J71=2),AND(F71=1,J71=3)),"Deficiencia de control mayor (diseño y ejecución)",IF(OR(AND(F71=2,J71=2),AND(F71=3,J71=1),AND(F71=3,J71=2),AND(F71=2,J71=1)),"Deficiencia de control (diseño o ejecución)",IF(AND(F71=2,J71=3),"Oportunidad de mejora","Mantenimiento del control")))) -> Mantenimiento del control | L71: =+IF(K71="",312,IF(K71="Deficiencia de control mayor (diseño y ejecución)",320,IF(K71="Deficiencia de control (diseño o ejecución)",340,IF(K71="Oportunidad de mejora",360,380)))) -> 380 | M71: 6.4569 | N71: =+L71+M71 -> 386.45690
G72: 2 | H72: Informe de Acciones de mejora frente al Organismo Certificador
G73: 3 | H73: Plan de Mejoramiento
G74: 4
G75: 5
G76: 6
G77: 7
G78: 8
B79: =+LEFT(C79,5) -> 17.3 | C79: 17.3 La entidad cuenta con políticas donde se establezca a quién reportar las deficiencias de control interno como resultado del monitoreo continuo. | D79: Dimension de Control Interno Lineas de Defensa | E79: Comité de Dirección y actividades asignadas por el Director General en las reuniones realizadas durante la vigencia 2025. | F79: 2 | G79: 1 | H79: No han sido establecidas las poilíticas de reporte de deficiencias de control interno como resultado del monitoreo continuo | J79: 1 | K79: =+IF(OR(ISBLANK(F79),ISBLANK(J79)),"",IF(OR(AND(F79=1,J79=1),AND(F79=1,J79=2),AND(F79=1,J79=3)),"Deficiencia de control mayor (diseño y ejecución)",IF(OR(AND(F79=2,J79=2),AND(F79=3,J79=1),AND(F79=3,J79=2),AND(F79=2,J79=1)),"Deficiencia de control (diseño o ejecución)",IF(AND(F79=2,J79=3),"Oportunidad de mejora","Mantenimiento del control")))) -> Deficiencia de control (diseño o ejecución) | L79: =+IF(K79="",312,IF(K79="Deficiencia de control mayor (diseño y ejecución)",320,IF(K79="Deficiencia de control (diseño o ejecución)",340,IF(K79="Oportunidad de mejora",360,380)))) -> 340 | M79: 6.5632 | N79: =+L79+M79 -> 346.56320
G80: 2
G81: 3
G82: 4
G83: 5
G84: 6
G85: 7
G86: 8
B87: =+LEFT(C87,5) -> 17.4 | C87: 17.4 La Alta Dirección hace seguimiento a las acciones correctivas relacionadas con las deficiencias comunicadas sobre el Sistema de Control Interno y si se han cumplido en el tiempo establecido. | D87: Dimension de Control Interno Lineas de Defensa | E87: Procedimiento Observaciones, no conformidades y acciones correctivas.. Reglamento de Elaboración, Envío y Seguimiento de Plan de Mejoramiento. | F87: 3 | G87: 1 | H87: Seguimiento al Plan de Mejoramiento suscrito con la CGR, corte 31 de diciembre de 2025 | I87: La Alta Dirección monitorea el seguimiento al Plan de Mejoramiento suscrito con la CGR, con el el fin que se cumplan con los acciones de mejoras descritas y se realicen de forma oportuna los reportes pertinentes. | J87: 3 | K87: =+IF(OR(ISBLANK(F87),ISBLANK(J87)),"",IF(OR(AND(F87=1,J87=1),AND(F87=1,J87=2),AND(F87=1,J87=3)),"Deficiencia de control mayor (diseño y ejecución)",IF(OR(AND(F87=2,J87=2),AND(F87=3,J87=1),AND(F87=3,J87=2),AND(F87=2,J87=1)),"Deficiencia de control (diseño o ejecución)",IF(AND(F87=2,J87=3),"Oportunidad de mejora","Mantenimiento del control")))) -> Mantenimiento del control | L87: =+IF(K87="",312,IF(K87="Deficiencia de control mayor (diseño y ejecución)",320,IF(K87="Deficiencia de control (diseño o ejecución)",340,IF(K87="Oportunidad de mejora",360,380)))) -> 380 | M87: 6.7854 | N87: =+L87+M87 -> 386.78540
G88: 2 | H88: Informe de Acciones de mejora frente al Organismo Certificador
G89: 3 | H89: Plan de Mejoramiento Institucional
G90: 4
G91: 5
G92: 6
G93: 7
G94: 8
B95: =+LEFT(C95,5) -> 17.5 | C95: 17.5 Los procesos y/o servicios tercerizados, son evaluados acorde con su nivel de riesgos. | D95: Dimension de Control Interno Lineas de Defensa | E95: Guìa para la Gestiòn de Riesgos. Procedimiento Auditorias de Gestion y Auditoría - Sistema de Gestión Integral. | F95: 3 | G95: 1 | H95: Informe de verificación de controles establecidos en los mapas de riesgos que realiza OCI | I95: En los mapas de riesgos, se tienen establecidos inductores de riesgos y controles asociados a los procesos y/o servicios tercerizados, sobre todo en los procesos que tienen esta connotación. | J95: 3 | K95: =+IF(OR(ISBLANK(F95),ISBLANK(J95)),"",IF(OR(AND(F95=1,J95=1),AND(F95=1,J95=2),AND(F95=1,J95=3)),"Deficiencia de control mayor (diseño y ejecución)",IF(OR(AND(F95=2,J95=2),AND(F95=3,J95=1),AND(F95=3,J95=2),AND(F95=2,J95=1)),"Deficiencia de control (diseño o ejecución)",IF(AND(F95=2,J95=3),"Oportunidad de mejora","Mantenimiento del control")))) -> Mantenimiento del control | L95: =+IF(K95="",312,IF(K95="Deficiencia de control mayor (diseño y ejecución)",320,IF(K95="Deficiencia de control (diseño o ejecución)",340,IF(K95="Oportunidad de mejora",360,380)))) -> 380 | M95: 6.8745 | N95: =+L95+M95 -> 386.87450
G96: 2 | H96: Informes Auditorias de Gestion
G97: 3 | H97: Informes Auditoría Sistema de Gestión Integrado.
G98: 4
G99: 5
G100: 6
G101: 7
G102: 8
B103: =+LEFT(C103,5) -> 17.6 | C103: 17.6 Se evalúa la información suministrada por los usuarios (Sistema PQRD), así como de otras partes interesadas para la mejora del Sistema de Control Interno de la Entidad? | D103: Dimension de Informacion y Comunicación Dimension de Control Interno Lineas de Defensa | E103: Procedimiento de Peticiones y Quejas Escritas Procedimiento de Peticiones y Quejas Verbales. Medición de la Satisfacción de Partes Interesadas (Usuarios). | F103: 3 | G103: 1 | H103: Análisis del Informe de PQRDS y acciones de mejora pertinentes | I103: OCI elaboró el Informe de PQRDS del segundo semestre de 2025, el cual además fue publicado en página web. | J103: 3 | K103: =+IF(OR(ISBLANK(F103),ISBLANK(J103)),"",IF(OR(AND(F103=1,J103=1),AND(F103=1,J103=2),AND(F103=1,J103=3)),"Deficiencia de control mayor (diseño y ejecución)",IF(OR(AND(F103=2,J103=2),AND(F103=3,J103=1),AND(F103=3,J103=2),AND(F103=2,J103=1)),"Deficiencia de control (diseño o ejecución)",IF(AND(F103=2,J103=3),"Oportunidad de mejora","Mantenimiento del control")))) -> Mantenimiento del control | L103: =+IF(K103="",312,IF(K103="Deficiencia de control mayor (diseño y ejecución)",320,IF(K103="Deficiencia de control (diseño o ejecución)",340,IF(K103="Oportunidad de mejora",360,380)))) -> 380 | M103: 6.9874 | N103: =+L103+M103 -> 386.98740
G104: 2 | H104: Informe semestral de PQRDS, de la Oficina de Control Interno
G105: 3
G106: 4
G107: 5
G108: 6
G109: 7
G110: 8
B111: =+LEFT(C111,5) -> 17.7 | C111: 17.7 Verificación del avance y cumplimiento de las acciones incluidas en los planes de mejoramiento producto de las autoevaluaciones. (2ª Línea). | D111: Dimension de Control Interno Lineas de Defensa | E111: Reglamento de Elaboración, Envío y Seguimiento de Plan de Mejoramiento. Procedimiento Auditorias de Gestión y Auditoría - Sistema de Gestión Integral. | F111: 3 | G111: 1 | H111: Informes Auditorias de Gestión | I111: En el proceso de Auditorías de Gestión, se diseñó un reglamento, donde se establece la metodologia para la elaboración, envío y seguimientos a los PDM Institucionales. Actualmente, se encuentra un PDM vigemte, con tres (3) hallazgos y seis (6) oportunidades de mejora. | J111: 3 | K111: =+IF(OR(ISBLANK(F111),ISBLANK(J111)),"",IF(OR(AND(F111=1,J111=1),AND(F111=1,J111=2),AND(F111=1,J111=3)),"Deficiencia de control mayor (diseño y ejecución)",IF(OR(AND(F111=2,J111=2),AND(F111=3,J111=1),AND(F111=3,J111=2),AND(F111=2,J111=1)),"Deficiencia de control (diseño o ejecución)",IF(AND(F111=2,J111=3),"Oportunidad de mejora","Mantenimiento del control")))) -> Mantenimiento del control | L111: =+IF(K111="",312,IF(K111="Deficiencia de control mayor (diseño y ejecución)",320,IF(K111="Deficiencia de control (diseño o ejecución)",340,IF(K111="Oportunidad de mejora",360,380)))) -> 380 | M111: 6.98745 | N111: =+L111+M111 -> 386.98745
G112: 2 | H112: Informes Auditoría Sistema de Gestión Integrado.
G113: 3 | H113: Informre de Seguimiento a los PDM Institucionales vigentes
G114: 4
G115: 5
G116: 6
G117: 7
G118: 8
B119: =+LEFT(C119,5) -> 17.8 | C119: 17.8 Evaluación de la efectividad de las acciones incluidas en los Planes de mejoramiento producto de las auditorías internas y de entes externos. (3ª Línea) | D119: Dimension de Control Interno Lineas de Defensa | E119: Reglamento de Elaboración, Envío y Seguimiento de Plan de Mejoramiento. Procedimiento Auditorias de Gestión y Auditoría - Sistema de Gestión Integral. | F119: 3 | G119: 1 | H119: Informes Auditorias de Gestión | I119: La OCI, tiene como metodologia al momento de realizar las auditorías, incluir dentro del alcance de las mismas, evaluar la aplicación de las acciones establecidas en los PDM vigentes de los procesos que son objeto de auditoría. Se estableció un reglamento para el proceso de elaboración, envío y seguimiento de los PDM Institucionales. Actualmente, se encuentra un PDM vigemte, con dos hallazgos y 8 oportunidades de mejora, con fecha de cumplimiento a mas tardar el 31 de diciembre de 2025. Por otra parte, se enuentra vigente un Plan de Mejoramiento suscrito con la CGR, el cual, a la fecha de la elaboración del presente informe, las áreas pertinentes se encuentra en proceso de eleboración del seguimiento respectivo, para su posterior envío al ente regulador. | J119: 3 | K119: =+IF(OR(ISBLANK(F119),ISBLANK(J119)),"",IF(OR(AND(F119=1,J119=1),AND(F119=1,J119=2),AND(F119=1,J119=3)),"Deficiencia de control mayor (diseño y ejecución)",IF(OR(AND(F119=2,J119=2),AND(F119=3,J119=1),AND(F119=3,J119=2),AND(F119=2,J119=1)),"Deficiencia de control (diseño o ejecución)",IF(AND(F119=2,J119=3),"Oportunidad de mejora","Mantenimiento del control")))) -> Mantenimiento del control | L119: =+IF(K119="",312,IF(K119="Deficiencia de control mayor (diseño y ejecución)",320,IF(K119="Deficiencia de control (diseño o ejecución)",340,IF(K119="Oportunidad de mejora",360,380)))) -> 380 | M119: 6.987456 | N119: =+L119+M119 -> 386.98746
G120: 2 | H120: Informes Auditoría Sistema de Gestión Integrado.
G121: 3 | H121: Informre de Seguimiento a los PDM Institucionales vigentes
G122: 4
G123: 5
G124: 6
G125: 7
G126: 8
B127: =+LEFT(C127,5) -> 17.9 | C127: 17.9 Las deficiencias de control interno son reportadas a los responsables de nivel jerárquico superior, para tomar la acciones correspondientes? | D127: Dimension de Control Interno Lineas de Defensa | E127: Plan de Mejoramiento Institucional | F127: 3 | G127: 1 | H127: Elaboración del Plan de Mejoramiento Institucional, Auditoría vigencia 2025 | I127: Se llevó a cabo auditoría de gestión por parte de la Oficina de Control Interno, cuyo informe final fue enviado a la Dirección y líderes de cada proceso, para la elaboración del Plan de Mejoramiento a que hubiere lugar. | J127: 3 | K127: =+IF(OR(ISBLANK(F127),ISBLANK(J127)),"",IF(OR(AND(F127=1,J127=1),AND(F127=1,J127=2),AND(F127=1,J127=3)),"Deficiencia de control mayor (diseño y ejecución)",IF(OR(AND(F127=2,J127=2),AND(F127=3,J127=1),AND(F127=3,J127=2),AND(F127=2,J127=1)),"Deficiencia de control (diseño o ejecución)",IF(AND(F127=2,J127=3),"Oportunidad de mejora","Mantenimiento del control")))) -> Mantenimiento del control | L127: =+IF(K127="",312,IF(K127="Deficiencia de control mayor (diseño y ejecución)",320,IF(K127="Deficiencia de control (diseño o ejecución)",340,IF(K127="Oportunidad de mejora",360,380)))) -> 380 | M127: 7.0123 | N127: =+L127+M127 -> 387.01230
G128: 2
G129: 3
G130: 4
G131: 5
G132: 6
G133: 7
G134: 8

Sheet Analisis de Resultados
B4: ANÁLISIS DE RESULTADOS PARA LA TOMA DE DECISIONES
B6: Clasificación | D6: Descripción | F6: Observaciones del Control
B7: Mantenimiento del Control | D7: Cuando en el análisis de los requerimientos en los diferentes componentes del MECI se cuente con aspectos evaluados en nivel 3 (presente) y 3 (funcionando). | F7: Se encuentra presente y funciona correctamente, por lo tanto se requiere acciones o actividades dirigidas a su mantenimiento dentro del marco de las lineas de defensa. | I7: 100%
B8: Oportunidad de Mejora | D8: Cuando en el análisis de los requerimientos en los diferentes componentes del MECI se cuente con aspectos evaluados en nivel 2 (presente) y 3 (funcionando). | F8: Se encuentra presente y funcionando, pero requiere mejoras frente a su diseño, ya que opera de manera efectiva | H8: Se encuentra presente y funcionando, pero requiere mejoras frente a su diseño, ya que opera de manera efectiva | I8: 75%
B9: Deficiencia de Control (Diseño o Ejecución) | D9: Cuando en el análisis de los requerimientos en los diferentes componentes del MECI se cuente con aspectos evaluados en nivel 2 (presente) y 2 (funcionando); 3 (presente) y 1 (funcionando); 3 (presente) y 2 (funcionando);2 (presente) y 1 (funcionando) | F9: Se encuentra presente y funcionando, pero requiere acciones dirigidas a fortalecer o mejorar su diseño y/o ejecucion. | I9: 50%
B10: Deficiencia de Control Mayor (Diseño y Ejecución) | D10: Cuando en el análisis de los requerimientos en los diferentes componentes del MECI se cuente con aspectos evaluados en nivel 1 (presente) y 1 (funcionando); ;1 (presente) y 2 (funcionando); 1(presente) y 3 (funcionando). | F10: No se encuentra presente por lo tanto no esta funcionando, lo que hace que se requieran acciones dirigidas a fortalecer su diseño y puesta en marcha | I10: 25%
B11: Registro de deficiencias
B13: RESULTADOS | C13: FUENTE DEL ANALISIS | G13: CONTROL PRESENTE | H13: CONTROL FUNCIONANDO | I13: OBSERVACIONES DEL CONTROL | K13: NIVEL DE CUMPLIMIENTO-ASPECTOS PARTICULARES POR COMPONENTE | L13: NIVEL DE CUMPLIMIENTO- DEL COMPONENTE | M13: RECOMENDACIONES DESDE LA MIRADA DE EVALUACION INDEPENDIENTE | N13: PLANES DE MEJORAMIENTO (Donde aplique)
C14: Id. Requerimiento | D14: Componente | E14: Descripción del Lineamiento | F14: Pregunta Indicativa | N14: Accion(es) de Mejora | O14: Fecha de Inicio | P14: Fecha Terminacion | Q14: Responsable | R14: Seguimiento | S14: % de avance
B15: =+IF(ISTEXT(D15),J15,"") -> 1 | C15: =+IFERROR(INDEX(Hoja1!$A$2:$A$82,MATCH(J15,Hoja1!$H$2:$H$82,0)),"") -> 1.5 | D15: =IFERROR(VLOOKUP(C15,Hoja1!$A$2:$H$82,4,0),"") -> Ambiente de Control | E15: =+IFERROR(VLOOKUP(C15,Hoja1!$A$1:$J$82,10,0),"") -> La entidad demuestra el compromiso con la integridad (valores) y principios del servicio público | F15: =+IFERROR(VLOOKUP(C15,Hoja1!$A$1:$I$82,3,0),"") -> Análisis sobre viabilidad para el establecimiento de una línea de denuncia interna sobre situaciones irregulares o posibles incumplimientos al código de integridad. NOTA: Si la entidad ya cuenta con esta línea en funcionamiento, establecezca si ha aportado para la mejora de los mapas de riesgos o bien en otros ámbitos organizacionales. | G15: =+IFERROR(VLOOKUP(C15,Hoja1!$A$1:$K$82,11,0),"") -> 1 | H15: =+IFERROR(VLOOKUP(C15,Hoja1!$A$1:$L$82,12,0),"") -> 2 | I15: =+IF(OR(AND(G15=1,H15=1),AND(G15=1,H15=2),AND(G15=1,H15=3),G15="",H15=""),"No se encuentra presente por lo tanto no esta funcionando, lo que hace que se requieran acciones dirigidas a fortalecer su diseño y puesta en marcha",IF(OR(AND(G15=2,H15=2),AND(G15=3,H15=1),AND(G15=3,H15=2),AND(G15=2,H15=1)),"Se encuentra presente y funcionando, pero requiere acciones dirigidas a fortalecer o mejorar su diseño y/o ejecucion.",IF(AND(G15=2,H15=3),"Se encuentra presente y funcionando, pero requiere mejoras frente a su diseño, ya que opera de manera efectiva","Se encuentra presente y funciona correctamente, por lo tanto se requiere acciones o actividades dirigidas a su mantenimiento dentro del marco de las lineas de defensa."))) -> No se encuentra presente por lo tanto no esta funcionando, lo que hace que se requieran acciones dirigidas a fortalecer su diseño y puesta en marcha | J15: 1 | K15: =+VLOOKUP(C15,Hoja1!$A$1:$M$82,13,0) -> 25% | L15: =+AVERAGE(K15:K38) -> 71%
B16: =+IF(ISTEXT(D16),J16,"") -> 2 | C16: =+IFERROR(INDEX(Hoja1!$A$2:$A$82,MATCH(J16,Hoja1!$H$2:$H$82,0)),"") -> 3.1 | D16: =IFERROR(VLOOKUP(C16,Hoja1!$A$2:$H$82,4,0),"") -> Ambiente de Control | E16: =+IFERROR(VLOOKUP(C16,Hoja1!$A$1:$J$82,10,0),"") -> Establece la planeación estratégica con responsables, metas, tiempos que faciliten el seguimiento y aplicación de controles que garanticen de forma razonable su cumplimiento. Así mismo a partir de la política de riesgo, establecer sistemas de gestión de riesgos y las responsabilidades para controlar riesgos específicos bajo la supervisión de la alta dirección. | F16: =+IFERROR(VLOOKUP(C16,Hoja1!$A$1:$I$82,3,0),"") -> Definición y evaluación de la Política de Administración del Riesgo (Acorde con lineamientos de la Guía para la Administración del Riesgo de Gestión y Corrupción y Diseño de Controles en Entidades Públicas). La evaluación debe considerar su aplicación en la entidad, cambios en el entorno que puedan defnir ajustes, dificultades para su desarrollo | G16: =+IFERROR(VLOOKUP(C16,Hoja1!$A$1:$K$82,11,0),"") -> 1 | H16: =+IFERROR(VLOOKUP(C16,Hoja1!$A$1:$L$82,12,0),"") -> 2 | I16: =+IF(OR(AND(G16=1,H16=1),AND(G16=1,H16=2),AND(G16=1,H16=3),G16="",H16=""),"No se encuentra presente por lo tanto no esta funcionando, lo que hace que se requieran acciones dirigidas a fortalecer su diseño y puesta en marcha",IF(OR(AND(G16=2,H16=2),AND(G16=3,H16=1),AND(G16=3,H16=2),AND(G16=2,H16=1)),"Se encuentra presente y funcionando, pero requiere acciones dirigidas a fortalecer o mejorar su diseño y/o ejecucion.",IF(AND(G16=2,H16=3),"Se encuentra presente y funcionando, pero requiere mejoras frente a su diseño, ya que opera de manera efectiva","Se encuentra presente y funciona correctamente, por lo tanto se requiere acciones o actividades dirigidas a su mantenimiento dentro del marco de las lineas de defensa."))) -> No se encuentra presente por lo tanto no esta funcionando, lo que hace que se requieran acciones dirigidas a fortalecer su diseño y puesta en marcha | J16: 2 | K16: =+VLOOKUP(C16,Hoja1!$A$1:$M$82,13,0) -> 25%
B17: 3 | C17: =+IFERROR(INDEX(Hoja1!$A$2:$A$82,MATCH(J17,Hoja1!$H$2:$H$82,0)),"") -> 4.4 | D17: =IFERROR(VLOOKUP(C17,Hoja1!$A$2:$H$82,4,0),"") -> Ambiente de Control | E17: =+IFERROR(VLOOKUP(C17,Hoja1!$A$1:$J$82,10,0),"") -> Compromiso con la competencia de todo el personal, por lo que la gestión del talento humano tiene un carácter estratégico con el despliegue de actividades clave para todo el ciclo de vida del servidor público –ingreso, permanencia y retiro. | F17: =+IFERROR(VLOOKUP(C17,Hoja1!$A$1:$I$82,3,0),"") -> Analizar si se cuenta con políticas claras y comunicadas relacionadas con la responsabilidad de cada servidor sobre el desarrollo y mantenimiento del control interno (1a línea de defensa | G17: =+IFERROR(VLOOKUP(C17,Hoja1!$A$1:$K$82,11,0),"") -> 1 | H17: =+IFERROR(VLOOKUP(C17,Hoja1!$A$1:$L$82,12,0),"") -> 2 | I17: No se encuentra presente por lo tanto no esta funcionando, lo que hace que se requieran acciones dirigidas a fortalecer su diseño y puesta en marcha | J17: 3 | K17: =+VLOOKUP(C17,Hoja1!$A$1:$M$82,13,0) -> 25%
B18: 4 | C18: =+IFERROR(INDEX(Hoja1!$A$2:$A$82,MATCH(J18,Hoja1!$H$2:$H$82,0)),"") -> 1.2 | D18: =IFERROR(VLOOKUP(C18,Hoja1!$A$2:$H$82,4,0),"") -> Ambiente de Control | E18: =+IFERROR(VLOOKUP(C18,Hoja1!$A$1:$J$82,10,0),"") -> La entidad demuestra el compromiso con la integridad (valores) y principios del servicio público | F18: =+IFERROR(VLOOKUP(C18,Hoja1!$A$1:$I$82,3,0),"") -> Mecanismos para el manejo de conflictos de interés. | G18: =+IFERROR(VLOOKUP(C18,Hoja1!$A$1:$K$82,11,0),"") -> 3 | H18: =+IFERROR(VLOOKUP(C18,Hoja1!$A$1:$L$82,12,0),"") -> 2 | I18: Se encuentra presente y funcionando, pero requiere acciones dirigidas a fortalecer o mejorar su diseño y/o ejecucion. | J18: 4 | K18: =+VLOOKUP(C18,Hoja1!$A$1:$M$82,13,0) -> 50%
B19: 5 | C19: =+IFERROR(INDEX(Hoja1!$A$2:$A$82,MATCH(J19,Hoja1!$H$2:$H$82,0)),"") -> 1.3 | D19: =IFERROR(VLOOKUP(C19,Hoja1!$A$2:$H$82,4,0),"") -> Ambiente de Control | E19: =+IFERROR(VLOOKUP(C19,Hoja1!$A$1:$J$82,10,0),"") -> La entidad demuestra el compromiso con la integridad (valores) y principios del servicio público | F19: =+IFERROR(VLOOKUP(C19,Hoja1!$A$1:$I$82,3,0),"") -> Mecanismos frente a la detección y prevención del uso inadecuado de información privilegiada u otras situaciones que puedan implicar riesgos para la entidad | G19: =+IFERROR(VLOOKUP(C19,Hoja1!$A$1:$K$82,11,0),"") -> 3 | H19: =+IFERROR(VLOOKUP(C19,Hoja1!$A$1:$L$82,12,0),"") -> 2 | I19: Se encuentra presente y funcionando, pero requiere acciones dirigidas a fortalecer o mejorar su diseño y/o ejecucion. | J19: 5 | K19: =+VLOOKUP(C19,Hoja1!$A$1:$M$82,13,0) -> 50%
B20: 6 | C20: =+IFERROR(INDEX(Hoja1!$A$2:$A$82,MATCH(J20,Hoja1!$H$2:$H$82,0)),"") -> 1.4 | D20: =IFERROR(VLOOKUP(C20,Hoja1!$A$2:$H$82,4,0),"") -> Ambiente de Control | E20: =+IFERROR(VLOOKUP(C20,Hoja1!$A$1:$J$82,10,0),"") -> La entidad demuestra el compromiso con la integridad (valores) y principios del servicio público | F20: =+IFERROR(VLOOKUP(C20,Hoja1!$A$1:$I$82,3,0),"") -> La evaluación de las acciones transversales de integridad, mediante el monitoreo permanente de los riesgos de corrupción. | G20: =+IFERROR(VLOOKUP(C20,Hoja1!$A$1:$K$82,11,0),"") -> 3 | H20: =+IFERROR(VLOOKUP(C20,Hoja1!$A$1:$L$82,12,0),"") -> 2 | I20: Se encuentra presente y funcionando, pero requiere acciones dirigidas a fortalecer o mejorar su diseño y/o ejecucion. | J20: 6 | K20: =+VLOOKUP(C20,Hoja1!$A$1:$M$82,13,0) -> 50%
B21: 7 | C21: =+IFERROR(INDEX(Hoja1!$A$2:$A$82,MATCH(J21,Hoja1!$H$2:$H$82,0)),"") -> 2.2 | D21: =IFERROR(VLOOKUP(C21,Hoja1!$A$2:$H$82,4,0),"") -> Ambiente de Control | E21: =+IFERROR(VLOOKUP(C21,Hoja1!$A$1:$J$82,10,0),"") -> Aplicación de mecanismos para ejercer una adecuada supervisión del Sistema de Control Interno | F21: =+IFERROR(VLOOKUP(C21,Hoja1!$A$1:$I$82,3,0),"") -> Definición y documentación del Esquema de Líneas de Defens | G21: =+IFERROR(VLOOKUP(C21,Hoja1!$A$1:$K$82,11,0),"") -> 2 | H21: =+IFERROR(VLOOKUP(C21,Hoja1!$A$1:$L$82,12,0),"") -> 1 | I21: Se encuentra presente y funcionando, pero requiere acciones dirigidas a fortalecer o mejorar su diseño y/o ejecucion. | J21: 7 | K21: =+VLOOKUP(C21,Hoja1!$A$1:$M$82,13,0) -> 50%
B22: 8 | C22: =+IFERROR(INDEX(Hoja1!$A$2:$A$82,MATCH(J22,Hoja1!$H$2:$H$82,0)),"") -> 2.3 | D22: =IFERROR(VLOOKUP(C22,Hoja1!$A$2:$H$82,4,0),"") -> Ambiente de Control | E22: =+IFERROR(VLOOKUP(C22,Hoja1!$A$1:$J$82,10,0),"") -> Aplicación de mecanismos para ejercer una adecuada supervisión del Sistema de Control Interno | F22: =+IFERROR(VLOOKUP(C22,Hoja1!$A$1:$I$82,3,0),"") -> Definición de líneas de reporte en temas clave para la toma de decisiones, atendiendo el Esquema de Líneas de Defens | G22: =+IFERROR(VLOOKUP(C22,Hoja1!$A$1:$K$82,11,0),"") -> 2 | H22: =+IFERROR(VLOOKUP(C22,Hoja1!$A$1:$L$82,12,0),"") -> 1 | I22: Se encuentra presente y funcionando, pero requiere acciones dirigidas a fortalecer o mejorar su diseño y/o ejecucion. | J22: 8 | K22: =+VLOOKUP(C22,Hoja1!$A$1:$M$82,13,0) -> 50%
B23: 9 | C23: =+IFERROR(INDEX(Hoja1!$A$2:$A$82,MATCH(J23,Hoja1!$H$2:$H$82,0)),"") -> 3.2 | D23: =IFERROR(VLOOKUP(C23,Hoja1!$A$2:$H$82,4,0),"") -> Ambiente de Control | E23: =+IFERROR(VLOOKUP(C23,Hoja1!$A$1:$J$82,10,0),"") -> Establece la planeación estratégica con responsables, metas, tiempos que faciliten el seguimiento y aplicación de controles que garanticen de forma razonable su cumplimiento. Así mismo a partir de la política de riesgo, establecer sistemas de gestión de riesgos y las responsabilidades para controlar riesgos específicos bajo la supervisión de la alta dirección. | F23: =+IFERROR(VLOOKUP(C23,Hoja1!$A$1:$I$82,3,0),"") -> La Alta Dirección frente a la política de Administración del Riesgo definen los niveles de aceptación del riesgo, teniendo en cuenta cada uno de los objetivos establecidos. | G23: =+IFERROR(VLOOKUP(C23,Hoja1!$A$1:$K$82,11,0),"") -> 3 | H23: =+IFERROR(VLOOKUP(C23,Hoja1!$A$1:$L$82,12,0),"") -> 2 | I23: Se encuentra presente y funcionando, pero requiere acciones dirigidas a fortalecer o mejorar su diseño y/o ejecucion. | J23: 9 | K23: =+VLOOKUP(C23,Hoja1!$A$1:$M$82,13,0) -> 50%
B24: 10 | C24: =+IFERROR(INDEX(Hoja1!$A$2:$A$82,MATCH(J24,Hoja1!$H$2:$H$82,0)),"") -> 4.3 | D24: =IFERROR(VLOOKUP(C24,Hoja1!$A$2:$H$82,4,0),"") -> Ambiente de Control | E24: =+IFERROR(VLOOKUP(C24,Hoja1!$A$1:$J$82,10,0),"") -> Compromiso con la competencia de todo el personal, por lo que la gestión del talento humano tiene un carácter estratégico con el despliegue de actividades clave para todo el ciclo de vida del servidor público –ingreso, permanencia y retiro. | F24: =+IFERROR(VLOOKUP(C24,Hoja1!$A$1:$I$82,3,0),"") -> Evaluación de las actividades relacionadas con la permanencia del personal | G24: =+IFERROR(VLOOKUP(C24,Hoja1!$A$1:$K$82,11,0),"") -> 3 | H24: =+IFERROR(VLOOKUP(C24,Hoja1!$A$1:$L$82,12,0),"") -> 2 | I24: Se encuentra presente y funcionando, pero requiere acciones dirigidas a fortalecer o mejorar su diseño y/o ejecucion. | J24: 10 | K24: =+VLOOKUP(C24,Hoja1!$A$1:$M$82,13,0) -> 50%
B25: 11 | C25: =+IFERROR(INDEX(Hoja1!$A$2:$A$82,MATCH(J25,Hoja1!$H$2:$H$82,0)),"") -> 4.6 | D25: =IFERROR(VLOOKUP(C25,Hoja1!$A$2:$H$82,4,0),"") -> Ambiente de Control | E25: =+IFERROR(VLOOKUP(C25,Hoja1!$A$1:$J$82,10,0),"") -> Compromiso con la competencia de todo el personal, por lo que la gestión del talento humano tiene un carácter estratégico con el despliegue de actividades clave para todo el ciclo de vida del servidor público –ingreso, permanencia y retiro. | F25: =+IFERROR(VLOOKUP(C25,Hoja1!$A$1:$I$82,3,0),"") -> Evaluar el impacto del Plan Institucional de Capacitación - PI | G25: =+IFERROR(VLOOKUP(C25,Hoja1!$A$1:$K$82,11,0),"") -> 2 | H25: =+IFERROR(VLOOKUP(C25,Hoja1!$A$1:$L$82,12,0),"") -> 2 | I25: Se encuentra presente y funcionando, pero requiere acciones dirigidas a fortalecer o mejorar su diseño y/o ejecucion. | J25: 11 | K25: =+VLOOKUP(C25,Hoja1!$A$1:$M$82,13,0) -> 50%
B26: 12 | C26: =+IFERROR(INDEX(Hoja1!$A$2:$A$82,MATCH(J26,Hoja1!$H$2:$H$82,0)),"") -> 1.1 | D26: =IFERROR(VLOOKUP(C26,Hoja1!$A$2:$H$82,4,0),"") -> Ambiente de Control | E26: =+IFERROR(VLOOKUP(C26,Hoja1!$A$1:$J$82,10,0),"") -> La entidad demuestra el compromiso con la integridad (valores) y principios del servicio público | F26: =+IFERROR(VLOOKUP(C26,Hoja1!$A$1:$I$82,3,0),"") -> Aplicación del Código de Integridad. (incluye análisis de desviaciones, convivencia laboral, temas disciplinarios internos, quejas o denuncias sobres los servidores de la entidad, u otros temas relacionados) | G26: =+IFERROR(VLOOKUP(C26,Hoja1!$A$1:$K$82,11,0),"") -> 2 | H26: =+IFERROR(VLOOKUP(C26,Hoja1!$A$1:$L$82,12,0),"") -> 3 | I26: Se encuentra presente y funcionando, pero requiere mejoras frente a su diseño, ya que opera de manera efectiva | J26: 12 | K26: =+VLOOKUP(C26,Hoja1!$A$1:$M$82,13,0) -> 75%
B27: 13 | C27: =+IFERROR(INDEX(Hoja1!$A$2:$A$82,MATCH(J27,Hoja1!$H$2:$H$82,0)),"") -> 4.1 | D27: =IFERROR(VLOOKUP(C27,Hoja1!$A$2:$H$82,4,0),"") -> Ambiente de Control | E27: =+IFERROR(VLOOKUP(C27,Hoja1!$A$1:$J$82,10,0),"") -> Compromiso con la competencia de todo el personal, por lo que la gestión del talento humano tiene un carácter estratégico con el despliegue de actividades clave para todo el ciclo de vida del servidor público –ingreso, permanencia y retiro. | F27: =+IFERROR(VLOOKUP(C27,Hoja1!$A$1:$I$82,3,0),"") -> Evaluación de la Planeación Estratégica del Talento Humano | G27: =+IFERROR(VLOOKUP(C27,Hoja1!$A$1:$K$82,11,0),"") -> 2 | H27: =+IFERROR(VLOOKUP(C27,Hoja1!$A$1:$L$82,12,0),"") -> 3 | I27: Se encuentra presente y funcionando, pero requiere mejoras frente a su diseño, ya que opera de manera efectiva | J27: 13 | K27: =+VLOOKUP(C27,Hoja1!$A$1:$M$82,13,0) -> 75%
B28: 14 | C28: =+IFERROR(INDEX(Hoja1!$A$2:$A$82,MATCH(J28,Hoja1!$H$2:$H$82,0)),"") -> 4.2 | D28: =IFERROR(VLOOKUP(C28,Hoja1!$A$2:$H$82,4,0),"") -> Ambiente de Control | E28: =+IFERROR(VLOOKUP(C28,Hoja1!$A$1:$J$82,10,0),"") -> Compromiso con la competencia de todo el personal, por lo que la gestión del talento humano tiene un carácter estratégico con el despliegue de actividades clave para todo el ciclo de vida del servidor público –ingreso, permanencia y retiro. | F28: =+IFERROR(VLOOKUP(C28,Hoja1!$A$1:$I$82,3,0),"") -> Evaluación de las actividades relacionadas con el Ingreso del personal | G28: =+IFERROR(VLOOKUP(C28,Hoja1!$A$1:$K$82,11,0),"") -> 2 | H28: =+IFERROR(VLOOKUP(C28,Hoja1!$A$1:$L$82,12,0),"") -> 3 | I28: Se encuentra presente y funcionando, pero requiere mejoras frente a su diseño, ya que opera de manera efectiva | J28: 14 | K28: =+VLOOKUP(C28,Hoja1!$A$1:$M$82,13,0) -> 75%
B29: 15 | C29: =+IFERROR(INDEX(Hoja1!$A$2:$A$82,MATCH(J29,Hoja1!$H$2:$H$82,0)),"") -> 2.1 | D29: =IFERROR(VLOOKUP(C29,Hoja1!$A$2:$H$82,4,0),"") -> Ambiente de Control | E29: =+IFERROR(VLOOKUP(C29,Hoja1!$A$1:$J$82,10,0),"") -> Aplicación de mecanismos para ejercer una adecuada supervisión del Sistema de Control Interno | F29: =+IFERROR(VLOOKUP(C29,Hoja1!$A$1:$I$82,3,0),"") -> Creación o actualización del Comité Institucional de Coordinación de Control Interno (incluye ajustes en periodicidad para reunión, articulación con el Comité Institucioanl de Gestión y Desempeño) | G29: =+IFERROR(VLOOKUP(C29,Hoja1!$A$1:$K$82,11,0),"") -> 3 | H29: =+IFERROR(VLOOKUP(C29,Hoja1!$A$1:$L$82,12,0),"") -> 3 | I29: Se encuentra presente y funciona correctamente, por lo tanto se requiere acciones o actividades dirigidas a su mantenimiento dentro del marco de las lineas de defensa. | J29: 15 | K29: =+VLOOKUP(C29,Hoja1!$A$1:$M$82,13,0) -> 100%
B30: 16 | C30: =+IFERROR(INDEX(Hoja1!$A$2:$A$82,MATCH(J30,Hoja1!$H$2:$H$82,0)),"") -> 3.3 | D30: =IFERROR(VLOOKUP(C30,Hoja1!$A$2:$H$82,4,0),"") -> Ambiente de Control | E30: =+IFERROR(VLOOKUP(C30,Hoja1!$A$1:$J$82,10,0),"") -> Establece la planeación estratégica con responsables, metas, tiempos que faciliten el seguimiento y aplicación de controles que garanticen de forma razonable su cumplimiento. Así mismo a partir de la política de riesgo, establecer sistemas de gestión de riesgos y las responsabilidades para controlar riesgos específicos bajo la supervisión de la alta dirección. | F30: =+IFERROR(VLOOKUP(C30,Hoja1!$A$1:$I$82,3,0),"") -> Evaluación de la planeación estratégica, considerando alertas frente a posibles incumplimientos, necesidades de recursos, cambios en el entorno que puedan afectar su desarrollo, entre otros aspectos que garanticen de forma razonable su cumplimiento | G30: =+IFERROR(VLOOKUP(C30,Hoja1!$A$1:$K$82,11,0),"") -> 3 | H30: =+IFERROR(VLOOKUP(C30,Hoja1!$A$1:$L$82,12,0),"") -> 3 | I30: Se encuentra presente y funciona correctamente, por lo tanto se requiere acciones o actividades dirigidas a su mantenimiento dentro del marco de las lineas de defensa. | J30: 16 | K30: =+VLOOKUP(C30,Hoja1!$A$1:$M$82,13,0) -> 100%
B31: 17 | C31: =+IFERROR(INDEX(Hoja1!$A$2:$A$82,MATCH(J31,Hoja1!$H$2:$H$82,0)),"") -> 4.5 | D31: =IFERROR(VLOOKUP(C31,Hoja1!$A$2:$H$82,4,0),"") -> Ambiente de Control | E31: =+IFERROR(VLOOKUP(C31,Hoja1!$A$1:$J$82,10,0),"") -> Compromiso con la competencia de todo el personal, por lo que la gestión del talento humano tiene un carácter estratégico con el despliegue de actividades clave para todo el ciclo de vida del servidor público –ingreso, permanencia y retiro. | F31: =+IFERROR(VLOOKUP(C31,Hoja1!$A$1:$I$82,3,0),"") -> Evaluación de las actividades relacionadas con el retiro del personal | G31: =+IFERROR(VLOOKUP(C31,Hoja1!$A$1:$K$82,11,0),"") -> 3 | H31: =+IFERROR(VLOOKUP(C31,Hoja1!$A$1:$L$82,12,0),"") -> 3 | I31: Se encuentra presente y funciona correctamente, por lo tanto se requiere acciones o actividades dirigidas a su mantenimiento dentro del marco de las lineas de defensa. | J31: 17 | K31: =+VLOOKUP(C31,Hoja1!$A$1:$M$82,13,0) -> 100%
B32: 18 | C32: =+IFERROR(INDEX(Hoja1!$A$2:$A$82,MATCH(J32,Hoja1!$H$2:$H$82,0)),"") -> 5.1 | D32: =IFERROR(VLOOKUP(C32,Hoja1!$A$2:$H$82,4,0),"") -> Ambiente de Control | E32: =+IFERROR(VLOOKUP(C32,Hoja1!$A$1:$J$82,10,0),"") -> La entidad establece líneas de reporte dentro de la entidad para evaluar el funcionamiento del Sistema de Control Interno. | F32: =+IFERROR(VLOOKUP(C32,Hoja1!$A$1:$I$82,3,0),"") -> Acorde con la estructura del Esquema de Líneas de Defensa se han definido estándares de reporte, periodicidad y responsables frente a diferentes temas críticos de la entidad | G32: =+IFERROR(VLOOKUP(C32,Hoja1!$A$1:$K$82,11,0),"") -> 3 | H32: =+IFERROR(VLOOKUP(C32,Hoja1!$A$1:$L$82,12,0),"") -> 3 | I32: Se encuentra presente y funciona correctamente, por lo tanto se requiere acciones o actividades dirigidas a su mantenimiento dentro del marco de las lineas de defensa. | J32: 18 | K32: =+VLOOKUP(C32,Hoja1!$A$1:$M$82,13,0) -> 100%
B33: 19 | C33: =+IFERROR(INDEX(Hoja1!$A$2:$A$82,MATCH(J33,Hoja1!$H$2:$H$82,0)),"") -> 5.2 | D33: =IFERROR(VLOOKUP(C33,Hoja1!$A$2:$H$82,4,0),"") -> Ambiente de Control | E33: =+IFERROR(VLOOKUP(C33,Hoja1!$A$1:$J$82,10,0),"") -> La entidad establece líneas de reporte dentro de la entidad para evaluar el funcionamiento del Sistema de Control Interno. | F33: =+IFERROR(VLOOKUP(C33,Hoja1!$A$1:$I$82,3,0),"") -> La Alta Dirección analiza la información asociada con la generación de reportes financieros | G33: =+IFERROR(VLOOKUP(C33,Hoja1!$A$1:$K$82,11,0),"") -> 3 | H33: =+IFERROR(VLOOKUP(C33,Hoja1!$A$1:$L$82,12,0),"") -> 3 | I33: Se encuentra presente y funciona correctamente, por lo tanto se requiere acciones o actividades dirigidas a su mantenimiento dentro del marco de las lineas de defensa. | J33: 19 | K33: =+VLOOKUP(C33,Hoja1!$A$1:$M$82,13,0) -> 100%
B34: 20 | C34: =+IFERROR(INDEX(Hoja1!$A$2:$A$82,MATCH(J34,Hoja1!$H$2:$H$82,0)),"") -> 5.3 | D34: =IFERROR(VLOOKUP(C34,Hoja1!$A$2:$H$82,4,0),"") -> Ambiente de Control | E34: =+IFERROR(VLOOKUP(C34,Hoja1!$A$1:$J$82,10,0),"") -> La entidad establece líneas de reporte dentro de la entidad para evaluar el funcionamiento del Sistema de Control Interno. | F34: =+IFERROR(VLOOKUP(C34,Hoja1!$A$1:$I$82,3,0),"") -> Teniendo en cuenta la información suministrada por la 2a y 3a línea de defensa se toman decisiones a tiempo para garantizar el cumplimiento de las metas y objetivos | G34: =+IFERROR(VLOOKUP(C34,Hoja1!$A$1:$K$82,11,0),"") -> 3 | H34: =+IFERROR(VLOOKUP(C34,Hoja1!$A$1:$L$82,12,0),"") -> 3 | I34: Se encuentra presente y funciona correctamente, por lo tanto se requiere acciones o actividades dirigidas a su mantenimiento dentro del marco de las lineas de defensa. | J34: 20 | K34: =+VLOOKUP(C34,Hoja1!$A$1:$M$82,13,0) -> 100%
B35: 21 | C35: =+IFERROR(INDEX(Hoja1!$A$2:$A$82,MATCH(J35,Hoja1!$H$2:$H$82,0)),"") -> 5.4 | D35: =IFERROR(VLOOKUP(C35,Hoja1!$A$2:$H$82,4,0),"") -> Ambiente de Control | E35: =+IFERROR(VLOOKUP(C35,Hoja1!$A$1:$J$82,10,0),"") -> La entidad establece líneas de reporte dentro de la entidad para evaluar el funcionamiento del Sistema de Control Interno. | F35: =+IFERROR(VLOOKUP(C35,Hoja1!$A$1:$I$82,3,0),"") -> Se evalúa la estructura de control a partir de los cambios en procesos, procedimientos, u otras herramientas, a fin de garantizar su adecuada formulación y afectación frente a la gestión del riesgo | G35: =+IFERROR(VLOOKUP(C35,Hoja1!$A$1:$K$82,11,0),"") -> 3 | H35: =+IFERROR(VLOOKUP(C35,Hoja1!$A$1:$L$82,12,0),"") -> 3 | I35: Se encuentra presente y funciona correctamente, por lo tanto se requiere acciones o actividades dirigidas a su mantenimiento dentro del marco de las lineas de defensa. | J35: 21 | K35: =+VLOOKUP(C35,Hoja1!$A$1:$M$82,13,0) -> 100%
B36: 22 | C36: =+IFERROR(INDEX(Hoja1!$A$2:$A$82,MATCH(J36,Hoja1!$H$2:$H$82,0)),"") -> 5.5 | D36: =IFERROR(VLOOKUP(C36,Hoja1!$A$2:$H$82,4,0),"") -> Ambiente de Control | E36: =+IFERROR(VLOOKUP(C36,Hoja1!$A$1:$J$82,10,0),"") -> La entidad establece líneas de reporte dentro de la entidad para evaluar el funcionamiento del Sistema de Control Interno. | F36: =+IFERROR(VLOOKUP(C36,Hoja1!$A$1:$I$82,3,0),"") -> La entidad aprueba y hace seguimiento al Plan Anual de Auditoría presentado y ejecutado por parte de la Oficina de Control Interno | G36: =+IFERROR(VLOOKUP(C36,Hoja1!$A$1:$K$82,11,0),"") -> 3 | H36: =+IFERROR(VLOOKUP(C36,Hoja1!$A$1:$L$82,12,0),"") -> 3 | I36: Se encuentra presente y funciona correctamente, por lo tanto se requiere acciones o actividades dirigidas a su mantenimiento dentro del marco de las lineas de defensa. | J36: 22 | K36: =+VLOOKUP(C36,Hoja1!$A$1:$M$82,13,0) -> 100%
B37: 23 | C37: =+IFERROR(INDEX(Hoja1!$A$2:$A$82,MATCH(J37,Hoja1!$H$2:$H$82,0)),"") -> 5.6 | D37: =IFERROR(VLOOKUP(C37,Hoja1!$A$2:$H$82,4,0),"") -> Ambiente de Control | E37: =+IFERROR(VLOOKUP(C37,Hoja1!$A$1:$J$82,10,0),"") -> La entidad establece líneas de reporte dentro de la entidad para evaluar el funcionamiento del Sistema de Control Interno. | F37: =+IFERROR(VLOOKUP(C37,Hoja1!$A$1:$I$82,3,0),"") -> La entidad analiza los informes presentados por la Oficina de Control Interno y evalúa su impacto en relación con la mejora institucional | G37: =+IFERROR(VLOOKUP(C37,Hoja1!$A$1:$K$82,11,0),"") -> 3 | H37: =+IFERROR(VLOOKUP(C37,Hoja1!$A$1:$L$82,12,0),"") -> 3 | I37: Se encuentra presente y funciona correctamente, por lo tanto se requiere acciones o actividades dirigidas a su mantenimiento dentro del marco de las lineas de defensa. | J37: 23 | K37: =+VLOOKUP(C37,Hoja1!$A$1:$M$82,13,0) -> 100%
B38: 24 | C38: =+IFERROR(INDEX(Hoja1!$A$2:$A$82,MATCH(J38,Hoja1!$H$2:$H$82,0)),"") -> 4.7 | D38: =IFERROR(VLOOKUP(C38,Hoja1!$A$2:$H$82,4,0),"") -> Ambiente de Control | E38: =+IFERROR(VLOOKUP(C38,Hoja1!$A$1:$J$82,10,0),"") -> Compromiso con la competencia de todo el personal, por lo que la gestión del talento humano tiene un carácter estratégico con el despliegue de actividades clave para todo el ciclo de vida del servidor público –ingreso, permanencia y retiro. | F38: =+IFERROR(VLOOKUP(C38,Hoja1!$A$1:$I$82,3,0),"") -> Evaluación frente a los productos y servicios en los cuales participan los contratistas de apoyo | G38: =+IFERROR(VLOOKUP(C38,Hoja1!$A$1:$K$82,11,0),"") -> 3 | H38: =+IFERROR(VLOOKUP(C38,Hoja1!$A$1:$L$82,12,0),"") -> 3 | I38: Se encuentra presente y funciona correctamente, por lo tanto se requiere acciones o actividades dirigidas a su mantenimiento dentro del marco de las lineas de defensa. | J38: 24 | K38: =+VLOOKUP(C38,Hoja1!$A$1:$M$82,13,0) -> 100%
B39: 25 | C39: =+IFERROR(INDEX(Hoja1!$A$2:$A$82,MATCH(J39,Hoja1!$H$2:$H$82,0)),"") -> 8.3 | D39: =IFERROR(VLOOKUP(C39,Hoja1!$A$2:$H$82,4,0),"") -> Evaluación de riesgos | E39: =+IFERROR(VLOOKUP(C39,Hoja1!$A$1:$J$82,10,0),"") -> Evaluación del riesgo de fraude o corrupción. Cumplimiento artículo 73 de la Ley 1474 de 2011, relacionado con la prevención de los riesgos de corrupción. | F39: =+IFERROR(VLOOKUP(C39,Hoja1!$A$1:$I$82,3,0),"") -> Para el desarrollo de las actividades de control, la entidad considera la adecuada división de las funciones y que éstas se encuentren segregadas en diferentes personas para reducir el riesgo de acciones fraudulentas | G39: =+IFERROR(VLOOKUP(C39,Hoja1!$A$1:$K$82,11,0),"") -> 3 | H39: =+IFERROR(VLOOKUP(C39,Hoja1!$A$1:$L$82,12,0),"") -> 2 | I39: Se encuentra presente y funcionando, pero requiere acciones dirigidas a fortalecer o mejorar su diseño y/o ejecucion. | J39: 25 | K39: =+VLOOKUP(C39,Hoja1!$A$1:$M$82,13,0) -> 50% | L39: =+AVERAGE(K39:K55) -> 96%
B40: 26 | C40: =+IFERROR(INDEX(Hoja1!$A$2:$A$82,MATCH(J40,Hoja1!$H$2:$H$82,0)),"") -> 8.4 | D40: =IFERROR(VLOOKUP(C40,Hoja1!$A$2:$H$82,4,0),"") -> Evaluación de riesgos | E40: =+IFERROR(VLOOKUP(C40,Hoja1!$A$1:$J$82,10,0),"") -> Evaluación del riesgo de fraude o corrupción. Cumplimiento artículo 73 de la Ley 1474 de 2011, relacionado con la prevención de los riesgos de corrupción. | F40: =+IFERROR(VLOOKUP(C40,Hoja1!$A$1:$I$82,3,0),"") -> La Alta Dirección evalúa fallas en los controles (diseño y ejecución) para definir cursos de acción apropiados para su mejora | G40: =+IFERROR(VLOOKUP(C40,Hoja1!$A$1:$K$82,11,0),"") -> 2 | H40: =+IFERROR(VLOOKUP(C40,Hoja1!$A$1:$L$82,12,0),"") -> 3 | I40: Se encuentra presente y funcionando, pero requiere mejoras frente a su diseño, ya que opera de manera efectiva | J40: 26 | K40: =+VLOOKUP(C40,Hoja1!$A$1:$M$82,13,0) -> 75%
B41: 27 | C41: =+IFERROR(INDEX(Hoja1!$A$2:$A$82,MATCH(J41,Hoja1!$H$2:$H$82,0)),"") -> 6.1 | D41: =IFERROR(VLOOKUP(C41,Hoja1!$A$2:$H$82,4,0),"") -> Evaluación de riesgos | E41: =+IFERROR(VLOOKUP(C41,Hoja1!$A$1:$J$82,10,0),"") -> Definición de objetivos con suficiente claridad para identificar y evaluar los riesgos relacionados: i)Estratégicos; ii)Operativos; iii)Legales y Presupuestales; iv)De Información Financiera y no Financiera. | F41: =+IFERROR(VLOOKUP(C41,Hoja1!$A$1:$I$82,3,0),"") -> La Entidad cuenta con mecanismos para vincular o relacionar el plan estratégico con los objetivos estratégicos y estos a su vez con los objetivos operativos | G41: =+IFERROR(VLOOKUP(C41,Hoja1!$A$1:$K$82,11,0),"") -> 3 | H41: =+IFERROR(VLOOKUP(C41,Hoja1!$A$1:$L$82,12,0),"") -> 3 | I41: Se encuentra presente y funciona correctamente, por lo tanto se requiere acciones o actividades dirigidas a su mantenimiento dentro del marco de las lineas de defensa. | J41: 27 | K41: =+VLOOKUP(C41,Hoja1!$A$1:$M$82,13,0) -> 100%
B42: 28 | C42: =+IFERROR(INDEX(Hoja1!$A$2:$A$82,MATCH(J42,Hoja1!$H$2:$H$82,0)),"") -> 6.2 | D42: =IFERROR(VLOOKUP(C42,Hoja1!$A$2:$H$82,4,0),"") -> Evaluación de riesgos | E42: =+IFERROR(VLOOKUP(C42,Hoja1!$A$1:$J$82,10,0),"") -> Definición de objetivos con suficiente claridad para identificar y evaluar los riesgos relacionados: i)Estratégicos; ii)Operativos; iii)Legales y Presupuestales; iv)De Información Financiera y no Financiera. | F42: =+IFERROR(VLOOKUP(C42,Hoja1!$A$1:$I$82,3,0),"") -> Los objetivos de los procesos, programas o proyectos (según aplique) que están definidos, son específicos, medibles, alcanzables, relevantes, delimitados en el tiempo | G42: =+IFERROR(VLOOKUP(C42,Hoja1!$A$1:$K$82,11,0),"") -> 3 | H42: =+IFERROR(VLOOKUP(C42,Hoja1!$A$1:$L$82,12,0),"") -> 3 | I42: Se encuentra presente y funciona correctamente, por lo tanto se requiere acciones o actividades dirigidas a su mantenimiento dentro del marco de las lineas de defensa. | J42: 28 | K42: =+VLOOKUP(C42,Hoja1!$A$1:$M$82,13,0) -> 100%
B43: 29 | C43: =+IFERROR(INDEX(Hoja1!$A$2:$A$82,MATCH(J43,Hoja1!$H$2:$H$82,0)),"") -> 6.3 | D43: =IFERROR(VLOOKUP(C43,Hoja1!$A$2:$H$82,4,0),"") -> Evaluación de riesgos | E43: =+IFERROR(VLOOKUP(C43,Hoja1!$A$1:$J$82,10,0),"") -> Definición de objetivos con suficiente claridad para identificar y evaluar los riesgos relacionados: i)Estratégicos; ii)Operativos; iii)Legales y Presupuestales; iv)De Información Financiera y no Financiera. | F43: =+IFERROR(VLOOKUP(C43,Hoja1!$A$1:$I$82,3,0),"") -> La Alta Dirección evalúa periódicamente los objetivos establecidos para asegurar que estos continúan siendo consistentes y apropiados para la Entidad | G43: =+IFERROR(VLOOKUP(C43,Hoja1!$A$1:$K$82,11,0),"") -> 3 | H43: =+IFERROR(VLOOKUP(C43,Hoja1!$A$1:$L$82,12,0),"") -> 3 | I43: Se encuentra presente y funciona correctamente, por lo tanto se requiere acciones o actividades dirigidas a su mantenimiento dentro del marco de las lineas de defensa. | J43: 29 | K43: =+VLOOKUP(C43,Hoja1!$A$1:$M$82,13,0) -> 100%
B44: 30 | C44: =+IFERROR(INDEX(Hoja1!$A$2:$A$82,MATCH(J44,Hoja1!$H$2:$H$82,0)),"") -> 7.1 | D44: =IFERROR(VLOOKUP(C44,Hoja1!$A$2:$H$82,4,0),"") -> Evaluación de riesgos | E44: =+IFERROR(VLOOKUP(C44,Hoja1!$A$1:$J$82,10,0),"") -> Identificación y análisis de riesgos (Analiza factores internos y externos; Implica a los niveles apropiados de la dirección; Determina cómo responder a los riesgos; Determina la importancia de los riesgos). | F44: =+IFERROR(VLOOKUP(C44,Hoja1!$A$1:$I$82,3,0),"") -> Teniendo en cuenta la estructura de la política de Administración del Riesgo, su alcance define lineamientos para toda la entidad, incluyendo regionales, áreas tercerizadas u otras instancias que afectan la prestación del servicio | G44: =+IFERROR(VLOOKUP(C44,Hoja1!$A$1:$K$82,11,0),"") -> 3 | H44: =+IFERROR(VLOOKUP(C44,Hoja1!$A$1:$L$82,12,0),"") -> 3 | I44: Se encuentra presente y funciona correctamente, por lo tanto se requiere acciones o actividades dirigidas a su mantenimiento dentro del marco de las lineas de defensa. | J44: 30 | K44: =+VLOOKUP(C44,Hoja1!$A$1:$M$82,13,0) -> 100%
B45: 31 | C45: =+IFERROR(INDEX(Hoja1!$A$2:$A$82,MATCH(J45,Hoja1!$H$2:$H$82,0)),"") -> 7.2 | D45: =IFERROR(VLOOKUP(C45,Hoja1!$A$2:$H$82,4,0),"") -> Evaluación de riesgos | E45: =+IFERROR(VLOOKUP(C45,Hoja1!$A$1:$J$82,10,0),"") -> Identificación y análisis de riesgos (Analiza factores internos y externos; Implica a los niveles apropiados de la dirección; Determina cómo responder a los riesgos; Determina la importancia de los riesgos). | F45: =+IFERROR(VLOOKUP(C45,Hoja1!$A$1:$I$82,3,0),"") -> La Oficina de Planeación, Gerencia de Riesgos (donde existan), como 2a línea de defensa, consolidan información clave frente a la gestión del riesgo | G45: =+IFERROR(VLOOKUP(C45,Hoja1!$A$1:$K$82,11,0),"") -> 3 | H45: =+IFERROR(VLOOKUP(C45,Hoja1!$A$1:$L$82,12,0),"") -> 3 | I45: Se encuentra presente y funciona correctamente, por lo tanto se requiere acciones o actividades dirigidas a su mantenimiento dentro del marco de las lineas de defensa. | J45: 31 | K45: =+VLOOKUP(C45,Hoja1!$A$1:$M$82,13,0) -> 100%
B46: 32 | C46: =+IFERROR(INDEX(Hoja1!$A$2:$A$82,MATCH(J46,Hoja1!$H$2:$H$82,0)),"") -> 7.3 | D46: =IFERROR(VLOOKUP(C46,Hoja1!$A$2:$H$82,4,0),"") -> Evaluación de riesgos | E46: =+IFERROR(VLOOKUP(C46,Hoja1!$A$1:$J$82,10,0),"") -> Identificación y análisis de riesgos (Analiza factores internos y externos; Implica a los niveles apropiados de la dirección; Determina cómo responder a los riesgos; Determina la importancia de los riesgos). | F46: =+IFERROR(VLOOKUP(C46,Hoja1!$A$1:$I$82,3,0),"") -> A partir de la información consolidada y reportada por la 2a línea de defensa (7.2), la Alta Dirección analiza sus resultados y en especial considera si se han presentado materializaciones de riesgo | G46: =+IFERROR(VLOOKUP(C46,Hoja1!$A$1:$K$82,11,0),"") -> 3 | H46: =+IFERROR(VLOOKUP(C46,Hoja1!$A$1:$L$82,12,0),"") -> 3 | I46: Se encuentra presente y funciona correctamente, por lo tanto se requiere acciones o actividades dirigidas a su mantenimiento dentro del marco de las lineas de defensa. | J46: 32 | K46: =+VLOOKUP(C46,Hoja1!$A$1:$M$82,13,0) -> 100%
B47: 33 | C47: =+IFERROR(INDEX(Hoja1!$A$2:$A$82,MATCH(J47,Hoja1!$H$2:$H$82,0)),"") -> 7.4 | D47: =IFERROR(VLOOKUP(C47,Hoja1!$A$2:$H$82,4,0),"") -> Evaluación de riesgos | E47: =+IFERROR(VLOOKUP(C47,Hoja1!$A$1:$J$82,10,0),"") -> Identificación y análisis de riesgos (Analiza factores internos y externos; Implica a los niveles apropiados de la dirección; Determina cómo responder a los riesgos; Determina la importancia de los riesgos). | F47: =+IFERROR(VLOOKUP(C47,Hoja1!$A$1:$I$82,3,0),"") -> Cuando se detectan materializaciones de riesgo, se definen los cursos de acción en relación con la revisión y actualización del mapa de riesgos correspondiente | G47: =+IFERROR(VLOOKUP(C47,Hoja1!$A$1:$K$82,11,0),"") -> 3 | H47: =+IFERROR(VLOOKUP(C47,Hoja1!$A$1:$L$82,12,0),"") -> 3 | I47: Se encuentra presente y funciona correctamente, por lo tanto se requiere acciones o actividades dirigidas a su mantenimiento dentro del marco de las lineas de defensa. | J47: 33 | K47: =+VLOOKUP(C47,Hoja1!$A$1:$M$82,13,0) -> 100%
B48: 34 | C48: =+IFERROR(INDEX(Hoja1!$A$2:$A$82,MATCH(J48,Hoja1!$H$2:$H$82,0)),"") -> 7.5 | D48: =IFERROR(VLOOKUP(C48,Hoja1!$A$2:$H$82,4,0),"") -> Evaluación de riesgos | E48: =+IFERROR(VLOOKUP(C48,Hoja1!$A$1:$J$82,10,0),"") -> Identificación y análisis de riesgos (Analiza factores internos y externos; Implica a los niveles apropiados de la dirección; Determina cómo responder a los riesgos; Determina la importancia de los riesgos). | F48: =+IFERROR(VLOOKUP(C48,Hoja1!$A$1:$I$82,3,0),"") -> Se llevan a cabo seguimientos a las acciones definidas para resolver materializaciones de riesgo detectadas | G48: =+IFERROR(VLOOKUP(C48,Hoja1!$A$1:$K$82,11,0),"") -> 3 | H48: =+IFERROR(VLOOKUP(C48,Hoja1!$A$1:$L$82,12,0),"") -> 3 | I48: Se encuentra presente y funciona correctamente, por lo tanto se requiere acciones o actividades dirigidas a su mantenimiento dentro del marco de las lineas de defensa. | J48: 34 | K48: =+VLOOKUP(C48,Hoja1!$A$1:$M$82,13,0) -> 100%
B49: 35 | C49: =+IFERROR(INDEX(Hoja1!$A$2:$A$82,MATCH(J49,Hoja1!$H$2:$H$82,0)),"") -> 8.1 | D49: =IFERROR(VLOOKUP(C49,Hoja1!$A$2:$H$82,4,0),"") -> Evaluación de riesgos | E49: =+IFERROR(VLOOKUP(C49,Hoja1!$A$1:$J$82,10,0),"") -> Evaluación del riesgo de fraude o corrupción. Cumplimiento artículo 73 de la Ley 1474 de 2011, relacionado con la prevención de los riesgos de corrupción. | F49: =+IFERROR(VLOOKUP(C49,Hoja1!$A$1:$I$82,3,0),"") -> La Alta Dirección acorde con el análisis del entorno interno y externo, define los procesos, programas o proyectos (según aplique), susceptibles de posibles actos de corrupción | G49: =+IFERROR(VLOOKUP(C49,Hoja1!$A$1:$K$82,11,0),"") -> 3 | H49: =+IFERROR(VLOOKUP(C49,Hoja1!$A$1:$L$82,12,0),"") -> 3 | I49: Se encuentra presente y funciona correctamente, por lo tanto se requiere acciones o actividades dirigidas a su mantenimiento dentro del marco de las lineas de defensa. | J49: 35 | K49: =+VLOOKUP(C49,Hoja1!$A$1:$M$82,13,0) -> 100%
B50: 36 | C50: =+IFERROR(INDEX(Hoja1!$A$2:$A$82,MATCH(J50,Hoja1!$H$2:$H$82,0)),"") -> 8.2 | D50: =IFERROR(VLOOKUP(C50,Hoja1!$A$2:$H$82,4,0),"") -> Evaluación de riesgos | E50: =+IFERROR(VLOOKUP(C50,Hoja1!$A$1:$J$82,10,0),"") -> Evaluación del riesgo de fraude o corrupción. Cumplimiento artículo 73 de la Ley 1474 de 2011, relacionado con la prevención de los riesgos de corrupción. | F50: =+IFERROR(VLOOKUP(C50,Hoja1!$A$1:$I$82,3,0),"") -> La Alta Dirección monitorea los riesgos de corrupción con la periodicidad establecida en la Política de Administración del Riesgo | G50: =+IFERROR(VLOOKUP(C50,Hoja1!$A$1:$K$82,11,0),"") -> 3 | H50: =+IFERROR(VLOOKUP(C50,Hoja1!$A$1:$L$82,12,0),"") -> 3 | I50: Se encuentra presente y funciona correctamente, por lo tanto se requiere acciones o actividades dirigidas a su mantenimiento dentro del marco de las lineas de defensa. | J50: 36 | K50: =+VLOOKUP(C50,Hoja1!$A$1:$M$82,13,0) -> 100%
B51: 37 | C51: =+IFERROR(INDEX(Hoja1!$A$2:$A$82,MATCH(J51,Hoja1!$H$2:$H$82,0)),"") -> 9.1 | D51: =IFERROR(VLOOKUP(C51,Hoja1!$A$2:$H$82,4,0),"") -> Evaluación de riesgos | E51: =+IFERROR(VLOOKUP(C51,Hoja1!$A$1:$J$82,10,0),"") -> Identificación y análisis de cambios significativos | F51: =+IFERROR(VLOOKUP(C51,Hoja1!$A$1:$I$82,3,0),"") -> Acorde con lo establecido en la política de Administración del Riesgo, se monitorean los factores internos y externos definidos para la entidad, a fin de establecer cambios en el entorno que determinen nuevos riesgos o ajustes a los existentes | G51: =+IFERROR(VLOOKUP(C51,Hoja1!$A$1:$K$82,11,0),"") -> 3 | H51: =+IFERROR(VLOOKUP(C51,Hoja1!$A$1:$L$82,12,0),"") -> 3 | I51: Se encuentra presente y funciona correctamente, por lo tanto se requiere acciones o actividades dirigidas a su mantenimiento dentro del marco de las lineas de defensa. | J51: 37 | K51: =+VLOOKUP(C51,Hoja1!$A$1:$M$82,13,0) -> 100%
B52: 38 | C52: =+IFERROR(INDEX(Hoja1!$A$2:$A$82,MATCH(J52,Hoja1!$H$2:$H$82,0)),"") -> 9.2 | D52: =IFERROR(VLOOKUP(C52,Hoja1!$A$2:$H$82,4,0),"") -> Evaluación de riesgos | E52: =+IFERROR(VLOOKUP(C52,Hoja1!$A$1:$J$82,10,0),"") -> Identificación y análisis de cambios significativos | F52: =+IFERROR(VLOOKUP(C52,Hoja1!$A$1:$I$82,3,0),"") -> La Alta Dirección analiza los riesgos asociados a actividades tercerizadas, regionales u otras figuras externas que afecten la prestación del servicio a los usuarios, basados en los informes de la segunda y tercera linea de defensa | G52: =+IFERROR(VLOOKUP(C52,Hoja1!$A$1:$K$82,11,0),"") -> 3 | H52: =+IFERROR(VLOOKUP(C52,Hoja1!$A$1:$L$82,12,0),"") -> 3 | I52: Se encuentra presente y funciona correctamente, por lo tanto se requiere acciones o actividades dirigidas a su mantenimiento dentro del marco de las lineas de defensa. | J52: 38 | K52: =+VLOOKUP(C52,Hoja1!$A$1:$M$82,13,0) -> 100%
B53: 39 | C53: =+IFERROR(INDEX(Hoja1!$A$2:$A$82,MATCH(J53,Hoja1!$H$2:$H$82,0)),"") -> 9.3 | D53: =IFERROR(VLOOKUP(C53,Hoja1!$A$2:$H$82,4,0),"") -> Evaluación de riesgos | E53: =+IFERROR(VLOOKUP(C53,Hoja1!$A$1:$J$82,10,0),"") -> Identificación y análisis de cambios significativos | F53: =+IFERROR(VLOOKUP(C53,Hoja1!$A$1:$I$82,3,0),"") -> La Alta Dirección monitorea los riesgos aceptados revisando que sus condiciones no hayan cambiado y definir su pertinencia para sostenerlos o ajustarlos | G53: =+IFERROR(VLOOKUP(C53,Hoja1!$A$1:$K$82,11,0),"") -> 3 | H53: =+IFERROR(VLOOKUP(C53,Hoja1!$A$1:$L$82,12,0),"") -> 3 | I53: Se encuentra presente y funciona correctamente, por lo tanto se requiere acciones o actividades dirigidas a su mantenimiento dentro del marco de las lineas de defensa. | J53: 39 | K53: =+VLOOKUP(C53,Hoja1!$A$1:$M$82,13,0) -> 100%
B54: 40 | C54: =+IFERROR(INDEX(Hoja1!$A$2:$A$82,MATCH(J54,Hoja1!$H$2:$H$82,0)),"") -> 9.4 | D54: =IFERROR(VLOOKUP(C54,Hoja1!$A$2:$H$82,4,0),"") -> Evaluación de riesgos | E54: =+IFERROR(VLOOKUP(C54,Hoja1!$A$1:$J$82,10,0),"") -> Identificación y análisis de cambios significativos | F54: =+IFERROR(VLOOKUP(C54,Hoja1!$A$1:$I$82,3,0),"") -> La Alta Dirección evalúa fallas en los controles (diseño y ejecución) para definir cursos de acción apropiados para su mejora, basados en los informes de la segunda y tercera linea de defensa | G54: =+IFERROR(VLOOKUP(C54,Hoja1!$A$1:$K$82,11,0),"") -> 3 | H54: =+IFERROR(VLOOKUP(C54,Hoja1!$A$1:$L$82,12,0),"") -> 3 | I54: Se encuentra presente y funciona correctamente, por lo tanto se requiere acciones o actividades dirigidas a su mantenimiento dentro del marco de las lineas de defensa. | J54: 40 | K54: =+VLOOKUP(C54,Hoja1!$A$1:$M$82,13,0) -> 100%
B55: 41 | C55: =+IFERROR(INDEX(Hoja1!$A$2:$A$82,MATCH(J55,Hoja1!$H$2:$H$82,0)),"") -> 9.5 | D55: =IFERROR(VLOOKUP(C55,Hoja1!$A$2:$H$82,4,0),"") -> Evaluación de riesgos | E55: =+IFERROR(VLOOKUP(C55,Hoja1!$A$1:$J$82,10,0),"") -> Identificación y análisis de cambios significativos | F55: =+IFERROR(VLOOKUP(C55,Hoja1!$A$1:$I$82,3,0),"") -> La entidad analiza el impacto sobre el control interno por cambios en los diferentes niveles organizacionales | G55: =+IFERROR(VLOOKUP(C55,Hoja1!$A$1:$K$82,11,0),"") -> 3 | H55: =+IFERROR(VLOOKUP(C55,Hoja1!$A$1:$L$82,12,0),"") -> 3 | I55: Se encuentra presente y funciona correctamente, por lo tanto se requiere acciones o actividades dirigidas a su mantenimiento dentro del marco de las lineas de defensa. | J55: 41 | K55: =+VLOOKUP(C55,Hoja1!$A$1:$M$82,13,0) -> 100%
B56: 42 | C56: =+IFERROR(INDEX(Hoja1!$A$2:$A$82,MATCH(J56,Hoja1!$H$2:$H$82,0)),"") -> 11.3 | D56: =IFERROR(VLOOKUP(C56,Hoja1!$A$2:$H$82,4,0),"") -> Actividades de control | E56: =+IFERROR(VLOOKUP(C56,Hoja1!$A$1:$J$82,10,0),"") -> Seleccionar y Desarrolla controles generales sobre TI para apoyar la consecución de los objetivos . | F56: =+IFERROR(VLOOKUP(C56,Hoja1!$A$1:$I$82,3,0),"") -> Se cuenta con matrices de roles y usuarios siguiendo los principios de segregación de funciones. | G56: =+IFERROR(VLOOKUP(C56,Hoja1!$A$1:$K$82,11,0),"") -> 1 | H56: =+IFERROR(VLOOKUP(C56,Hoja1!$A$1:$L$82,12,0),"") -> 1 | I56: No se encuentra presente por lo tanto no esta funcionando, lo que hace que se requieran acciones dirigidas a fortalecer su diseño y puesta en marcha | J56: 42 | K56: =+VLOOKUP(C56,Hoja1!$A$1:$M$82,13,0) -> 0% | L56: =+AVERAGE(K56:K67) -> 65%
B57: 43 | C57: =+IFERROR(INDEX(Hoja1!$A$2:$A$82,MATCH(J57,Hoja1!$H$2:$H$82,0)),"") -> 11.4 | D57: =IFERROR(VLOOKUP(C57,Hoja1!$A$2:$H$82,4,0),"") -> Actividades de control | E57: =+IFERROR(VLOOKUP(C57,Hoja1!$A$1:$J$82,10,0),"") -> Seleccionar y Desarrolla controles generales sobre TI para apoyar la consecución de los objetivos . | F57: =+IFERROR(VLOOKUP(C57,Hoja1!$A$1:$I$82,3,0),"") -> Se cuenta con información de la 3a línea de defensa, como evaluador independiente en relación con los controles implementados por el proveedor de servicios, para asegurar que los riesgos relacionados se mitigan. | G57: =+IFERROR(VLOOKUP(C57,Hoja1!$A$1:$K$82,11,0),"") -> 1 | H57: =+IFERROR(VLOOKUP(C57,Hoja1!$A$1:$L$82,12,0),"") -> 1 | I57: No se encuentra presente por lo tanto no esta funcionando, lo que hace que se requieran acciones dirigidas a fortalecer su diseño y puesta en marcha | J57: 43 | K57: =+VLOOKUP(C57,Hoja1!$A$1:$M$82,13,0) -> 0%
B58: 44 | C58: =+IFERROR(INDEX(Hoja1!$A$2:$A$82,MATCH(J58,Hoja1!$H$2:$H$82,0)),"") -> 11.2 | D58: =IFERROR(VLOOKUP(C58,Hoja1!$A$2:$H$82,4,0),"") -> Actividades de control | E58: =+IFERROR(VLOOKUP(C58,Hoja1!$A$1:$J$82,10,0),"") -> Seleccionar y Desarrolla controles generales sobre TI para apoyar la consecución de los objetivos . | F58: =+IFERROR(VLOOKUP(C58,Hoja1!$A$1:$I$82,3,0),"") -> Para los proveedores de tecnología selecciona y desarrolla actividades de control internas sobre las actividades realizadas por el proveedor de servicios | G58: =+IFERROR(VLOOKUP(C58,Hoja1!$A$1:$K$82,11,0),"") -> 3 | H58: =+IFERROR(VLOOKUP(C58,Hoja1!$A$1:$L$82,12,0),"") -> 2 | I58: Se encuentra presente y funcionando, pero requiere acciones dirigidas a fortalecer o mejorar su diseño y/o ejecucion. | J58: 44 | K58: =+VLOOKUP(C58,Hoja1!$A$1:$M$82,13,0) -> 50%
B59: 45 | C59: =+IFERROR(INDEX(Hoja1!$A$2:$A$82,MATCH(J59,Hoja1!$H$2:$H$82,0)),"") -> 12.3 | D59: =IFERROR(VLOOKUP(C59,Hoja1!$A$2:$H$82,4,0),"") -> Actividades de control | E59: =+IFERROR(VLOOKUP(C59,Hoja1!$A$1:$J$82,10,0),"") -> Despliegue de políticas y procedimientos (Establece responsabilidades sobre la ejecución de las políticas y procedimientos; Adopta medidas correctivas; Revisa las políticas y procedimientos). | F59: =+IFERROR(VLOOKUP(C59,Hoja1!$A$1:$I$82,3,0),"") -> Monitoreo a los riesgos acorde con la política de administración de riesgo establecida para la entidad. | G59: =+IFERROR(VLOOKUP(C59,Hoja1!$A$1:$K$82,11,0),"") -> 3 | H59: =+IFERROR(VLOOKUP(C59,Hoja1!$A$1:$L$82,12,0),"") -> 2 | I59: Se encuentra presente y funcionando, pero requiere acciones dirigidas a fortalecer o mejorar su diseño y/o ejecucion. | J59: 45 | K59: =+VLOOKUP(C59,Hoja1!$A$1:$M$82,13,0) -> 50%
B60: 46 | C60: =+IFERROR(INDEX(Hoja1!$A$2:$A$82,MATCH(J60,Hoja1!$H$2:$H$82,0)),"") -> 12.4 | D60: =IFERROR(VLOOKUP(C60,Hoja1!$A$2:$H$82,4,0),"") -> Actividades de control | E60: =+IFERROR(VLOOKUP(C60,Hoja1!$A$1:$J$82,10,0),"") -> Despliegue de políticas y procedimientos (Establece responsabilidades sobre la ejecución de las políticas y procedimientos; Adopta medidas correctivas; Revisa las políticas y procedimientos). | F60: =+IFERROR(VLOOKUP(C60,Hoja1!$A$1:$I$82,3,0),"") -> Verificación de que los responsables estén ejecutando los controles tal como han sido diseñados | G60: =+IFERROR(VLOOKUP(C60,Hoja1!$A$1:$K$82,11,0),"") -> 3 | H60: =+IFERROR(VLOOKUP(C60,Hoja1!$A$1:$L$82,12,0),"") -> 2 | I60: Se encuentra presente y funcionando, pero requiere acciones dirigidas a fortalecer o mejorar su diseño y/o ejecucion. | J60: 46 | K60: =+VLOOKUP(C60,Hoja1!$A$1:$M$82,13,0) -> 50%
B61: 47 | C61: =+IFERROR(INDEX(Hoja1!$A$2:$A$82,MATCH(J61,Hoja1!$H$2:$H$82,0)),"") -> 10.1 | D61: =IFERROR(VLOOKUP(C61,Hoja1!$A$2:$H$82,4,0),"") -> Actividades de control | E61: =+IFERROR(VLOOKUP(C61,Hoja1!$A$1:$J$82,10,0),"") -> Diseño y desarrollo de actividades de control (Integra el desarrollo de controles con la evaluación de riesgos; tiene en cuenta a qué nivel se aplican las actividades; facilita la segregación de funciones). | F61: =+IFERROR(VLOOKUP(C61,Hoja1!$A$1:$I$82,3,0),"") -> Para el desarrollo de las actividades de control, la entidad considera la adecuada división de las funciones y que éstas se encuentren segregadas en diferentes personas para reducir el riesgo de error o de incumplimientos de alto impacto en la operación | G61: =+IFERROR(VLOOKUP(C61,Hoja1!$A$1:$K$82,11,0),"") -> 2 | H61: =+IFERROR(VLOOKUP(C61,Hoja1!$A$1:$L$82,12,0),"") -> 3 | I61: Se encuentra presente y funcionando, pero requiere mejoras frente a su diseño, ya que opera de manera efectiva | J61: 47 | K61: =+VLOOKUP(C61,Hoja1!$A$1:$M$82,13,0) -> 75%
B62: 48 | C62: =+IFERROR(INDEX(Hoja1!$A$2:$A$82,MATCH(J62,Hoja1!$H$2:$H$82,0)),"") -> 10.2 | D62: =IFERROR(VLOOKUP(C62,Hoja1!$A$2:$H$82,4,0),"") -> Actividades de control | E62: =+IFERROR(VLOOKUP(C62,Hoja1!$A$1:$J$82,10,0),"") -> Diseño y desarrollo de actividades de control (Integra el desarrollo de controles con la evaluación de riesgos; tiene en cuenta a qué nivel se aplican las actividades; facilita la segregación de funciones). | F62: =+IFERROR(VLOOKUP(C62,Hoja1!$A$1:$I$82,3,0),"") -> Se han idenfificado y documentado las situaciones específicas en donde no es posible segregar adecuadamente las funciones (ej: falta de personal, presupuesto), con el fin de definir actividades de control alternativas para cubrir los riesgos identificados. | G62: =+IFERROR(VLOOKUP(C62,Hoja1!$A$1:$K$82,11,0),"") -> 2 | H62: =+IFERROR(VLOOKUP(C62,Hoja1!$A$1:$L$82,12,0),"") -> 3 | I62: Se encuentra presente y funcionando, pero requiere mejoras frente a su diseño, ya que opera de manera efectiva | J62: 48 | K62: =+VLOOKUP(C62,Hoja1!$A$1:$M$82,13,0) -> 75%
B63: 49 | C63: =+IFERROR(INDEX(Hoja1!$A$2:$A$82,MATCH(J63,Hoja1!$H$2:$H$82,0)),"") -> 11.1 | D63: =IFERROR(VLOOKUP(C63,Hoja1!$A$2:$H$82,4,0),"") -> Actividades de control | E63: =+IFERROR(VLOOKUP(C63,Hoja1!$A$1:$J$82,10,0),"") -> Seleccionar y Desarrolla controles generales sobre TI para apoyar la consecución de los objetivos . | F63: =+IFERROR(VLOOKUP(C63,Hoja1!$A$1:$I$82,3,0),"") -> La entidad establece actividades de control relevantes sobre las infraestructuras tecnológicas; los procesos de gestión de la seguridad y sobre los procesos de adquisición, desarrollo y mantenimiento de tecnologías | G63: =+IFERROR(VLOOKUP(C63,Hoja1!$A$1:$K$82,11,0),"") -> 2 | H63: =+IFERROR(VLOOKUP(C63,Hoja1!$A$1:$L$82,12,0),"") -> 3 | I63: Se encuentra presente y funcionando, pero requiere mejoras frente a su diseño, ya que opera de manera efectiva | J63: 49 | K63: =+VLOOKUP(C63,Hoja1!$A$1:$M$82,13,0) -> 75%
B64: 50 | C64: =+IFERROR(INDEX(Hoja1!$A$2:$A$82,MATCH(J64,Hoja1!$H$2:$H$82,0)),"") -> 10.3 | D64: =IFERROR(VLOOKUP(C64,Hoja1!$A$2:$H$82,4,0),"") -> Actividades de control | E64: =+IFERROR(VLOOKUP(C64,Hoja1!$A$1:$J$82,10,0),"") -> Diseño y desarrollo de actividades de control (Integra el desarrollo de controles con la evaluación de riesgos; tiene en cuenta a qué nivel se aplican las actividades; facilita la segregación de funciones). | F64: =+IFERROR(VLOOKUP(C64,Hoja1!$A$1:$I$82,3,0),"") -> El diseño de otros sistemas de gestión (bajo normas o estándares internacionales como la ISO), se intregan de forma adecuada a la estructura de control de la entidad | G64: =+IFERROR(VLOOKUP(C64,Hoja1!$A$1:$K$82,11,0),"") -> 3 | H64: =+IFERROR(VLOOKUP(C64,Hoja1!$A$1:$L$82,12,0),"") -> 3 | I64: Se encuentra presente y funciona correctamente, por lo tanto se requiere acciones o actividades dirigidas a su mantenimiento dentro del marco de las lineas de defensa. | J64: 50 | K64: =+VLOOKUP(C64,Hoja1!$A$1:$M$82,13,0) -> 100%
B65: 51 | C65: =+IFERROR(INDEX(Hoja1!$A$2:$A$82,MATCH(J65,Hoja1!$H$2:$H$82,0)),"") -> 12.1 | D65: =IFERROR(VLOOKUP(C65,Hoja1!$A$2:$H$82,4,0),"") -> Actividades de control | E65: =+IFERROR(VLOOKUP(C65,Hoja1!$A$1:$J$82,10,0),"") -> Despliegue de políticas y procedimientos (Establece responsabilidades sobre la ejecución de las políticas y procedimientos; Adopta medidas correctivas; Revisa las políticas y procedimientos). | F65: =+IFERROR(VLOOKUP(C65,Hoja1!$A$1:$I$82,3,0),"") -> Se evalúa la actualización de procesos, procedimientos, políticas de operación, instructivos, manuales u otras herramientas para garantizar la aplicación adecuada de las principales actividades de control. | G65: =+IFERROR(VLOOKUP(C65,Hoja1!$A$1:$K$82,11,0),"") -> 3 | H65: =+IFERROR(VLOOKUP(C65,Hoja1!$A$1:$L$82,12,0),"") -> 3 | I65: Se encuentra presente y funciona correctamente, por lo tanto se requiere acciones o actividades dirigidas a su mantenimiento dentro del marco de las lineas de defensa. | J65: 51 | K65: =+VLOOKUP(C65,Hoja1!$A$1:$M$82,13,0) -> 100%
B66: 52 | C66: =+IFERROR(INDEX(Hoja1!$A$2:$A$82,MATCH(J66,Hoja1!$H$2:$H$82,0)),"") -> 12.2 | D66: =IFERROR(VLOOKUP(C66,Hoja1!$A$2:$H$82,4,0),"") -> Actividades de control | E66: =+IFERROR(VLOOKUP(C66,Hoja1!$A$1:$J$82,10,0),"") -> Despliegue de políticas y procedimientos (Establece responsabilidades sobre la ejecución de las políticas y procedimientos; Adopta medidas correctivas; Revisa las políticas y procedimientos). | F66: =+IFERROR(VLOOKUP(C66,Hoja1!$A$1:$I$82,3,0),"") -> El diseño de controles se evalúa frente a la gestión del riesgo | G66: =+IFERROR(VLOOKUP(C66,Hoja1!$A$1:$K$82,11,0),"") -> 3 | H66: =+IFERROR(VLOOKUP(C66,Hoja1!$A$1:$L$82,12,0),"") -> 3 | I66: Se encuentra presente y funciona correctamente, por lo tanto se requiere acciones o actividades dirigidas a su mantenimiento dentro del marco de las lineas de defensa. | J66: 52 | K66: =+VLOOKUP(C66,Hoja1!$A$1:$M$82,13,0) -> 100%
B67: 53 | C67: =+IFERROR(INDEX(Hoja1!$A$2:$A$82,MATCH(J67,Hoja1!$H$2:$H$82,0)),"") -> 12.5 | D67: =IFERROR(VLOOKUP(C67,Hoja1!$A$2:$H$82,4,0),"") -> Actividades de control | E67: =+IFERROR(VLOOKUP(C67,Hoja1!$A$1:$J$82,10,0),"") -> Despliegue de políticas y procedimientos (Establece responsabilidades sobre la ejecución de las políticas y procedimientos; Adopta medidas correctivas; Revisa las políticas y procedimientos). | F67: =+IFERROR(VLOOKUP(C67,Hoja1!$A$1:$I$82,3,0),"") -> Se evalúa la adecuación de los controles a las especificidades de cada proceso, considerando cambios en regulaciones, estructuras internas u otros aspectos que determinen cambios en su diseño | G67: =+IFERROR(VLOOKUP(C67,Hoja1!$A$1:$K$82,11,0),"") -> 3 | H67: =+IFERROR(VLOOKUP(C67,Hoja1!$A$1:$L$82,12,0),"") -> 3 | I67: Se encuentra presente y funciona correctamente, por lo tanto se requiere acciones o actividades dirigidas a su mantenimiento dentro del marco de las lineas de defensa. | J67: 53 | K67: =+VLOOKUP(C67,Hoja1!$A$1:$M$82,13,0) -> 100%
B68: 54 | C68: =+IFERROR(INDEX(Hoja1!$A$2:$A$82,MATCH(J68,Hoja1!$H$2:$H$82,0)),"") -> 13.1 | D68: =IFERROR(VLOOKUP(C68,Hoja1!$A$2:$H$82,4,0),"") -> Info y Comunicación | E68: =+IFERROR(VLOOKUP(C68,Hoja1!$A$1:$J$82,10,0),"") -> Utilización de información relevante (Identifica requisitos de información; Capta fuentes de datos internas y externas; Procesa datos relevantes y los transforma en información). | F68: =+IFERROR(VLOOKUP(C68,Hoja1!$A$1:$I$82,3,0),"") -> La entidad ha diseñado sistemas de información para capturar y procesar datos y transformarlos en información para alcanzar los requerimientos de información definidos | G68: =+IFERROR(VLOOKUP(C68,Hoja1!$A$1:$K$82,11,0),"") -> 3 | H68: =+IFERROR(VLOOKUP(C68,Hoja1!$A$1:$L$82,12,0),"") -> 2 | I68: Se encuentra presente y funcionando, pero requiere acciones dirigidas a fortalecer o mejorar su diseño y/o ejecucion. | J68: 54 | K68: =+VLOOKUP(C68,Hoja1!$A$1:$M$82,13,0) -> 50% | L68: =+AVERAGE(K68:K81) -> 84%
B69: 55 | C69: =+IFERROR(INDEX(Hoja1!$A$2:$A$82,MATCH(J69,Hoja1!$H$2:$H$82,0)),"") -> 13.2 | D69: =IFERROR(VLOOKUP(C69,Hoja1!$A$2:$H$82,4,0),"") -> Info y Comunicación | E69: =+IFERROR(VLOOKUP(C69,Hoja1!$A$1:$J$82,10,0),"") -> Utilización de información relevante (Identifica requisitos de información; Capta fuentes de datos internas y externas; Procesa datos relevantes y los transforma en información). | F69: =+IFERROR(VLOOKUP(C69,Hoja1!$A$1:$I$82,3,0),"") -> La entidad cuenta con el inventario de información relevante (interno/externa) y cuenta con un mecanismo que permita su actualización | G69: =+IFERROR(VLOOKUP(C69,Hoja1!$A$1:$K$82,11,0),"") -> 3 | H69: =+IFERROR(VLOOKUP(C69,Hoja1!$A$1:$L$82,12,0),"") -> 2 | I69: Se encuentra presente y funcionando, pero requiere acciones dirigidas a fortalecer o mejorar su diseño y/o ejecucion. | J69: 55 | K69: =+VLOOKUP(C69,Hoja1!$A$1:$M$82,13,0) -> 50%
B70: 56 | C70: =+IFERROR(INDEX(Hoja1!$A$2:$A$82,MATCH(J70,Hoja1!$H$2:$H$82,0)),"") -> 13.3 | D70: =IFERROR(VLOOKUP(C70,Hoja1!$A$2:$H$82,4,0),"") -> Info y Comunicación | E70: =+IFERROR(VLOOKUP(C70,Hoja1!$A$1:$J$82,10,0),"") -> Utilización de información relevante (Identifica requisitos de información; Capta fuentes de datos internas y externas; Procesa datos relevantes y los transforma en información). | F70: =+IFERROR(VLOOKUP(C70,Hoja1!$A$1:$I$82,3,0),"") -> La entidad considera un ámbito amplio de fuentes de datos (internas y externas), para la captura y procesamiento posterior de información clave para la consecución de metas y objetivos | G70: =+IFERROR(VLOOKUP(C70,Hoja1!$A$1:$K$82,11,0),"") -> 3 | H70: =+IFERROR(VLOOKUP(C70,Hoja1!$A$1:$L$82,12,0),"") -> 2 | I70: Se encuentra presente y funcionando, pero requiere acciones dirigidas a fortalecer o mejorar su diseño y/o ejecucion. | J70: 56 | K70: =+VLOOKUP(C70,Hoja1!$A$1:$M$82,13,0) -> 50%
B71: 57 | C71: =+IFERROR(INDEX(Hoja1!$A$2:$A$82,MATCH(J71,Hoja1!$H$2:$H$82,0)),"") -> 14.3 | D71: =IFERROR(VLOOKUP(C71,Hoja1!$A$2:$H$82,4,0),"") -> Info y Comunicación | E71: =+IFERROR(VLOOKUP(C71,Hoja1!$A$1:$J$82,10,0),"") -> Comunicación Interna (Se comunica con el Comité Institucional de Coordinación de Control Interno o su equivalente; Facilita líneas de comunicación en todos los niveles; Selecciona el método de comunicación pertinente). | F71: =+IFERROR(VLOOKUP(C71,Hoja1!$A$1:$I$82,3,0),"") -> La entidad cuenta con canales de información internos para la denuncia anónima o confidencial de posibles situaciones irregulares y se cuenta con mecanismos específicos para su manejo, de manera tal que generen la confianza para utilizarlos | G71: =+IFERROR(VLOOKUP(C71,Hoja1!$A$1:$K$82,11,0),"") -> 3 | H71: =+IFERROR(VLOOKUP(C71,Hoja1!$A$1:$L$82,12,0),"") -> 2 | I71: Se encuentra presente y funcionando, pero requiere acciones dirigidas a fortalecer o mejorar su diseño y/o ejecucion. | J71: 57 | K71: =+VLOOKUP(C71,Hoja1!$A$1:$M$82,13,0) -> 50%
B72: 58 | C72: =+IFERROR(INDEX(Hoja1!$A$2:$A$82,MATCH(J72,Hoja1!$H$2:$H$82,0)),"") -> 15.3 | D72: =IFERROR(VLOOKUP(C72,Hoja1!$A$2:$H$82,4,0),"") -> Info y Comunicación | E72: =+IFERROR(VLOOKUP(C72,Hoja1!$A$1:$J$82,10,0),"") -> Comunicación con el exterior (Se comunica con los grupos de valor y con terceros externos interesados; Facilita líneas de comunicación). | F72: =+IFERROR(VLOOKUP(C72,Hoja1!$A$1:$I$82,3,0),"") -> La entidad cuenta con procesos o procedimiento para el manejo de la información entrante (quién la recibe, quién la clasifica, quién la analiza), y a la respuesta requierida (quién la canaliza y la responde) | G72: =+IFERROR(VLOOKUP(C72,Hoja1!$A$1:$K$82,11,0),"") -> 2 | H72: =+IFERROR(VLOOKUP(C72,Hoja1!$A$1:$L$82,12,0),"") -> 3 | I72: Se encuentra presente y funcionando, pero requiere mejoras frente a su diseño, ya que opera de manera efectiva | J72: 58 | K72: =+VLOOKUP(C72,Hoja1!$A$1:$M$82,13,0) -> 75%
B73: 59 | C73: =+IFERROR(INDEX(Hoja1!$A$2:$A$82,MATCH(J73,Hoja1!$H$2:$H$82,0)),"") -> 13.4 | D73: =IFERROR(VLOOKUP(C73,Hoja1!$A$2:$H$82,4,0),"") -> Info y Comunicación | E73: =+IFERROR(VLOOKUP(C73,Hoja1!$A$1:$J$82,10,0),"") -> Utilización de información relevante (Identifica requisitos de información; Capta fuentes de datos internas y externas; Procesa datos relevantes y los transforma en información). | F73: =+IFERROR(VLOOKUP(C73,Hoja1!$A$1:$I$82,3,0),"") -> La entidad ha desarrollado e implementado actividades de control sobre la integridad, confidencialidad y disponibilidad de los datos e información definidos como relevantes | G73: =+IFERROR(VLOOKUP(C73,Hoja1!$A$1:$K$82,11,0),"") -> 3 | H73: =+IFERROR(VLOOKUP(C73,Hoja1!$A$1:$L$82,12,0),"") -> 3 | I73: Se encuentra presente y funciona correctamente, por lo tanto se requiere acciones o actividades dirigidas a su mantenimiento dentro del marco de las lineas de defensa. | J73: 59 | K73: =+VLOOKUP(C73,Hoja1!$A$1:$M$82,13,0) -> 100%
B74: 60 | C74: =+IFERROR(INDEX(Hoja1!$A$2:$A$82,MATCH(J74,Hoja1!$H$2:$H$82,0)),"") -> 14.1 | D74: =IFERROR(VLOOKUP(C74,Hoja1!$A$2:$H$82,4,0),"") -> Info y Comunicación | E74: =+IFERROR(VLOOKUP(C74,Hoja1!$A$1:$J$82,10,0),"") -> Comunicación Interna (Se comunica con el Comité Institucional de Coordinación de Control Interno o su equivalente; Facilita líneas de comunicación en todos los niveles; Selecciona el método de comunicación pertinente). | F74: =+IFERROR(VLOOKUP(C74,Hoja1!$A$1:$I$82,3,0),"") -> Para la comunicación interna la Alta Dirección tiene mecanismos que permitan dar a conocer los objetivos y metas estratégicas, de manera tal que todo el personal entiende su papel en su consecución. (Considera los canales más apropiados y evalúa su efectividad) | G74: =+IFERROR(VLOOKUP(C74,Hoja1!$A$1:$K$82,11,0),"") -> 3 | H74: =+IFERROR(VLOOKUP(C74,Hoja1!$A$1:$L$82,12,0),"") -> 3 | I74: Se encuentra presente y funciona correctamente, por lo tanto se requiere acciones o actividades dirigidas a su mantenimiento dentro del marco de las lineas de defensa. | J74: 60 | K74: =+VLOOKUP(C74,Hoja1!$A$1:$M$82,13,0) -> 100%
B75: 61 | C75: =+IFERROR(INDEX(Hoja1!$A$2:$A$82,MATCH(J75,Hoja1!$H$2:$H$82,0)),"") -> 14.2 | D75: =IFERROR(VLOOKUP(C75,Hoja1!$A$2:$H$82,4,0),"") -> Info y Comunicación | E75: =+IFERROR(VLOOKUP(C75,Hoja1!$A$1:$J$82,10,0),"") -> Comunicación Interna (Se comunica con el Comité Institucional de Coordinación de Control Interno o su equivalente; Facilita líneas de comunicación en todos los niveles; Selecciona el método de comunicación pertinente). | F75: =+IFERROR(VLOOKUP(C75,Hoja1!$A$1:$I$82,3,0),"") -> La entidad cuenta con políticas de operación relacionadas con la administración de la información (niveles de autoridad y responsabilidad | G75: =+IFERROR(VLOOKUP(C75,Hoja1!$A$1:$K$82,11,0),"") -> 3 | H75: =+IFERROR(VLOOKUP(C75,Hoja1!$A$1:$L$82,12,0),"") -> 3 | I75: Se encuentra presente y funciona correctamente, por lo tanto se requiere acciones o actividades dirigidas a su mantenimiento dentro del marco de las lineas de defensa. | J75: 61 | K75: =+VLOOKUP(C75,Hoja1!$A$1:$M$82,13,0) -> 100%
B76: 62 | C76: =+IFERROR(INDEX(Hoja1!$A$2:$A$82,MATCH(J76,Hoja1!$H$2:$H$82,0)),"") -> 14.4 | D76: =IFERROR(VLOOKUP(C76,Hoja1!$A$2:$H$82,4,0),"") -> Info y Comunicación | E76: =+IFERROR(VLOOKUP(C76,Hoja1!$A$1:$J$82,10,0),"") -> Comunicación Interna (Se comunica con el Comité Institucional de Coordinación de Control Interno o su equivalente; Facilita líneas de comunicación en todos los niveles; Selecciona el método de comunicación pertinente). | F76: =+IFERROR(VLOOKUP(C76,Hoja1!$A$1:$I$82,3,0),"") -> La entidad establece e implementa políticas y procedimientos para facilitar una comunicación interna efectiva | G76: =+IFERROR(VLOOKUP(C76,Hoja1!$A$1:$K$82,11,0),"") -> 3 | H76: =+IFERROR(VLOOKUP(C76,Hoja1!$A$1:$L$82,12,0),"") -> 3 | I76: Se encuentra presente y funciona correctamente, por lo tanto se requiere acciones o actividades dirigidas a su mantenimiento dentro del marco de las lineas de defensa. | J76: 62 | K76: =+VLOOKUP(C76,Hoja1!$A$1:$M$82,13,0) -> 100%
B77: 63 | C77: =+IFERROR(INDEX(Hoja1!$A$2:$A$82,MATCH(J77,Hoja1!$H$2:$H$82,0)),"") -> 15.1 | D77: =IFERROR(VLOOKUP(C77,Hoja1!$A$2:$H$82,4,0),"") -> Info y Comunicación | E77: =+IFERROR(VLOOKUP(C77,Hoja1!$A$1:$J$82,10,0),"") -> Comunicación con el exterior (Se comunica con los grupos de valor y con terceros externos interesados; Facilita líneas de comunicación). | F77: =+IFERROR(VLOOKUP(C77,Hoja1!$A$1:$I$82,3,0),"") -> La entidad desarrolla e implementa controles que facilitan la comunicación externa, la cual incluye políticas y procedimientos. Incluye contratistas y proveedores de servicios tercerizados (cuando aplique). | G77: =+IFERROR(VLOOKUP(C77,Hoja1!$A$1:$K$82,11,0),"") -> 3 | H77: =+IFERROR(VLOOKUP(C77,Hoja1!$A$1:$L$82,12,0),"") -> 3 | I77: Se encuentra presente y funciona correctamente, por lo tanto se requiere acciones o actividades dirigidas a su mantenimiento dentro del marco de las lineas de defensa. | J77: 63 | K77: =+VLOOKUP(C77,Hoja1!$A$1:$M$82,13,0) -> 100%
B78: 64 | C78: =+IFERROR(INDEX(Hoja1!$A$2:$A$82,MATCH(J78,Hoja1!$H$2:$H$82,0)),"") -> 15.2 | D78: =IFERROR(VLOOKUP(C78,Hoja1!$A$2:$H$82,4,0),"") -> Info y Comunicación | E78: =+IFERROR(VLOOKUP(C78,Hoja1!$A$1:$J$82,10,0),"") -> Comunicación con el exterior (Se comunica con los grupos de valor y con terceros externos interesados; Facilita líneas de comunicación). | F78: =+IFERROR(VLOOKUP(C78,Hoja1!$A$1:$I$82,3,0),"") -> La entidad cuenta con canales externos definidos de comunicación, asociados con el tipo de información a divulgar, y éstos son reconocidos a todo nivel de la organización. | G78: =+IFERROR(VLOOKUP(C78,Hoja1!$A$1:$K$82,11,0),"") -> 3 | H78: =+IFERROR(VLOOKUP(C78,Hoja1!$A$1:$L$82,12,0),"") -> 3 | I78: Se encuentra presente y funciona correctamente, por lo tanto se requiere acciones o actividades dirigidas a su mantenimiento dentro del marco de las lineas de defensa. | J78: 64 | K78: =+VLOOKUP(C78,Hoja1!$A$1:$M$82,13,0) -> 100%
B79: 65 | C79: =+IFERROR(INDEX(Hoja1!$A$2:$A$82,MATCH(J79,Hoja1!$H$2:$H$82,0)),"") -> 15.4 | D79: =IFERROR(VLOOKUP(C79,Hoja1!$A$2:$H$82,4,0),"") -> Info y Comunicación | E79: =+IFERROR(VLOOKUP(C79,Hoja1!$A$1:$J$82,10,0),"") -> Comunicación con el exterior (Se comunica con los grupos de valor y con terceros externos interesados; Facilita líneas de comunicación). | F79: =+IFERROR(VLOOKUP(C79,Hoja1!$A$1:$I$82,3,0),"") -> La entidad cuenta con procesos o procedimientos encaminados a evaluar periodicamente la efectividad de los canales de comunicación con partes externas, así como sus contenidos, de tal forma que se puedan mejorar. | G79: =+IFERROR(VLOOKUP(C79,Hoja1!$A$1:$K$82,11,0),"") -> 3 | H79: =+IFERROR(VLOOKUP(C79,Hoja1!$A$1:$L$82,12,0),"") -> 3 | I79: Se encuentra presente y funciona correctamente, por lo tanto se requiere acciones o actividades dirigidas a su mantenimiento dentro del marco de las lineas de defensa. | J79: 65 | K79: =+VLOOKUP(C79,Hoja1!$A$1:$M$82,13,0) -> 100%
B80: =+IF(ISTEXT(D80),J80,"") -> 66 | C80: =+IFERROR(INDEX(Hoja1!$A$2:$A$82,MATCH(J80,Hoja1!$H$2:$H$82,0)),"") -> 15.5 | D80: =IFERROR(VLOOKUP(C80,Hoja1!$A$2:$H$82,4,0),"") -> Info y Comunicación | E80: =+IFERROR(VLOOKUP(C80,Hoja1!$A$1:$J$82,10,0),"") -> Comunicación con el exterior (Se comunica con los grupos de valor y con terceros externos interesados; Facilita líneas de comunicación). | F80: =+IFERROR(VLOOKUP(C80,Hoja1!$A$1:$I$82,3,0),"") -> La entidad analiza periodicamente su caracterización de usuarios o grupos de valor, a fin de actualizarla cuando sea pertinente | G80: =+IFERROR(VLOOKUP(C80,Hoja1!$A$1:$K$82,11,0),"") -> 3 | H80: =+IFERROR(VLOOKUP(C80,Hoja1!$A$1:$L$82,12,0),"") -> 3 | I80: =+IF(OR(AND(G80=1,H80=1),AND(G80=1,H80=2),AND(G80=1,H80=3),G80="",H80=""),"No se encuentra presente por lo tanto no esta funcionando, lo que hace que se requieran acciones dirigidas a fortalecer su diseño y puesta en marcha",IF(OR(AND(G80=2,H80=2),AND(G80=3,H80=1),AND(G80=3,H80=2),AND(G80=2,H80=1)),"Se encuentra presente y funcionando, pero requiere acciones dirigidas a fortalecer o mejorar su diseño y/o ejecucion.",IF(AND(G80=2,H80=3),"Se encuentra presente y funcionando, pero requiere mejoras frente a su diseño, ya que opera de manera efectiva","Se encuentra presente y funciona correctamente, por lo tanto se requiere acciones o actividades dirigidas a su mantenimiento dentro del marco de las lineas de defensa."))) -> Se encuentra presente y funciona correctamente, por lo tanto se requiere acciones o actividades dirigidas a su mantenimiento dentro del marco de las lineas de defensa. | J80: 66 | K80: =+VLOOKUP(C80,Hoja1!$A$1:$M$82,13,0) -> 100%
B81: 67 | C81: =+IFERROR(INDEX(Hoja1!$A$2:$A$82,MATCH(J81,Hoja1!$H$2:$H$82,0)),"") -> 15.6 | D81: =IFERROR(VLOOKUP(C81,Hoja1!$A$2:$H$82,4,0),"") -> Info y Comunicación | E81: =+IFERROR(VLOOKUP(C81,Hoja1!$A$1:$J$82,10,0),"") -> Comunicación con el exterior (Se comunica con los grupos de valor y con terceros externos interesados; Facilita líneas de comunicación). | F81: =+IFERROR(VLOOKUP(C81,Hoja1!$A$1:$I$82,3,0),"") -> La entidad analiza periodicamente los resultados frente a la evaluación de percepción por parte de los usuarios o grupos de valor para la incorporación de las mejoras correspondientes | G81: =+IFERROR(VLOOKUP(C81,Hoja1!$A$1:$K$82,11,0),"") -> 3 | H81: =+IFERROR(VLOOKUP(C81,Hoja1!$A$1:$L$82,12,0),"") -> 3 | I81: Se encuentra presente y funciona correctamente, por lo tanto se requiere acciones o actividades dirigidas a su mantenimiento dentro del marco de las lineas de defensa. | J81: 67 | K81: =+VLOOKUP(C81,Hoja1!$A$1:$M$82,13,0) -> 100%
B82: 68 | C82: =+IFERROR(INDEX(Hoja1!$A$2:$A$82,MATCH(J82,Hoja1!$H$2:$H$82,0)),"") -> 17.3 | D82: =IFERROR(VLOOKUP(C82,Hoja1!$A$2:$H$82,4,0),"") -> Monitoreo - Supervisión | E82: =+IFERROR(VLOOKUP(C82,Hoja1!$A$1:$J$82,10,0),"") -> Evaluación y comunicación de deficiencias oportunamente (Evalúa los resultados, Comunica las deficiencias y Monitorea las medidas correctivas). | F82: =+IFERROR(VLOOKUP(C82,Hoja1!$A$1:$I$82,3,0),"") -> La entidad cuenta con políticas donde se establezca a quién reportar las deficiencias de control interno como resultado del monitoreo continuo | G82: =+IFERROR(VLOOKUP(C82,Hoja1!$A$1:$K$82,11,0),"") -> 2 | H82: =+IFERROR(VLOOKUP(C82,Hoja1!$A$1:$L$82,12,0),"") -> 1 | I82: Se encuentra presente y funcionando, pero requiere acciones dirigidas a fortalecer o mejorar su diseño y/o ejecucion. | J82: 68 | K82: =+VLOOKUP(C82,Hoja1!$A$1:$M$82,13,0) -> 50% | L82: =+AVERAGE(K82:K95) -> 96%
B83: 69 | C83: =+IFERROR(INDEX(Hoja1!$A$2:$A$82,MATCH(J83,Hoja1!$H$2:$H$82,0)),"") -> 16.1 | D83: =IFERROR(VLOOKUP(C83,Hoja1!$A$2:$H$82,4,0),"") -> Monitoreo - Supervisión | E83: =+IFERROR(VLOOKUP(C83,Hoja1!$A$1:$J$82,10,0),"") -> Evaluaciones continuas y/o separadas (autoevaluación, auditorías) para determinar si los componentes del Sistema de Control Interno están presentes y funcionando.Comunicación con el exterior (Se comunica con los grupos de valor y con terceros externos interesados; Facilita líneas de comunicación). | F83: =+IFERROR(VLOOKUP(C83,Hoja1!$A$1:$I$82,3,0),"") -> El comité Institucional de Coordinación de Control Interno aprueba anualmente el Plan Anual de Auditoría presentado por parte del Jefe de Control Interno o quien haga sus veces y hace el correspondiente seguimiento a sus ejecución | G83: =+IFERROR(VLOOKUP(C83,Hoja1!$A$1:$K$82,11,0),"") -> 3 | H83: =+IFERROR(VLOOKUP(C83,Hoja1!$A$1:$L$82,12,0),"") -> 3 | I83: Se encuentra presente y funciona correctamente, por lo tanto se requiere acciones o actividades dirigidas a su mantenimiento dentro del marco de las lineas de defensa. | J83: 69 | K83: =+VLOOKUP(C83,Hoja1!$A$1:$M$82,13,0) -> 100%
B84: 70 | C84: =+IFERROR(INDEX(Hoja1!$A$2:$A$82,MATCH(J84,Hoja1!$H$2:$H$82,0)),"") -> 16.2 | D84: =IFERROR(VLOOKUP(C84,Hoja1!$A$2:$H$82,4,0),"") -> Monitoreo - Supervisión | E84: =+IFERROR(VLOOKUP(C84,Hoja1!$A$1:$J$82,10,0),"") -> Evaluaciones continuas y/o separadas (autoevaluación, auditorías) para determinar si los componentes del Sistema de Control Interno están presentes y funcionando.Comunicación con el exterior (Se comunica con los grupos de valor y con terceros externos interesados; Facilita líneas de comunicación). | F84: =+IFERROR(VLOOKUP(C84,Hoja1!$A$1:$I$82,3,0),"") -> La Alta Dirección periódicamente evalúa los resultados de las evaluaciones (contínuas e independientes) para concluir acerca de la efectividad del Sistema de Control Intern | G84: =+IFERROR(VLOOKUP(C84,Hoja1!$A$1:$K$82,11,0),"") -> 3 | H84: =+IFERROR(VLOOKUP(C84,Hoja1!$A$1:$L$82,12,0),"") -> 3 | I84: Se encuentra presente y funciona correctamente, por lo tanto se requiere acciones o actividades dirigidas a su mantenimiento dentro del marco de las lineas de defensa. | J84: 70 | K84: =+VLOOKUP(C84,Hoja1!$A$1:$M$82,13,0) -> 100%
B85: 71 | C85: =+IFERROR(INDEX(Hoja1!$A$2:$A$82,MATCH(J85,Hoja1!$H$2:$H$82,0)),"") -> 16.3 | D85: =IFERROR(VLOOKUP(C85,Hoja1!$A$2:$H$82,4,0),"") -> Monitoreo - Supervisión | E85: =+IFERROR(VLOOKUP(C85,Hoja1!$A$1:$J$82,10,0),"") -> Evaluaciones continuas y/o separadas (autoevaluación, auditorías) para determinar si los componentes del Sistema de Control Interno están presentes y funcionando.Comunicación con el exterior (Se comunica con los grupos de valor y con terceros externos interesados; Facilita líneas de comunicación). | F85: =+IFERROR(VLOOKUP(C85,Hoja1!$A$1:$I$82,3,0),"") -> La Oficina de Control Interno o quien haga sus veces realiza evaluaciones independientes periódicas (con una frecuencia definida con base en el análisis de riesgo), que le permite evaluar el diseño y operación de los controles establecidos y definir su efectividad para evitar la materialización de riesgos | G85: =+IFERROR(VLOOKUP(C85,Hoja1!$A$1:$K$82,11,0),"") -> 3 | H85: =+IFERROR(VLOOKUP(C85,Hoja1!$A$1:$L$82,12,0),"") -> 3 | I85: Se encuentra presente y funciona correctamente, por lo tanto se requiere acciones o actividades dirigidas a su mantenimiento dentro del marco de las lineas de defensa. | J85: 71 | K85: =+VLOOKUP(C85,Hoja1!$A$1:$M$82,13,0) -> 100%
B86: 72 | C86: =+IFERROR(INDEX(Hoja1!$A$2:$A$82,MATCH(J86,Hoja1!$H$2:$H$82,0)),"") -> 16.4 | D86: =IFERROR(VLOOKUP(C86,Hoja1!$A$2:$H$82,4,0),"") -> Monitoreo - Supervisión | E86: =+IFERROR(VLOOKUP(C86,Hoja1!$A$1:$J$82,10,0),"") -> Evaluaciones continuas y/o separadas (autoevaluación, auditorías) para determinar si los componentes del Sistema de Control Interno están presentes y funcionando.Comunicación con el exterior (Se comunica con los grupos de valor y con terceros externos interesados; Facilita líneas de comunicación). | F86: =+IFERROR(VLOOKUP(C86,Hoja1!$A$1:$I$82,3,0),"") -> Acorde con el Esquema de Líneas de Defensa se han implementado procedimientos de monitoreo continuo como parte de las actividades de la 2a línea de defensa, a fin de contar con información clave para la toma de decisiones | G86: =+IFERROR(VLOOKUP(C86,Hoja1!$A$1:$K$82,11,0),"") -> 3 | H86: =+IFERROR(VLOOKUP(C86,Hoja1!$A$1:$L$82,12,0),"") -> 3 | I86: Se encuentra presente y funciona correctamente, por lo tanto se requiere acciones o actividades dirigidas a su mantenimiento dentro del marco de las lineas de defensa. | J86: 72 | K86: =+VLOOKUP(C86,Hoja1!$A$1:$M$82,13,0) -> 100%
B87: 73 | C87: =+IFERROR(INDEX(Hoja1!$A$2:$A$82,MATCH(J87,Hoja1!$H$2:$H$82,0)),"") -> 16.5 | D87: =IFERROR(VLOOKUP(C87,Hoja1!$A$2:$H$82,4,0),"") -> Monitoreo - Supervisión | E87: =+IFERROR(VLOOKUP(C87,Hoja1!$A$1:$J$82,10,0),"") -> Evaluaciones continuas y/o separadas (autoevaluación, auditorías) para determinar si los componentes del Sistema de Control Interno están presentes y funcionando.Comunicación con el exterior (Se comunica con los grupos de valor y con terceros externos interesados; Facilita líneas de comunicación). | F87: =+IFERROR(VLOOKUP(C87,Hoja1!$A$1:$I$82,3,0),"") -> Frente a las evaluaciones independientes la entidad considera evaluaciones externas de organismos de control, de vigilancia, certificadores, ONG´s u otros que permitan tener una mirada independiente de las operaciones | G87: =+IFERROR(VLOOKUP(C87,Hoja1!$A$1:$K$82,11,0),"") -> 3 | H87: =+IFERROR(VLOOKUP(C87,Hoja1!$A$1:$L$82,12,0),"") -> 3 | I87: Se encuentra presente y funciona correctamente, por lo tanto se requiere acciones o actividades dirigidas a su mantenimiento dentro del marco de las lineas de defensa. | J87: 73 | K87: =+VLOOKUP(C87,Hoja1!$A$1:$M$82,13,0) -> 100%
B88: 74 | C88: =+IFERROR(INDEX(Hoja1!$A$2:$A$82,MATCH(J88,Hoja1!$H$2:$H$82,0)),"") -> 17.1 | D88: =IFERROR(VLOOKUP(C88,Hoja1!$A$2:$H$82,4,0),"") -> Monitoreo - Supervisión | E88: =+IFERROR(VLOOKUP(C88,Hoja1!$A$1:$J$82,10,0),"") -> Evaluación y comunicación de deficiencias oportunamente (Evalúa los resultados, Comunica las deficiencias y Monitorea las medidas correctivas). | F88: =+IFERROR(VLOOKUP(C88,Hoja1!$A$1:$I$82,3,0),"") -> A partir de la información de las evaluaciones independientes, se evalúan para determinar su efecto en el Sistema de Control Interno de la entidad y su impacto en el logro de los objetivos, a fin de determinar cursos de acción para su mejora | G88: =+IFERROR(VLOOKUP(C88,Hoja1!$A$1:$K$82,11,0),"") -> 3 | H88: =+IFERROR(VLOOKUP(C88,Hoja1!$A$1:$L$82,12,0),"") -> 3 | I88: Se encuentra presente y funciona correctamente, por lo tanto se requiere acciones o actividades dirigidas a su mantenimiento dentro del marco de las lineas de defensa. | J88: 74 | K88: =+VLOOKUP(C88,Hoja1!$A$1:$M$82,13,0) -> 100%
B89: 75 | C89: =+IFERROR(INDEX(Hoja1!$A$2:$A$82,MATCH(J89,Hoja1!$H$2:$H$82,0)),"") -> 17.2 | D89: =IFERROR(VLOOKUP(C89,Hoja1!$A$2:$H$82,4,0),"") -> Monitoreo - Supervisión | E89: =+IFERROR(VLOOKUP(C89,Hoja1!$A$1:$J$82,10,0),"") -> Evaluación y comunicación de deficiencias oportunamente (Evalúa los resultados, Comunica las deficiencias y Monitorea las medidas correctivas). | F89: =+IFERROR(VLOOKUP(C89,Hoja1!$A$1:$I$82,3,0),"") -> Los informes recibidos de entes externos (organismos de control, auditores externos, entidades de vigilancia entre otros) se consolidan y se concluye sobre el impacto en el Sistema de Control Interno, a fin de determinar los cursos de acción | G89: =+IFERROR(VLOOKUP(C89,Hoja1!$A$1:$K$82,11,0),"") -> 3 | H89: =+IFERROR(VLOOKUP(C89,Hoja1!$A$1:$L$82,12,0),"") -> 3 | I89: Se encuentra presente y funciona correctamente, por lo tanto se requiere acciones o actividades dirigidas a su mantenimiento dentro del marco de las lineas de defensa. | J89: 75 | K89: =+VLOOKUP(C89,Hoja1!$A$1:$M$82,13,0) -> 100%
B90: 76 | C90: =+IFERROR(INDEX(Hoja1!$A$2:$A$82,MATCH(J90,Hoja1!$H$2:$H$82,0)),"") -> 17.4 | D90: =IFERROR(VLOOKUP(C90,Hoja1!$A$2:$H$82,4,0),"") -> Monitoreo - Supervisión | E90: =+IFERROR(VLOOKUP(C90,Hoja1!$A$1:$J$82,10,0),"") -> Evaluación y comunicación de deficiencias oportunamente (Evalúa los resultados, Comunica las deficiencias y Monitorea las medidas correctivas). | F90: =+IFERROR(VLOOKUP(C90,Hoja1!$A$1:$I$82,3,0),"") -> La Alta Dirección hace seguimiento a las acciones correctivas relacionadas con las deficiencias comunicadas sobre el Sistema de Control Interno y si se han cumplido en el tiempo establecido | G90: =+IFERROR(VLOOKUP(C90,Hoja1!$A$1:$K$82,11,0),"") -> 3 | H90: =+IFERROR(VLOOKUP(C90,Hoja1!$A$1:$L$82,12,0),"") -> 3 | I90: Se encuentra presente y funciona correctamente, por lo tanto se requiere acciones o actividades dirigidas a su mantenimiento dentro del marco de las lineas de defensa. | J90: 76 | K90: =+VLOOKUP(C90,Hoja1!$A$1:$M$82,13,0) -> 100%
B91: 77 | C91: =+IFERROR(INDEX(Hoja1!$A$2:$A$82,MATCH(J91,Hoja1!$H$2:$H$82,0)),"") -> 17.5 | D91: =IFERROR(VLOOKUP(C91,Hoja1!$A$2:$H$82,4,0),"") -> Monitoreo - Supervisión | E91: =+IFERROR(VLOOKUP(C91,Hoja1!$A$1:$J$82,10,0),"") -> Evaluación y comunicación de deficiencias oportunamente (Evalúa los resultados, Comunica las deficiencias y Monitorea las medidas correctivas). | F91: =+IFERROR(VLOOKUP(C91,Hoja1!$A$1:$I$82,3,0),"") -> Los procesos y/o servicios tercerizados, son evaluados acorde con su nivel de riesgos | G91: =+IFERROR(VLOOKUP(C91,Hoja1!$A$1:$K$82,11,0),"") -> 3 | H91: =+IFERROR(VLOOKUP(C91,Hoja1!$A$1:$L$82,12,0),"") -> 3 | I91: Se encuentra presente y funciona correctamente, por lo tanto se requiere acciones o actividades dirigidas a su mantenimiento dentro del marco de las lineas de defensa. | J91: 77 | K91: =+VLOOKUP(C91,Hoja1!$A$1:$M$82,13,0) -> 100%
B92: 78 | C92: =+IFERROR(INDEX(Hoja1!$A$2:$A$82,MATCH(J92,Hoja1!$H$2:$H$82,0)),"") -> 17.6 | D92: =IFERROR(VLOOKUP(C92,Hoja1!$A$2:$H$82,4,0),"") -> Monitoreo - Supervisión | E92: =+IFERROR(VLOOKUP(C92,Hoja1!$A$1:$J$82,10,0),"") -> Evaluación y comunicación de deficiencias oportunamente (Evalúa los resultados, Comunica las deficiencias y Monitorea las medidas correctivas). | F92: =+IFERROR(VLOOKUP(C92,Hoja1!$A$1:$I$82,3,0),"") -> Se evalúa la información suministrada por los usuarios (Sistema PQRD), así como de otras partes interesadas para la mejora del Sistema de Control Interno de la Entidad | G92: =+IFERROR(VLOOKUP(C92,Hoja1!$A$1:$K$82,11,0),"") -> 3 | H92: =+IFERROR(VLOOKUP(C92,Hoja1!$A$1:$L$82,12,0),"") -> 3 | I92: Se encuentra presente y funciona correctamente, por lo tanto se requiere acciones o actividades dirigidas a su mantenimiento dentro del marco de las lineas de defensa. | J92: 78 | K92: =+VLOOKUP(C92,Hoja1!$A$1:$M$82,13,0) -> 100%
B93: 79 | C93: =+IFERROR(INDEX(Hoja1!$A$2:$A$82,MATCH(J93,Hoja1!$H$2:$H$82,0)),"") -> 17.7 | D93: =IFERROR(VLOOKUP(C93,Hoja1!$A$2:$H$82,4,0),"") -> Monitoreo - Supervisión | E93: =+IFERROR(VLOOKUP(C93,Hoja1!$A$1:$J$82,10,0),"") -> Evaluación y comunicación de deficiencias oportunamente (Evalúa los resultados, Comunica las deficiencias y Monitorea las medidas correctivas). | F93: =+IFERROR(VLOOKUP(C93,Hoja1!$A$1:$I$82,3,0),"") -> Verificación del avance y cumplimiento de las acciones incluidas en los planes de mejoramiento producto de las autoevaluaciones. (2ª Línea). | G93: =+IFERROR(VLOOKUP(C93,Hoja1!$A$1:$K$82,11,0),"") -> 3 | H93: =+IFERROR(VLOOKUP(C93,Hoja1!$A$1:$L$82,12,0),"") -> 3 | I93: Se encuentra presente y funciona correctamente, por lo tanto se requiere acciones o actividades dirigidas a su mantenimiento dentro del marco de las lineas de defensa. | J93: 79 | K93: =+VLOOKUP(C93,Hoja1!$A$1:$M$82,13,0) -> 100%
B94: 80 | C94: =+IFERROR(INDEX(Hoja1!$A$2:$A$82,MATCH(J94,Hoja1!$H$2:$H$82,0)),"") -> 17.8 | D94: =IFERROR(VLOOKUP(C94,Hoja1!$A$2:$H$82,4,0),"") -> Monitoreo - Supervisión | E94: =+IFERROR(VLOOKUP(C94,Hoja1!$A$1:$J$82,10,0),"") -> Evaluación y comunicación de deficiencias oportunamente (Evalúa los resultados, Comunica las deficiencias y Monitorea las medidas correctivas). | F94: =+IFERROR(VLOOKUP(C94,Hoja1!$A$1:$I$82,3,0),"") -> Evaluación de la efectividad de las acciones incluidas en los Planes de mejoramiento producto de las auditorías internas y de entes externos. (3ª Línea | G94: =+IFERROR(VLOOKUP(C94,Hoja1!$A$1:$K$82,11,0),"") -> 3 | H94: =+IFERROR(VLOOKUP(C94,Hoja1!$A$1:$L$82,12,0),"") -> 3 | I94: Se encuentra presente y funciona correctamente, por lo tanto se requiere acciones o actividades dirigidas a su mantenimiento dentro del marco de las lineas de defensa. | J94: 80 | K94: =+VLOOKUP(C94,Hoja1!$A$1:$M$82,13,0) -> 100%
B95: 81 | C95: =+IFERROR(INDEX(Hoja1!$A$2:$A$82,MATCH(J95,Hoja1!$H$2:$H$82,0)),"") -> 17.9 | D95: =IFERROR(VLOOKUP(C95,Hoja1!$A$2:$H$82,4,0),"") -> Monitoreo - Supervisión | E95: =+IFERROR(VLOOKUP(C95,Hoja1!$A$1:$J$82,10,0),"") -> Evaluación y comunicación de deficiencias oportunamente (Evalúa los resultados, Comunica las deficiencias y Monitorea las medidas correctivas). | F95: =+IFERROR(VLOOKUP(C95,Hoja1!$A$1:$I$82,3,0),"") -> Las deficiencias de control interno son reportadas a los responsables de nivel jerárquico superior, para tomar la acciones correspondientes | G95: =+IFERROR(VLOOKUP(C95,Hoja1!$A$1:$K$82,11,0),"") -> 3 | H95: =+IFERROR(VLOOKUP(C95,Hoja1!$A$1:$L$82,12,0),"") -> 3 | I95: Se encuentra presente y funciona correctamente, por lo tanto se requiere acciones o actividades dirigidas a su mantenimiento dentro del marco de las lineas de defensa. | J95: 81 | K95: =+VLOOKUP(C95,Hoja1!$A$1:$M$82,13,0) -> 100%
B96: 82 | C96: =+IFERROR(INDEX(Hoja1!$A$2:$A$82,MATCH(J96,Hoja1!$H$2:$H$82,0)),"") ->  | D96: =IFERROR(VLOOKUP(C96,Hoja1!$A$2:$H$82,4,0),"") ->  | E96: =+IFERROR(VLOOKUP(C96,Hoja1!$A$1:$J$82,10,0),"") ->  | F96: =+IFERROR(VLOOKUP(C96,Hoja1!$A$1:$I$82,3,0),"") ->  | G96: =+IFERROR(VLOOKUP(C96,Hoja1!$A$1:$K$82,11,0),"") ->  | H96: =+IFERROR(VLOOKUP(C96,Hoja1!$A$1:$L$82,12,0),"") ->  | J96: 82
B97: 83 | C97: =+IFERROR(INDEX(Hoja1!$A$2:$A$82,MATCH(J97,Hoja1!$H$2:$H$82,0)),"") ->  | D97: =IFERROR(VLOOKUP(C97,Hoja1!$A$2:$H$82,4,0),"") ->  | E97: =+IFERROR(VLOOKUP(C97,Hoja1!$A$1:$J$82,10,0),"") ->  | F97: =+IFERROR(VLOOKUP(C97,Hoja1!$A$1:$I$82,3,0),"") ->  | G97: =+IFERROR(VLOOKUP(C97,Hoja1!$A$1:$K$82,11,0),"") ->  | H97: =+IFERROR(VLOOKUP(C97,Hoja1!$A$1:$L$82,12,0),"") ->  | J97: 83
B98: 84 | C98: =+IFERROR(INDEX(Hoja1!$A$2:$A$82,MATCH(J98,Hoja1!$H$2:$H$82,0)),"") ->  | D98: =IFERROR(VLOOKUP(C98,Hoja1!$A$2:$H$82,4,0),"") ->  | E98: =+IFERROR(VLOOKUP(C98,Hoja1!$A$1:$J$82,10,0),"") ->  | F98: =+IFERROR(VLOOKUP(C98,Hoja1!$A$1:$I$82,3,0),"") ->  | G98: =+IFERROR(VLOOKUP(C98,Hoja1!$A$1:$K$82,11,0),"") ->  | H98: =+IFERROR(VLOOKUP(C98,Hoja1!$A$1:$L$82,12,0),"") ->  | J98: 84
B99: 85 | C99: =+IFERROR(INDEX(Hoja1!$A$2:$A$82,MATCH(J99,Hoja1!$H$2:$H$82,0)),"") ->  | D99: =IFERROR(VLOOKUP(C99,Hoja1!$A$2:$H$82,4,0),"") ->  | E99: =+IFERROR(VLOOKUP(C99,Hoja1!$A$1:$J$82,10,0),"") ->  | F99: =+IFERROR(VLOOKUP(C99,Hoja1!$A$1:$I$82,3,0),"") ->  | G99: =+IFERROR(VLOOKUP(C99,Hoja1!$A$1:$K$82,11,0),"") ->  | H99: =+IFERROR(VLOOKUP(C99,Hoja1!$A$1:$L$82,12,0),"") ->  | J99: 85
B100: 86 | C100: =+IFERROR(INDEX(Hoja1!$A$2:$A$82,MATCH(J100,Hoja1!$H$2:$H$82,0)),"") ->  | D100: =IFERROR(VLOOKUP(C100,Hoja1!$A$2:$H$82,4,0),"") ->  | E100: =+IFERROR(VLOOKUP(C100,Hoja1!$A$1:$J$82,10,0),"") ->  | F100: =+IFERROR(VLOOKUP(C100,Hoja1!$A$1:$I$82,3,0),"") ->  | G100: =+IFERROR(VLOOKUP(C100,Hoja1!$A$1:$K$82,11,0),"") ->  | H100: =+IFERROR(VLOOKUP(C100,Hoja1!$A$1:$L$82,12,0),"") ->  | J100: 86
B101: 87 | C101: =+IFERROR(INDEX(Hoja1!$A$2:$A$82,MATCH(J101,Hoja1!$H$2:$H$82,0)),"") ->  | D101: =IFERROR(VLOOKUP(C101,Hoja1!$A$2:$H$82,4,0),"") ->  | E101: =+IFERROR(VLOOKUP(C101,Hoja1!$A$1:$J$82,10,0),"") ->  | F101: =+IFERROR(VLOOKUP(C101,Hoja1!$A$1:$I$82,3,0),"") ->  | G101: =+IFERROR(VLOOKUP(C101,Hoja1!$A$1:$K$82,11,0),"") ->  | H101: =+IFERROR(VLOOKUP(C101,Hoja1!$A$1:$L$82,12,0),"") ->  | J101: 87
B102: 88 | C102: =+IFERROR(INDEX(Hoja1!$A$2:$A$82,MATCH(J102,Hoja1!$H$2:$H$82,0)),"") ->  | D102: =IFERROR(VLOOKUP(C102,Hoja1!$A$2:$H$82,4,0),"") ->  | E102: =+IFERROR(VLOOKUP(C102,Hoja1!$A$1:$J$82,10,0),"") ->  | F102: =+IFERROR(VLOOKUP(C102,Hoja1!$A$1:$I$82,3,0),"") ->  | G102: =+IFERROR(VLOOKUP(C102,Hoja1!$A$1:$K$82,11,0),"") ->  | H102: =+IFERROR(VLOOKUP(C102,Hoja1!$A$1:$L$82,12,0),"") ->  | J102: 88
B103: 89 | C103: =+IFERROR(INDEX(Hoja1!$A$2:$A$82,MATCH(J103,Hoja1!$H$2:$H$82,0)),"") ->  | D103: =IFERROR(VLOOKUP(C103,Hoja1!$A$2:$H$82,4,0),"") ->  | E103: =+IFERROR(VLOOKUP(C103,Hoja1!$A$1:$J$82,10,0),"") ->  | F103: =+IFERROR(VLOOKUP(C103,Hoja1!$A$1:$I$82,3,0),"") ->  | G103: =+IFERROR(VLOOKUP(C103,Hoja1!$A$1:$K$82,11,0),"") ->  | H103: =+IFERROR(VLOOKUP(C103,Hoja1!$A$1:$L$82,12,0),"") ->  | J103: 89
B104: 90 | C104: =+IFERROR(INDEX(Hoja1!$A$2:$A$82,MATCH(J104,Hoja1!$H$2:$H$82,0)),"") ->  | D104: =IFERROR(VLOOKUP(C104,Hoja1!$A$2:$H$82,4,0),"") ->  | E104: =+IFERROR(VLOOKUP(C104,Hoja1!$A$1:$J$82,10,0),"") ->  | F104: =+IFERROR(VLOOKUP(C104,Hoja1!$A$1:$I$82,3,0),"") ->  | G104: =+IFERROR(VLOOKUP(C104,Hoja1!$A$1:$K$82,11,0),"") ->  | H104: =+IFERROR(VLOOKUP(C104,Hoja1!$A$1:$L$82,12,0),"") ->  | J104: 90
B105: 91 | C105: =+IFERROR(INDEX(Hoja1!$A$2:$A$82,MATCH(J105,Hoja1!$H$2:$H$82,0)),"") ->  | D105: =IFERROR(VLOOKUP(C105,Hoja1!$A$2:$H$82,4,0),"") ->  | E105: =+IFERROR(VLOOKUP(C105,Hoja1!$A$1:$J$82,10,0),"") ->  | F105: =+IFERROR(VLOOKUP(C105,Hoja1!$A$1:$I$82,3,0),"") ->  | G105: =+IFERROR(VLOOKUP(C105,Hoja1!$A$1:$K$82,11,0),"") ->  | H105: =+IFERROR(VLOOKUP(C105,Hoja1!$A$1:$L$82,12,0),"") ->  | J105: 91
B106: 92 | C106: =+IFERROR(INDEX(Hoja1!$A$2:$A$82,MATCH(J106,Hoja1!$H$2:$H$82,0)),"") ->  | D106: =IFERROR(VLOOKUP(C106,Hoja1!$A$2:$H$82,4,0),"") ->  | E106: =+IFERROR(VLOOKUP(C106,Hoja1!$A$1:$J$82,10,0),"") ->  | F106: =+IFERROR(VLOOKUP(C106,Hoja1!$A$1:$I$82,3,0),"") ->  | G106: =+IFERROR(VLOOKUP(C106,Hoja1!$A$1:$K$82,11,0),"") ->  | H106: =+IFERROR(VLOOKUP(C106,Hoja1!$A$1:$L$82,12,0),"") ->  | J106: 92
B107: 93 | C107: =+IFERROR(INDEX(Hoja1!$A$2:$A$82,MATCH(J107,Hoja1!$H$2:$H$82,0)),"") ->  | D107: =IFERROR(VLOOKUP(C107,Hoja1!$A$2:$H$82,4,0),"") ->  | E107: =+IFERROR(VLOOKUP(C107,Hoja1!$A$1:$J$82,10,0),"") ->  | F107: =+IFERROR(VLOOKUP(C107,Hoja1!$A$1:$I$82,3,0),"") ->  | G107: =+IFERROR(VLOOKUP(C107,Hoja1!$A$1:$K$82,11,0),"") ->  | H107: =+IFERROR(VLOOKUP(C107,Hoja1!$A$1:$L$82,12,0),"") ->  | J107: 93
B108: 94 | C108: =+IFERROR(INDEX(Hoja1!$A$2:$A$82,MATCH(J108,Hoja1!$H$2:$H$82,0)),"") ->  | D108: =IFERROR(VLOOKUP(C108,Hoja1!$A$2:$H$82,4,0),"") ->  | E108: =+IFERROR(VLOOKUP(C108,Hoja1!$A$1:$J$82,10,0),"") ->  | F108: =+IFERROR(VLOOKUP(C108,Hoja1!$A$1:$I$82,3,0),"") ->  | G108: =+IFERROR(VLOOKUP(C108,Hoja1!$A$1:$K$82,11,0),"") ->  | H108: =+IFERROR(VLOOKUP(C108,Hoja1!$A$1:$L$82,12,0),"") ->  | J108: 94
B109: 95 | C109: =+IFERROR(INDEX(Hoja1!$A$2:$A$82,MATCH(J109,Hoja1!$H$2:$H$82,0)),"") ->  | D109: =IFERROR(VLOOKUP(C109,Hoja1!$A$2:$H$82,4,0),"") ->  | E109: =+IFERROR(VLOOKUP(C109,Hoja1!$A$1:$J$82,10,0),"") ->  | F109: =+IFERROR(VLOOKUP(C109,Hoja1!$A$1:$I$82,3,0),"") ->  | G109: =+IFERROR(VLOOKUP(C109,Hoja1!$A$1:$K$82,11,0),"") ->  | H109: =+IFERROR(VLOOKUP(C109,Hoja1!$A$1:$L$82,12,0),"") ->  | J109: 95
B110: 96 | C110: =+IFERROR(INDEX(Hoja1!$A$2:$A$82,MATCH(J110,Hoja1!$H$2:$H$82,0)),"") ->  | D110: =IFERROR(VLOOKUP(C110,Hoja1!$A$2:$H$82,4,0),"") ->  | E110: =+IFERROR(VLOOKUP(C110,Hoja1!$A$1:$J$82,10,0),"") ->  | F110: =+IFERROR(VLOOKUP(C110,Hoja1!$A$1:$I$82,3,0),"") ->  | G110: =+IFERROR(VLOOKUP(C110,Hoja1!$A$1:$K$82,11,0),"") ->  | H110: =+IFERROR(VLOOKUP(C110,Hoja1!$A$1:$L$82,12,0),"") ->  | J110: 96
B111: 97 | C111: =+IFERROR(INDEX(Hoja1!$A$2:$A$82,MATCH(J111,Hoja1!$H$2:$H$82,0)),"") ->  | D111: =IFERROR(VLOOKUP(C111,Hoja1!$A$2:$H$82,4,0),"") ->  | E111: =+IFERROR(VLOOKUP(C111,Hoja1!$A$1:$J$82,10,0),"") ->  | F111: =+IFERROR(VLOOKUP(C111,Hoja1!$A$1:$I$82,3,0),"") ->  | G111: =+IFERROR(VLOOKUP(C111,Hoja1!$A$1:$K$82,11,0),"") ->  | H111: =+IFERROR(VLOOKUP(C111,Hoja1!$A$1:$L$82,12,0),"") ->  | J111: 97
B112: 98 | C112: =+IFERROR(INDEX(Hoja1!$A$2:$A$82,MATCH(J112,Hoja1!$H$2:$H$82,0)),"") ->  | D112: =IFERROR(VLOOKUP(C112,Hoja1!$A$2:$H$82,4,0),"") ->  | E112: =+IFERROR(VLOOKUP(C112,Hoja1!$A$1:$J$82,10,0),"") ->  | F112: =+IFERROR(VLOOKUP(C112,Hoja1!$A$1:$I$82,3,0),"") ->  | G112: =+IFERROR(VLOOKUP(C112,Hoja1!$A$1:$K$82,11,0),"") ->  | H112: =+IFERROR(VLOOKUP(C112,Hoja1!$A$1:$L$82,12,0),"") ->  | J112: 98
B113: 99 | C113: =+IFERROR(INDEX(Hoja1!$A$2:$A$82,MATCH(J113,Hoja1!$H$2:$H$82,0)),"") ->  | D113: =IFERROR(VLOOKUP(C113,Hoja1!$A$2:$H$82,4,0),"") ->  | E113: =+IFERROR(VLOOKUP(C113,Hoja1!$A$1:$J$82,10,0),"") ->  | F113: =+IFERROR(VLOOKUP(C113,Hoja1!$A$1:$I$82,3,0),"") ->  | G113: =+IFERROR(VLOOKUP(C113,Hoja1!$A$1:$K$82,11,0),"") ->  | H113: =+IFERROR(VLOOKUP(C113,Hoja1!$A$1:$L$82,12,0),"") ->  | J113: 99
B114: 100 | C114: =+IFERROR(INDEX(Hoja1!$A$2:$A$82,MATCH(J114,Hoja1!$H$2:$H$82,0)),"") ->  | D114: =IFERROR(VLOOKUP(C114,Hoja1!$A$2:$H$82,4,0),"") ->  | E114: =+IFERROR(VLOOKUP(C114,Hoja1!$A$1:$J$82,10,0),"") ->  | F114: =+IFERROR(VLOOKUP(C114,Hoja1!$A$1:$I$82,3,0),"") ->  | G114: =+IFERROR(VLOOKUP(C114,Hoja1!$A$1:$K$82,11,0),"") ->  | H114: =+IFERROR(VLOOKUP(C114,Hoja1!$A$1:$L$82,12,0),"") ->  | J114: 100
B115: 101 | C115: =+IFERROR(INDEX(Hoja1!$A$2:$A$82,MATCH(J115,Hoja1!$H$2:$H$82,0)),"") ->  | D115: =IFERROR(VLOOKUP(C115,Hoja1!$A$2:$H$82,4,0),"") ->  | E115: =+IFERROR(VLOOKUP(C115,Hoja1!$A$1:$J$82,10,0),"") ->  | F115: =+IFERROR(VLOOKUP(C115,Hoja1!$A$1:$I$82,3,0),"") ->  | G115: =+IFERROR(VLOOKUP(C115,Hoja1!$A$1:$K$82,11,0),"") ->  | H115: =+IFERROR(VLOOKUP(C115,Hoja1!$A$1:$L$82,12,0),"") ->  | J115: 101
B116: 102 | C116: =+IFERROR(INDEX(Hoja1!$A$2:$A$82,MATCH(J116,Hoja1!$H$2:$H$82,0)),"") ->  | D116: =IFERROR(VLOOKUP(C116,Hoja1!$A$2:$H$82,4,0),"") ->  | E116: =+IFERROR(VLOOKUP(C116,Hoja1!$A$1:$J$82,10,0),"") ->  | F116: =+IFERROR(VLOOKUP(C116,Hoja1!$A$1:$I$82,3,0),"") ->  | G116: =+IFERROR(VLOOKUP(C116,Hoja1!$A$1:$K$82,11,0),"") ->  | H116: =+IFERROR(VLOOKUP(C116,Hoja1!$A$1:$L$82,12,0),"") ->  | J116: 102
B117: 103 | C117: =+IFERROR(INDEX(Hoja1!$A$2:$A$82,MATCH(J117,Hoja1!$H$2:$H$82,0)),"") ->  | D117: =IFERROR(VLOOKUP(C117,Hoja1!$A$2:$H$82,4,0),"") ->  | E117: =+IFERROR(VLOOKUP(C117,Hoja1!$A$1:$J$82,10,0),"") ->  | F117: =+IFERROR(VLOOKUP(C117,Hoja1!$A$1:$I$82,3,0),"") ->  | G117: =+IFERROR(VLOOKUP(C117,Hoja1!$A$1:$K$82,11,0),"") ->  | H117: =+IFERROR(VLOOKUP(C117,Hoja1!$A$1:$L$82,12,0),"") ->  | J117: 103
B118: 104 | C118: =+IFERROR(INDEX(Hoja1!$A$2:$A$82,MATCH(J118,Hoja1!$H$2:$H$82,0)),"") ->  | D118: =IFERROR(VLOOKUP(C118,Hoja1!$A$2:$H$82,4,0),"") ->  | E118: =+IFERROR(VLOOKUP(C118,Hoja1!$A$1:$J$82,10,0),"") ->  | F118: =+IFERROR(VLOOKUP(C118,Hoja1!$A$1:$I$82,3,0),"") ->  | G118: =+IFERROR(VLOOKUP(C118,Hoja1!$A$1:$K$82,11,0),"") ->  | H118: =+IFERROR(VLOOKUP(C118,Hoja1!$A$1:$L$82,12,0),"") ->  | J118: 104
B119: 105 | C119: =+IFERROR(INDEX(Hoja1!$A$2:$A$82,MATCH(J119,Hoja1!$H$2:$H$82,0)),"") ->  | D119: =IFERROR(VLOOKUP(C119,Hoja1!$A$2:$H$82,4,0),"") ->  | E119: =+IFERROR(VLOOKUP(C119,Hoja1!$A$1:$J$82,10,0),"") ->  | F119: =+IFERROR(VLOOKUP(C119,Hoja1!$A$1:$I$82,3,0),"") ->  | G119: =+IFERROR(VLOOKUP(C119,Hoja1!$A$1:$K$82,11,0),"") ->  | H119: =+IFERROR(VLOOKUP(C119,Hoja1!$A$1:$L$82,12,0),"") ->  | J119: 105
B120: 106 | C120: =+IFERROR(INDEX(Hoja1!$A$2:$A$82,MATCH(J120,Hoja1!$H$2:$H$82,0)),"") ->  | D120: =IFERROR(VLOOKUP(C120,Hoja1!$A$2:$H$82,4,0),"") ->  | E120: =+IFERROR(VLOOKUP(C120,Hoja1!$A$1:$J$82,10,0),"") ->  | F120: =+IFERROR(VLOOKUP(C120,Hoja1!$A$1:$I$82,3,0),"") ->  | G120: =+IFERROR(VLOOKUP(C120,Hoja1!$A$1:$K$82,11,0),"") ->  | H120: =+IFERROR(VLOOKUP(C120,Hoja1!$A$1:$L$82,12,0),"") ->  | J120: 106
B121: 107 | C121: =+IFERROR(INDEX(Hoja1!$A$2:$A$82,MATCH(J121,Hoja1!$H$2:$H$82,0)),"") ->  | D121: =IFERROR(VLOOKUP(C121,Hoja1!$A$2:$H$82,4,0),"") ->  | E121: =+IFERROR(VLOOKUP(C121,Hoja1!$A$1:$J$82,10,0),"") ->  | F121: =+IFERROR(VLOOKUP(C121,Hoja1!$A$1:$I$82,3,0),"") ->  | G121: =+IFERROR(VLOOKUP(C121,Hoja1!$A$1:$K$82,11,0),"") ->  | H121: =+IFERROR(VLOOKUP(C121,Hoja1!$A$1:$L$82,12,0),"") ->  | J121: 107
B122: 108 | C122: =+IFERROR(INDEX(Hoja1!$A$2:$A$82,MATCH(J122,Hoja1!$H$2:$H$82,0)),"") ->  | D122: =IFERROR(VLOOKUP(C122,Hoja1!$A$2:$H$82,4,0),"") ->  | E122: =+IFERROR(VLOOKUP(C122,Hoja1!$A$1:$J$82,10,0),"") ->  | F122: =+IFERROR(VLOOKUP(C122,Hoja1!$A$1:$I$82,3,0),"") ->  | G122: =+IFERROR(VLOOKUP(C122,Hoja1!$A$1:$K$82,11,0),"") ->  | H122: =+IFERROR(VLOOKUP(C122,Hoja1!$A$1:$L$82,12,0),"") ->  | J122: 108
B123: 109 | C123: =+IFERROR(INDEX(Hoja1!$A$2:$A$82,MATCH(J123,Hoja1!$H$2:$H$82,0)),"") ->  | D123: =IFERROR(VLOOKUP(C123,Hoja1!$A$2:$H$82,4,0),"") ->  | E123: =+IFERROR(VLOOKUP(C123,Hoja1!$A$1:$J$82,10,0),"") ->  | F123: =+IFERROR(VLOOKUP(C123,Hoja1!$A$1:$I$82,3,0),"") ->  | G123: =+IFERROR(VLOOKUP(C123,Hoja1!$A$1:$K$82,11,0),"") ->  | H123: =+IFERROR(VLOOKUP(C123,Hoja1!$A$1:$L$82,12,0),"") ->  | J123: 109
B124: 110 | C124: =+IFERROR(INDEX(Hoja1!$A$2:$A$82,MATCH(J124,Hoja1!$H$2:$H$82,0)),"") ->  | D124: =IFERROR(VLOOKUP(C124,Hoja1!$A$2:$H$82,4,0),"") ->  | E124: =+IFERROR(VLOOKUP(C124,Hoja1!$A$1:$J$82,10,0),"") ->  | F124: =+IFERROR(VLOOKUP(C124,Hoja1!$A$1:$I$82,3,0),"") ->  | G124: =+IFERROR(VLOOKUP(C124,Hoja1!$A$1:$K$82,11,0),"") ->  | H124: =+IFERROR(VLOOKUP(C124,Hoja1!$A$1:$L$82,12,0),"") ->  | J124: 110
B125: 111 | C125: =+IFERROR(INDEX(Hoja1!$A$2:$A$82,MATCH(J125,Hoja1!$H$2:$H$82,0)),"") ->  | D125: =IFERROR(VLOOKUP(C125,Hoja1!$A$2:$H$82,4,0),"") ->  | E125: =+IFERROR(VLOOKUP(C125,Hoja1!$A$1:$J$82,10,0),"") ->  | F125: =+IFERROR(VLOOKUP(C125,Hoja1!$A$1:$I$82,3,0),"") ->  | G125: =+IFERROR(VLOOKUP(C125,Hoja1!$A$1:$K$82,11,0),"") ->  | H125: =+IFERROR(VLOOKUP(C125,Hoja1!$A$1:$L$82,12,0),"") ->  | J125: 111
B126: 112 | C126: =+IFERROR(INDEX(Hoja1!$A$2:$A$82,MATCH(J126,Hoja1!$H$2:$H$82,0)),"") ->  | D126: =IFERROR(VLOOKUP(C126,Hoja1!$A$2:$H$82,4,0),"") ->  | E126: =+IFERROR(VLOOKUP(C126,Hoja1!$A$1:$J$82,10,0),"") ->  | F126: =+IFERROR(VLOOKUP(C126,Hoja1!$A$1:$I$82,3,0),"") ->  | G126: =+IFERROR(VLOOKUP(C126,Hoja1!$A$1:$K$82,11,0),"") ->  | H126: =+IFERROR(VLOOKUP(C126,Hoja1!$A$1:$L$82,12,0),"") ->  | J126: 112
B127: 113 | C127: =+IFERROR(INDEX(Hoja1!$A$2:$A$82,MATCH(J127,Hoja1!$H$2:$H$82,0)),"") ->  | D127: =IFERROR(VLOOKUP(C127,Hoja1!$A$2:$H$82,4,0),"") ->  | E127: =+IFERROR(VLOOKUP(C127,Hoja1!$A$1:$J$82,10,0),"") ->  | F127: =+IFERROR(VLOOKUP(C127,Hoja1!$A$1:$I$82,3,0),"") ->  | G127: =+IFERROR(VLOOKUP(C127,Hoja1!$A$1:$K$82,11,0),"") ->  | H127: =+IFERROR(VLOOKUP(C127,Hoja1!$A$1:$L$82,12,0),"") ->  | J127: 113
B128: 114 | C128: =+IFERROR(INDEX(Hoja1!$A$2:$A$82,MATCH(J128,Hoja1!$H$2:$H$82,0)),"") ->  | D128: =IFERROR(VLOOKUP(C128,Hoja1!$A$2:$H$82,4,0),"") ->  | E128: =+IFERROR(VLOOKUP(C128,Hoja1!$A$1:$J$82,10,0),"") ->  | F128: =+IFERROR(VLOOKUP(C128,Hoja1!$A$1:$I$82,3,0),"") ->  | G128: =+IFERROR(VLOOKUP(C128,Hoja1!$A$1:$K$82,11,0),"") ->  | H128: =+IFERROR(VLOOKUP(C128,Hoja1!$A$1:$L$82,12,0),"") ->  | J128: 114
B129: 115 | C129: =+IFERROR(INDEX(Hoja1!$A$2:$A$82,MATCH(J129,Hoja1!$H$2:$H$82,0)),"") ->  | D129: =IFERROR(VLOOKUP(C129,Hoja1!$A$2:$H$82,4,0),"") ->  | E129: =+IFERROR(VLOOKUP(C129,Hoja1!$A$1:$J$82,10,0),"") ->  | F129: =+IFERROR(VLOOKUP(C129,Hoja1!$A$1:$I$82,3,0),"") ->  | G129: =+IFERROR(VLOOKUP(C129,Hoja1!$A$1:$K$82,11,0),"") ->  | H129: =+IFERROR(VLOOKUP(C129,Hoja1!$A$1:$L$82,12,0),"") ->  | J129: 115
B130: 116 | C130: =+IFERROR(INDEX(Hoja1!$A$2:$A$82,MATCH(J130,Hoja1!$H$2:$H$82,0)),"") ->  | D130: =IFERROR(VLOOKUP(C130,Hoja1!$A$2:$H$82,4,0),"") ->  | E130: =+IFERROR(VLOOKUP(C130,Hoja1!$A$1:$J$82,10,0),"") ->  | F130: =+IFERROR(VLOOKUP(C130,Hoja1!$A$1:$I$82,3,0),"") ->  | G130: =+IFERROR(VLOOKUP(C130,Hoja1!$A$1:$K$82,11,0),"") ->  | H130: =+IFERROR(VLOOKUP(C130,Hoja1!$A$1:$L$82,12,0),"") ->  | J130: 116
B131: 117 | C131: =+IFERROR(INDEX(Hoja1!$A$2:$A$82,MATCH(J131,Hoja1!$H$2:$H$82,0)),"") ->  | D131: =IFERROR(VLOOKUP(C131,Hoja1!$A$2:$H$82,4,0),"") ->  | E131: =+IFERROR(VLOOKUP(C131,Hoja1!$A$1:$J$82,10,0),"") ->  | F131: =+IFERROR(VLOOKUP(C131,Hoja1!$A$1:$I$82,3,0),"") ->  | G131: =+IFERROR(VLOOKUP(C131,Hoja1!$A$1:$K$82,11,0),"") ->  | H131: =+IFERROR(VLOOKUP(C131,Hoja1!$A$1:$L$82,12,0),"") ->  | J131: 117
B132: 118 | C132: =+IFERROR(INDEX(Hoja1!$A$2:$A$82,MATCH(J132,Hoja1!$H$2:$H$82,0)),"") ->  | D132: =IFERROR(VLOOKUP(C132,Hoja1!$A$2:$H$82,4,0),"") ->  | E132: =+IFERROR(VLOOKUP(C132,Hoja1!$A$1:$J$82,10,0),"") ->  | F132: =+IFERROR(VLOOKUP(C132,Hoja1!$A$1:$I$82,3,0),"") ->  | G132: =+IFERROR(VLOOKUP(C132,Hoja1!$A$1:$K$82,11,0),"") ->  | H132: =+IFERROR(VLOOKUP(C132,Hoja1!$A$1:$L$82,12,0),"") ->  | J132: 118
B133: 119 | C133: =+IFERROR(INDEX(Hoja1!$A$2:$A$82,MATCH(J133,Hoja1!$H$2:$H$82,0)),"") ->  | D133: =IFERROR(VLOOKUP(C133,Hoja1!$A$2:$H$82,4,0),"") ->  | E133: =+IFERROR(VLOOKUP(C133,Hoja1!$A$1:$J$82,10,0),"") ->  | F133: =+IFERROR(VLOOKUP(C133,Hoja1!$A$1:$I$82,3,0),"") ->  | G133: =+IFERROR(VLOOKUP(C133,Hoja1!$A$1:$K$82,11,0),"") ->  | H133: =+IFERROR(VLOOKUP(C133,Hoja1!$A$1:$L$82,12,0),"") ->  | J133: 119
B134: 120 | C134: =+IFERROR(INDEX(Hoja1!$A$2:$A$82,MATCH(J134,Hoja1!$H$2:$H$82,0)),"") ->  | D134: =IFERROR(VLOOKUP(C134,Hoja1!$A$2:$H$82,4,0),"") ->  | E134: =+IFERROR(VLOOKUP(C134,Hoja1!$A$1:$J$82,10,0),"") ->  | F134: =+IFERROR(VLOOKUP(C134,Hoja1!$A$1:$I$82,3,0),"") ->  | G134: =+IFERROR(VLOOKUP(C134,Hoja1!$A$1:$K$82,11,0),"") ->  | H134: =+IFERROR(VLOOKUP(C134,Hoja1!$A$1:$L$82,12,0),"") ->  | J134: 120
B135: 121 | C135: =+IFERROR(INDEX(Hoja1!$A$2:$A$82,MATCH(J135,Hoja1!$H$2:$H$82,0)),"") ->  | D135: =IFERROR(VLOOKUP(C135,Hoja1!$A$2:$H$82,4,0),"") ->  | E135: =+IFERROR(VLOOKUP(C135,Hoja1!$A$1:$J$82,10,0),"") ->  | F135: =+IFERROR(VLOOKUP(C135,Hoja1!$A$1:$I$82,3,0),"") ->  | G135: =+IFERROR(VLOOKUP(C135,Hoja1!$A$1:$K$82,11,0),"") ->  | H135: =+IFERROR(VLOOKUP(C135,Hoja1!$A$1:$L$82,12,0),"") ->  | J135: 121
B136: 122 | C136: =+IFERROR(INDEX(Hoja1!$A$2:$A$82,MATCH(J136,Hoja1!$H$2:$H$82,0)),"") ->  | D136: =IFERROR(VLOOKUP(C136,Hoja1!$A$2:$H$82,4,0),"") ->  | E136: =+IFERROR(VLOOKUP(C136,Hoja1!$A$1:$J$82,10,0),"") ->  | F136: =+IFERROR(VLOOKUP(C136,Hoja1!$A$1:$I$82,3,0),"") ->  | G136: =+IFERROR(VLOOKUP(C136,Hoja1!$A$1:$K$82,11,0),"") ->  | H136: =+IFERROR(VLOOKUP(C136,Hoja1!$A$1:$L$82,12,0),"") ->  | J136: 122
B137: 123 | C137: =+IFERROR(INDEX(Hoja1!$A$2:$A$82,MATCH(J137,Hoja1!$H$2:$H$82,0)),"") ->  | D137: =IFERROR(VLOOKUP(C137,Hoja1!$A$2:$H$82,4,0),"") ->  | E137: =+IFERROR(VLOOKUP(C137,Hoja1!$A$1:$J$82,10,0),"") ->  | F137: =+IFERROR(VLOOKUP(C137,Hoja1!$A$1:$I$82,3,0),"") ->  | G137: =+IFERROR(VLOOKUP(C137,Hoja1!$A$1:$K$82,11,0),"") ->  | H137: =+IFERROR(VLOOKUP(C137,Hoja1!$A$1:$L$82,12,0),"") ->  | J137: 123
B138: 124 | C138: =+IFERROR(INDEX(Hoja1!$A$2:$A$82,MATCH(J138,Hoja1!$H$2:$H$82,0)),"") ->  | D138: =IFERROR(VLOOKUP(C138,Hoja1!$A$2:$H$82,4,0),"") ->  | E138: =+IFERROR(VLOOKUP(C138,Hoja1!$A$1:$J$82,10,0),"") ->  | F138: =+IFERROR(VLOOKUP(C138,Hoja1!$A$1:$I$82,3,0),"") ->  | G138: =+IFERROR(VLOOKUP(C138,Hoja1!$A$1:$K$82,11,0),"") ->  | H138: =+IFERROR(VLOOKUP(C138,Hoja1!$A$1:$L$82,12,0),"") ->  | J138: 124
B139: 125 | C139: =+IFERROR(INDEX(Hoja1!$A$2:$A$82,MATCH(J139,Hoja1!$H$2:$H$82,0)),"") ->  | D139: =IFERROR(VLOOKUP(C139,Hoja1!$A$2:$H$82,4,0),"") ->  | E139: =+IFERROR(VLOOKUP(C139,Hoja1!$A$1:$J$82,10,0),"") ->  | F139: =+IFERROR(VLOOKUP(C139,Hoja1!$A$1:$I$82,3,0),"") ->  | G139: =+IFERROR(VLOOKUP(C139,Hoja1!$A$1:$K$82,11,0),"") ->  | H139: =+IFERROR(VLOOKUP(C139,Hoja1!$A$1:$L$82,12,0),"") ->  | J139: 125
B140: 126 | C140: =+IFERROR(INDEX(Hoja1!$A$2:$A$82,MATCH(J140,Hoja1!$H$2:$H$82,0)),"") ->  | D140: =IFERROR(VLOOKUP(C140,Hoja1!$A$2:$H$82,4,0),"") ->  | E140: =+IFERROR(VLOOKUP(C140,Hoja1!$A$1:$J$82,10,0),"") ->  | F140: =+IFERROR(VLOOKUP(C140,Hoja1!$A$1:$I$82,3,0),"") ->  | G140: =+IFERROR(VLOOKUP(C140,Hoja1!$A$1:$K$82,11,0),"") ->  | H140: =+IFERROR(VLOOKUP(C140,Hoja1!$A$1:$L$82,12,0),"") ->  | J140: 126
B141: 127 | C141: =+IFERROR(INDEX(Hoja1!$A$2:$A$82,MATCH(J141,Hoja1!$H$2:$H$82,0)),"") ->  | D141: =IFERROR(VLOOKUP(C141,Hoja1!$A$2:$H$82,4,0),"") ->  | E141: =+IFERROR(VLOOKUP(C141,Hoja1!$A$1:$J$82,10,0),"") ->  | F141: =+IFERROR(VLOOKUP(C141,Hoja1!$A$1:$I$82,3,0),"") ->  | G141: =+IFERROR(VLOOKUP(C141,Hoja1!$A$1:$K$82,11,0),"") ->  | H141: =+IFERROR(VLOOKUP(C141,Hoja1!$A$1:$L$82,12,0),"") ->  | J141: 127
B142: 128 | C142: =+IFERROR(INDEX(Hoja1!$A$2:$A$82,MATCH(J142,Hoja1!$H$2:$H$82,0)),"") ->  | D142: =IFERROR(VLOOKUP(C142,Hoja1!$A$2:$H$82,4,0),"") ->  | E142: =+IFERROR(VLOOKUP(C142,Hoja1!$A$1:$J$82,10,0),"") ->  | F142: =+IFERROR(VLOOKUP(C142,Hoja1!$A$1:$I$82,3,0),"") ->  | G142: =+IFERROR(VLOOKUP(C142,Hoja1!$A$1:$K$82,11,0),"") ->  | H142: =+IFERROR(VLOOKUP(C142,Hoja1!$A$1:$L$82,12,0),"") ->  | J142: 128
B143: 129 | C143: =+IFERROR(INDEX(Hoja1!$A$2:$A$82,MATCH(J143,Hoja1!$H$2:$H$82,0)),"") ->  | D143: =IFERROR(VLOOKUP(C143,Hoja1!$A$2:$H$82,4,0),"") ->  | E143: =+IFERROR(VLOOKUP(C143,Hoja1!$A$1:$J$82,10,0),"") ->  | F143: =+IFERROR(VLOOKUP(C143,Hoja1!$A$1:$I$82,3,0),"") ->  | G143: =+IFERROR(VLOOKUP(C143,Hoja1!$A$1:$K$82,11,0),"") ->  | H143: =+IFERROR(VLOOKUP(C143,Hoja1!$A$1:$L$82,12,0),"") ->  | J143: 129
B144: =+IF(ISTEXT(D144),J144,"") -> 130 | C144: =+IFERROR(INDEX(Hoja1!$A$2:$A$82,MATCH(J144,Hoja1!$H$2:$H$82,0)),"") ->  | D144: =IFERROR(VLOOKUP(C144,Hoja1!$A$2:$H$82,4,0),"") ->  | E144: =+IFERROR(VLOOKUP(C144,Hoja1!$A$1:$J$82,10,0),"") ->  | F144: =+IFERROR(VLOOKUP(C144,Hoja1!$A$1:$I$82,3,0),"") ->  | G144: =+IFERROR(VLOOKUP(C144,Hoja1!$A$1:$K$82,11,0),"") ->  | H144: =+IFERROR(VLOOKUP(C144,Hoja1!$A$1:$L$82,12,0),"") ->  | J144: 130
B145: 131 | C145: =+IFERROR(INDEX(Hoja1!$A$2:$A$82,MATCH(J145,Hoja1!$H$2:$H$82,0)),"") ->  | D145: =IFERROR(VLOOKUP(C145,Hoja1!$A$2:$H$82,4,0),"") ->  | E145: =+IFERROR(VLOOKUP(C145,Hoja1!$A$1:$J$82,10,0),"") ->  | F145: =+IFERROR(VLOOKUP(C145,Hoja1!$A$1:$I$82,3,0),"") ->  | G145: =+IFERROR(VLOOKUP(C145,Hoja1!$A$1:$K$82,11,0),"") ->  | H145: =+IFERROR(VLOOKUP(C145,Hoja1!$A$1:$L$82,12,0),"") ->  | J145: 131
B146: 132 | C146: =+IFERROR(INDEX(Hoja1!$A$2:$A$82,MATCH(J146,Hoja1!$H$2:$H$82,0)),"") ->  | D146: =IFERROR(VLOOKUP(C146,Hoja1!$A$2:$H$82,4,0),"") ->  | E146: =+IFERROR(VLOOKUP(C146,Hoja1!$A$1:$J$82,10,0),"") ->  | F146: =+IFERROR(VLOOKUP(C146,Hoja1!$A$1:$I$82,3,0),"") ->  | G146: =+IFERROR(VLOOKUP(C146,Hoja1!$A$1:$K$82,11,0),"") ->  | H146: =+IFERROR(VLOOKUP(C146,Hoja1!$A$1:$L$82,12,0),"") ->  | J146: 132
B147: 133 | C147: =+IFERROR(INDEX(Hoja1!$A$2:$A$82,MATCH(J147,Hoja1!$H$2:$H$82,0)),"") ->  | D147: =IFERROR(VLOOKUP(C147,Hoja1!$A$2:$H$82,4,0),"") ->  | E147: =+IFERROR(VLOOKUP(C147,Hoja1!$A$1:$J$82,10,0),"") ->  | F147: =+IFERROR(VLOOKUP(C147,Hoja1!$A$1:$I$82,3,0),"") ->  | G147: =+IFERROR(VLOOKUP(C147,Hoja1!$A$1:$K$82,11,0),"") ->  | H147: =+IFERROR(VLOOKUP(C147,Hoja1!$A$1:$L$82,12,0),"") ->  | J147: 133
B148: 134 | C148: =+IFERROR(INDEX(Hoja1!$A$2:$A$82,MATCH(J148,Hoja1!$H$2:$H$82,0)),"") ->  | D148: =IFERROR(VLOOKUP(C148,Hoja1!$A$2:$H$82,4,0),"") ->  | E148: =+IFERROR(VLOOKUP(C148,Hoja1!$A$1:$J$82,10,0),"") ->  | F148: =+IFERROR(VLOOKUP(C148,Hoja1!$A$1:$I$82,3,0),"") ->  | G148: =+IFERROR(VLOOKUP(C148,Hoja1!$A$1:$K$82,11,0),"") ->  | H148: =+IFERROR(VLOOKUP(C148,Hoja1!$A$1:$L$82,12,0),"") ->  | J148: 134
B149: 135 | C149: =+IFERROR(INDEX(Hoja1!$A$2:$A$82,MATCH(J149,Hoja1!$H$2:$H$82,0)),"") ->  | D149: =IFERROR(VLOOKUP(C149,Hoja1!$A$2:$H$82,4,0),"") ->  | E149: =+IFERROR(VLOOKUP(C149,Hoja1!$A$1:$J$82,10,0),"") ->  | F149: =+IFERROR(VLOOKUP(C149,Hoja1!$A$1:$I$82,3,0),"") ->  | G149: =+IFERROR(VLOOKUP(C149,Hoja1!$A$1:$K$82,11,0),"") ->  | H149: =+IFERROR(VLOOKUP(C149,Hoja1!$A$1:$L$82,12,0),"") ->  | J149: 135
B150: 136 | C150: =+IFERROR(INDEX(Hoja1!$A$2:$A$82,MATCH(J150,Hoja1!$H$2:$H$82,0)),"") ->  | D150: =IFERROR(VLOOKUP(C150,Hoja1!$A$2:$H$82,4,0),"") ->  | E150: =+IFERROR(VLOOKUP(C150,Hoja1!$A$1:$J$82,10,0),"") ->  | F150: =+IFERROR(VLOOKUP(C150,Hoja1!$A$1:$I$82,3,0),"") ->  | G150: =+IFERROR(VLOOKUP(C150,Hoja1!$A$1:$K$82,11,0),"") ->  | H150: =+IFERROR(VLOOKUP(C150,Hoja1!$A$1:$L$82,12,0),"") ->  | J150: 136
B151: 137 | C151: =+IFERROR(INDEX(Hoja1!$A$2:$A$82,MATCH(J151,Hoja1!$H$2:$H$82,0)),"") ->  | D151: =IFERROR(VLOOKUP(C151,Hoja1!$A$2:$H$82,4,0),"") ->  | E151: =+IFERROR(VLOOKUP(C151,Hoja1!$A$1:$J$82,10,0),"") ->  | F151: =+IFERROR(VLOOKUP(C151,Hoja1!$A$1:$I$82,3,0),"") ->  | G151: =+IFERROR(VLOOKUP(C151,Hoja1!$A$1:$K$82,11,0),"") ->  | H151: =+IFERROR(VLOOKUP(C151,Hoja1!$A$1:$L$82,12,0),"") ->  | J151: 137
B152: 138 | C152: =+IFERROR(INDEX(Hoja1!$A$2:$A$82,MATCH(J152,Hoja1!$H$2:$H$82,0)),"") ->  | D152: =IFERROR(VLOOKUP(C152,Hoja1!$A$2:$H$82,4,0),"") ->  | E152: =+IFERROR(VLOOKUP(C152,Hoja1!$A$1:$J$82,10,0),"") ->  | F152: =+IFERROR(VLOOKUP(C152,Hoja1!$A$1:$I$82,3,0),"") ->  | G152: =+IFERROR(VLOOKUP(C152,Hoja1!$A$1:$K$82,11,0),"") ->  | H152: =+IFERROR(VLOOKUP(C152,Hoja1!$A$1:$L$82,12,0),"") ->  | J152: 138
B153: 139 | C153: =+IFERROR(INDEX(Hoja1!$A$2:$A$82,MATCH(J153,Hoja1!$H$2:$H$82,0)),"") ->  | D153: =IFERROR(VLOOKUP(C153,Hoja1!$A$2:$H$82,4,0),"") ->  | E153: =+IFERROR(VLOOKUP(C153,Hoja1!$A$1:$J$82,10,0),"") ->  | F153: =+IFERROR(VLOOKUP(C153,Hoja1!$A$1:$I$82,3,0),"") ->  | G153: =+IFERROR(VLOOKUP(C153,Hoja1!$A$1:$K$82,11,0),"") ->  | H153: =+IFERROR(VLOOKUP(C153,Hoja1!$A$1:$L$82,12,0),"") ->  | J153: 139
B154: 140 | C154: =+IFERROR(INDEX(Hoja1!$A$2:$A$82,MATCH(J154,Hoja1!$H$2:$H$82,0)),"") ->  | D154: =IFERROR(VLOOKUP(C154,Hoja1!$A$2:$H$82,4,0),"") ->  | E154: =+IFERROR(VLOOKUP(C154,Hoja1!$A$1:$J$82,10,0),"") ->  | F154: =+IFERROR(VLOOKUP(C154,Hoja1!$A$1:$I$82,3,0),"") ->  | G154: =+IFERROR(VLOOKUP(C154,Hoja1!$A$1:$K$82,11,0),"") ->  | H154: =+IFERROR(VLOOKUP(C154,Hoja1!$A$1:$L$82,12,0),"") ->  | J154: 140
B155: 141 | C155: =+IFERROR(INDEX(Hoja1!$A$2:$A$82,MATCH(J155,Hoja1!$H$2:$H$82,0)),"") ->  | D155: =IFERROR(VLOOKUP(C155,Hoja1!$A$2:$H$82,4,0),"") ->  | E155: =+IFERROR(VLOOKUP(C155,Hoja1!$A$1:$J$82,10,0),"") ->  | F155: =+IFERROR(VLOOKUP(C155,Hoja1!$A$1:$I$82,3,0),"") ->  | G155: =+IFERROR(VLOOKUP(C155,Hoja1!$A$1:$K$82,11,0),"") ->  | H155: =+IFERROR(VLOOKUP(C155,Hoja1!$A$1:$L$82,12,0),"") ->  | J155: 141
B156: 142 | C156: =+IFERROR(INDEX(Hoja1!$A$2:$A$82,MATCH(J156,Hoja1!$H$2:$H$82,0)),"") ->  | D156: =IFERROR(VLOOKUP(C156,Hoja1!$A$2:$H$82,4,0),"") ->  | E156: =+IFERROR(VLOOKUP(C156,Hoja1!$A$1:$J$82,10,0),"") ->  | F156: =+IFERROR(VLOOKUP(C156,Hoja1!$A$1:$I$82,3,0),"") ->  | G156: =+IFERROR(VLOOKUP(C156,Hoja1!$A$1:$K$82,11,0),"") ->  | H156: =+IFERROR(VLOOKUP(C156,Hoja1!$A$1:$L$82,12,0),"") ->  | J156: 142
B157: 143 | C157: =+IFERROR(INDEX(Hoja1!$A$2:$A$82,MATCH(J157,Hoja1!$H$2:$H$82,0)),"") ->  | D157: =IFERROR(VLOOKUP(C157,Hoja1!$A$2:$H$82,4,0),"") ->  | E157: =+IFERROR(VLOOKUP(C157,Hoja1!$A$1:$J$82,10,0),"") ->  | F157: =+IFERROR(VLOOKUP(C157,Hoja1!$A$1:$I$82,3,0),"") ->  | G157: =+IFERROR(VLOOKUP(C157,Hoja1!$A$1:$K$82,11,0),"") ->  | H157: =+IFERROR(VLOOKUP(C157,Hoja1!$A$1:$L$82,12,0),"") ->  | J157: 143
B158: 144 | C158: =+IFERROR(INDEX(Hoja1!$A$2:$A$82,MATCH(J158,Hoja1!$H$2:$H$82,0)),"") ->  | D158: =IFERROR(VLOOKUP(C158,Hoja1!$A$2:$H$82,4,0),"") ->  | E158: =+IFERROR(VLOOKUP(C158,Hoja1!$A$1:$J$82,10,0),"") ->  | F158: =+IFERROR(VLOOKUP(C158,Hoja1!$A$1:$I$82,3,0),"") ->  | G158: =+IFERROR(VLOOKUP(C158,Hoja1!$A$1:$K$82,11,0),"") ->  | H158: =+IFERROR(VLOOKUP(C158,Hoja1!$A$1:$L$82,12,0),"") ->  | J158: 144
B159: 145 | C159: =+IFERROR(INDEX(Hoja1!$A$2:$A$82,MATCH(J159,Hoja1!$H$2:$H$82,0)),"") ->  | D159: =IFERROR(VLOOKUP(C159,Hoja1!$A$2:$H$82,4,0),"") ->  | E159: =+IFERROR(VLOOKUP(C159,Hoja1!$A$1:$J$82,10,0),"") ->  | F159: =+IFERROR(VLOOKUP(C159,Hoja1!$A$1:$I$82,3,0),"") ->  | G159: =+IFERROR(VLOOKUP(C159,Hoja1!$A$1:$K$82,11,0),"") ->  | H159: =+IFERROR(VLOOKUP(C159,Hoja1!$A$1:$L$82,12,0),"") ->  | J159: 145
B160: 146 | C160: =+IFERROR(INDEX(Hoja1!$A$2:$A$82,MATCH(J160,Hoja1!$H$2:$H$82,0)),"") ->  | D160: =IFERROR(VLOOKUP(C160,Hoja1!$A$2:$H$82,4,0),"") ->  | E160: =+IFERROR(VLOOKUP(C160,Hoja1!$A$1:$J$82,10,0),"") ->  | F160: =+IFERROR(VLOOKUP(C160,Hoja1!$A$1:$I$82,3,0),"") ->  | G160: =+IFERROR(VLOOKUP(C160,Hoja1!$A$1:$K$82,11,0),"") ->  | H160: =+IFERROR(VLOOKUP(C160,Hoja1!$A$1:$L$82,12,0),"") ->  | J160: 146
B161: 147 | C161: =+IFERROR(INDEX(Hoja1!$A$2:$A$82,MATCH(J161,Hoja1!$H$2:$H$82,0)),"") ->  | D161: =IFERROR(VLOOKUP(C161,Hoja1!$A$2:$H$82,4,0),"") ->  | E161: =+IFERROR(VLOOKUP(C161,Hoja1!$A$1:$J$82,10,0),"") ->  | F161: =+IFERROR(VLOOKUP(C161,Hoja1!$A$1:$I$82,3,0),"") ->  | G161: =+IFERROR(VLOOKUP(C161,Hoja1!$A$1:$K$82,11,0),"") ->  | H161: =+IFERROR(VLOOKUP(C161,Hoja1!$A$1:$L$82,12,0),"") ->  | J161: 147
B162: 148 | C162: =+IFERROR(INDEX(Hoja1!$A$2:$A$82,MATCH(J162,Hoja1!$H$2:$H$82,0)),"") ->  | D162: =IFERROR(VLOOKUP(C162,Hoja1!$A$2:$H$82,4,0),"") ->  | E162: =+IFERROR(VLOOKUP(C162,Hoja1!$A$1:$J$82,10,0),"") ->  | F162: =+IFERROR(VLOOKUP(C162,Hoja1!$A$1:$I$82,3,0),"") ->  | G162: =+IFERROR(VLOOKUP(C162,Hoja1!$A$1:$K$82,11,0),"") ->  | H162: =+IFERROR(VLOOKUP(C162,Hoja1!$A$1:$L$82,12,0),"") ->  | J162: 148
B163: 149 | C163: =+IFERROR(INDEX(Hoja1!$A$2:$A$82,MATCH(J163,Hoja1!$H$2:$H$82,0)),"") ->  | D163: =IFERROR(VLOOKUP(C163,Hoja1!$A$2:$H$82,4,0),"") ->  | E163: =+IFERROR(VLOOKUP(C163,Hoja1!$A$1:$J$82,10,0),"") ->  | F163: =+IFERROR(VLOOKUP(C163,Hoja1!$A$1:$I$82,3,0),"") ->  | G163: =+IFERROR(VLOOKUP(C163,Hoja1!$A$1:$K$82,11,0),"") ->  | H163: =+IFERROR(VLOOKUP(C163,Hoja1!$A$1:$L$82,12,0),"") ->  | J163: 149
B164: 150 | C164: =+IFERROR(INDEX(Hoja1!$A$2:$A$82,MATCH(J164,Hoja1!$H$2:$H$82,0)),"") ->  | D164: =IFERROR(VLOOKUP(C164,Hoja1!$A$2:$H$82,4,0),"") ->  | E164: =+IFERROR(VLOOKUP(C164,Hoja1!$A$1:$J$82,10,0),"") ->  | F164: =+IFERROR(VLOOKUP(C164,Hoja1!$A$1:$I$82,3,0),"") ->  | G164: =+IFERROR(VLOOKUP(C164,Hoja1!$A$1:$K$82,11,0),"") ->  | H164: =+IFERROR(VLOOKUP(C164,Hoja1!$A$1:$L$82,12,0),"") ->  | J164: 150

Sheet Conclusiones
E3: Nombre de la Entidad: | F3: Corporación Autónoma Regional del Atlántico C.R.A
E5: Periodo Evaluado: | F5: JULIO A DICIEMBRE DE 2025
I7: Estado del sistema de Control Interno de la entidad | M7: =+AVERAGE(G25,G27,G29,G31,G33) -> 82%
C17: Conclusión general sobre la evaluación del Sistema de Control Interno
C19: ¿Están todos los componentes operando juntos y de manera integrada? (Si / en proceso / No) (Justifique su respuesta): | E19: En proceso
C20: ¿Es efectivo el sistema de control interno para los objetivos evaluados? (Si/No) (Justifique su respuesta): | E20: No | F20: El Sistema de Control Interno es efectivo para los objetivos evaluados, sin embargo falta la creación e implementación de algunos documentos como Gestión de conflictos de interés, seguridad digital, matrices de roles y usuarios siguiendo los principios de segregación de funciones
C21: La entidad cuenta dentro de su Sistema de Control Interno, con una institucionalidad (Líneas de defensa) que le permita la toma de decisiones frente al control (Si/No) (Justifique su respuesta): | E21: Si | F21: Las líneas de defensa del modelo MIPG se establecieron y trataron en el Comité de Control Interno. La OCI las oficializá a través de un procedimiento de monitoreo y autoevaluación que deberán llevar a cabo los líderes de proceso y el grupo SGI, lo cual será socializado durante la vigencia 2025 a todas las dependencias de la Entidad.
C23: Componente | E23: ¿El componente está presente y funcionando? | G23: Nivel de Cumplimiento componente | I23: Estado actual: Explicacion de las Debilidades y/o Fortalezas | K23: Nivel de Cumplimiento componente presentado en el informe anterior | M23: Estado del componente presentado en el informe anterior | O23: Avance final del componente
C25: Ambiente de control | E25: =+IF(Hoja1!$N$2>=0.5,"Si","No") -> Si | G25: =+Hoja1!N2 -> 71% | K25: 77% | O25: =G25-K25 -> -6%
C27: Evaluación de riesgos | E27: =+IF(Hoja1!$N$26>=0.5,"Si","No") -> Si | G27: =+Hoja1!N26 -> 96% | K27: 97% | O27: =G27-K27 -> -1%
C29: Actividades de control | E29: =+IF(Hoja1!$N$43>=0.5,"Si","No") -> Si | G29: =+Hoja1!N43 -> 65% | K29: 67% | O29: =G29-K29 -> -2%
C31: Información y comunicación | E31: =+IF(Hoja1!$N$55>=0.5,"Si","No") -> Si | G31: =+Hoja1!N55 -> 84% | K31: 82% | O31: =G31-K31 -> 2%
C33: Monitoreo | E33: =+IF(Hoja1!$N$69>=0.5,"Si","No") -> Si | G33: =+Hoja1!N69 -> 96% | K33: 71% | O33: =G33-K33 -> 25%

Sheet Hoja1 (hidden)
A1: ID | B1: Lineamiento | C1: Pregunta | D1: Componente | E1: Dimensión o política del mipg asociada al requerimiento | F1: Evaluación | G1: Puntaje | H1: Orden | I1: Descripción del lineamiento | J1: Lineamiento | K1: Presente | L1: Funcionando | M1: Nivel de cumplimiento - aspectos particulares por componente
A2: 1.1 | B2: =+LEFT(A2,1) -> 1 | C2: =+MID(VLOOKUP(A2,'Ambiente de Control'!$B$21:$C$235,2,0),4,LEN(VLOOKUP(A2,'Ambiente de Control'!$B$21:$C$235,2,0))-4) -> Aplicación del Código de Integridad. (incluye análisis de desviaciones, convivencia laboral, temas disciplinarios internos, quejas o denuncias sobres los servidores de la entidad, u otros temas relacionados) | D2: Ambiente de Control | E2: =+VLOOKUP(A2,'Ambiente de Control'!$B$21:$D$235,3,0) -> Dimensión Talento Humano Política Integridad | F2: =+VLOOKUP(A2,'Ambiente de Control'!$B$21:$K$235,10,0) -> Oportunidad de mejora | G2: =+VLOOKUP(A2,'Ambiente de Control'!$B$21:$O$39,13) -> 40.04587 | H2: =+_xlfn.RANK.EQ(G2,$G$2:$G$82,1) -> 12 | I2: =+IF(F2=$F$2,$P$4,IF(F2=$F$3,$P$2,$P$3)) -> Cuando en el análisis de los requerimientos en los diferenes componentes del MECI se cuente con aspectos evaluados en nivel 1 (presente) y 1 (funcionando); 2 (presente) y 1 (funcionando). | J2: La entidad demuestra el compromiso con la integridad (valores) y principios del servicio público | K2: =+IF(ISBLANK(VLOOKUP(A2,'Ambiente de Control'!$B$24:$F$235,5,0)),"",VLOOKUP(A2,'Ambiente de Control'!$B$24:$F$235,5,0)) -> 2 | L2: =+IF(ISBLANK(VLOOKUP(A2,'Ambiente de Control'!$B$24:$K$235,9,0)),"",VLOOKUP(A2,'Ambiente de Control'!$B$24:$K$235,9,0)) -> 3 | M2: =+IF(OR(AND(K2=1,L2=1),AND(ISBLANK(K2),ISBLANK(L2)),K2="",L2=""),0,IF(OR(AND(K2=1,L2=2),AND(K2=1,L2=3)),0.25,IF(OR(AND(K2=2,L2=2),AND(K2=3,L2=1),AND(K2=3,L2=2),AND(K2=2,L2=1)),0.5,IF(AND(K2=2,L2=3),0.75,1)))) -> 0.75 | N2: =+AVERAGEIF($D$2:$D$82,D2,$M$2:$M$82) -> 0.7083333333 | O2: Oportunidad de Mejora | P2: Cuando en el análisis de los requerimientos en los diferenes componentes del MECI se cuente con aspectos evaluados en nivel 2 (presente) y 3 (funcionando).
A3: 1.2 | B3: =+LEFT(A3,1) -> 1 | C3: =+MID(VLOOKUP(A3,'Ambiente de Control'!$B$21:$C$235,2,0),4,LEN(VLOOKUP(A3,'Ambiente de Control'!$B$21:$C$235,2,0))-4) -> Mecanismos para el manejo de conflictos de interés. | D3: Ambiente de Control | E3: =+VLOOKUP(A3,'Ambiente de Control'!$B$21:$D$235,3,0) -> Dimensión Talento Humano Política Integridad | F3: =+VLOOKUP(A3,'Ambiente de Control'!$B$21:$K$235,10,0) -> Deficiencia de control (diseño o ejecución) | G3: =+VLOOKUP(A3,'Ambiente de Control'!$B$21:$O$235,13,0) -> 20.05569 | H3: =+_xlfn.RANK.EQ(G3,$G$2:$G$82,1) -> 4 | I3: Cuando en el análisis de los requerimientos en los diferenes componentes del MECI se cuente con aspectos evaluados en nivel 2 (presente) y 3 (funcionando). | J3: La entidad demuestra el compromiso con la integridad (valores) y principios del servicio público | K3: =+IF(ISBLANK(VLOOKUP(A3,'Ambiente de Control'!$B$24:$F$235,5,0)),"",VLOOKUP(A3,'Ambiente de Control'!$B$24:$F$235,5,0)) -> 3 | L3: =+IF(ISBLANK(VLOOKUP(A3,'Ambiente de Control'!$B$24:$K$235,9,0)),"",VLOOKUP(A3,'Ambiente de Control'!$B$24:$K$235,9,0)) -> 2 | M3: =+IF(OR(AND(K3=1,L3=1),AND(ISBLANK(K3),ISBLANK(L3)),K3="",L3=""),0,IF(OR(AND(K3=1,L3=2),AND(K3=1,L3=3)),0.25,IF(OR(AND(K3=2,L3=2),AND(K3=3,L3=1),AND(K3=3,L3=2),AND(K3=2,L3=1)),0.5,IF(AND(K3=2,L3=3),0.75,1)))) -> 0.5 | N3: =+AVERAGEIF($D$2:$D$82,D3,$M$2:$M$82) -> 0.7083333333 | O3: Deficiencia de Control (Diseño o Ejecución) | P3: Cuando en el análisis de los requerimientos en los diferenes componentes del MECI se cuente con aspectos evaluados en nivel 2 (presente) y 2 (funcionando); 3 (presente) y 1 (funcionando); 3 (presente) y 2 (funcionando). | R3: Deficiencia de control mayor
A4: 1.3 | B4: 1 | C4: =+MID(VLOOKUP(A4,'Ambiente de Control'!$B$21:$C$235,2,0),4,LEN(VLOOKUP(A4,'Ambiente de Control'!$B$21:$C$235,2,0))-4) -> Mecanismos frente a la detección y prevención del uso inadecuado de información privilegiada u otras situaciones que puedan implicar riesgos para la entidad | D4: Ambiente de Control | E4: =+VLOOKUP(A4,'Ambiente de Control'!$B$21:$D$235,3,0) -> Dimensión Información y Comunicación Política Transparencia y Acceso a la Información Pública Política Gestión Documental | F4: =+VLOOKUP(A4,'Ambiente de Control'!$B$21:$K$235,10,0) -> Deficiencia de control (diseño o ejecución) | G4: =+VLOOKUP(A4,'Ambiente de Control'!$B$21:$O$235,13,0) -> 20.066896 | H4: 5 | I4: Cuando en el análisis de los requerimientos en los diferenes componentes del MECI se cuente con aspectos evaluados en nivel 2 (presente) y 3 (funcionando). | J4: La entidad demuestra el compromiso con la integridad (valores) y principios del servicio público | K4: =+IF(ISBLANK(VLOOKUP(A4,'Ambiente de Control'!$B$24:$F$235,5,0)),"",VLOOKUP(A4,'Ambiente de Control'!$B$24:$F$235,5,0)) -> 3 | L4: =+IF(ISBLANK(VLOOKUP(A4,'Ambiente de Control'!$B$24:$K$235,9,0)),"",VLOOKUP(A4,'Ambiente de Control'!$B$24:$K$235,9,0)) -> 2 | M4: =+IF(OR(AND(K4=1,L4=1),AND(ISBLANK(K4),ISBLANK(L4)),K4="",L4=""),0,IF(OR(AND(K4=1,L4=2),AND(K4=1,L4=3)),0.25,IF(OR(AND(K4=2,L4=2),AND(K4=3,L4=1),AND(K4=3,L4=2),AND(K4=2,L4=1)),0.5,IF(AND(K4=2,L4=3),0.75,1)))) -> 0.5 | N4: 0.7083333333 | O4: Deficiencia de Control Mayor (Diseño y Ejecución) | P4: Cuando en el análisis de los requerimientos en los diferenes componentes del MECI se cuente con aspectos evaluados en nivel 1 (presente) y 1 (funcionando); 2 (presente) y 1 (funcionando).
A5: 1.4 | B5: 1 | C5: =+MID(VLOOKUP(A5,'Ambiente de Control'!$B$21:$C$235,2,0),4,LEN(VLOOKUP(A5,'Ambiente de Control'!$B$21:$C$235,2,0))-4) -> La evaluación de las acciones transversales de integridad, mediante el monitoreo permanente de los riesgos de corrupción. | D5: Ambiente de Control | E5: =+VLOOKUP(A5,'Ambiente de Control'!$B$21:$D$235,3,0) -> Dimension Talento Humano Politica de Integridad | F5: =+VLOOKUP(A5,'Ambiente de Control'!$B$21:$K$235,10,0) -> Deficiencia de control (diseño o ejecución) | G5: =+VLOOKUP(A5,'Ambiente de Control'!$B$21:$O$235,13,0) -> 20.06691 | H5: 6 | I5: Cuando en el análisis de los requerimientos en los diferenes componentes del MECI se cuente con aspectos evaluados en nivel 2 (presente) y 3 (funcionando). | J5: La entidad demuestra el compromiso con la integridad (valores) y principios del servicio público | K5: =+IF(ISBLANK(VLOOKUP(A5,'Ambiente de Control'!$B$24:$F$235,5,0)),"",VLOOKUP(A5,'Ambiente de Control'!$B$24:$F$235,5,0)) -> 3 | L5: =+IF(ISBLANK(VLOOKUP(A5,'Ambiente de Control'!$B$24:$K$235,9,0)),"",VLOOKUP(A5,'Ambiente de Control'!$B$24:$K$235,9,0)) -> 2 | M5: 0.5 | N5: 0.7083333333
A6: 1.5 | B6: 1 | C6: =+MID(VLOOKUP(A6,'Ambiente de Control'!$B$21:$C$235,2,0),4,LEN(VLOOKUP(A6,'Ambiente de Control'!$B$21:$C$235,2,0))-4) -> Análisis sobre viabilidad para el establecimiento de una línea de denuncia interna sobre situaciones irregulares o posibles incumplimientos al código de integridad. NOTA: Si la entidad ya cuenta con esta línea en funcionamiento, establecezca si ha aportado para la mejora de los mapas de riesgos o bien en otros ámbitos organizacionales. | D6: Ambiente de Control | E6: =+VLOOKUP(A6,'Ambiente de Control'!$B$21:$D$235,3,0) -> Dimensión Direccionamiento Estratégico y Planeación Plan Anticorrupción y de Atención al Ciudadano | F6: =+VLOOKUP(A6,'Ambiente de Control'!$B$21:$K$235,10,0) -> Deficiencia de control mayor (diseño y ejecución) | G6: =+VLOOKUP(A6,'Ambiente de Control'!$B$21:$O$235,13,0) -> 4.073569 | H6: 1 | I6: Cuando en el análisis de los requerimientos en los diferenes componentes del MECI se cuente con aspectos evaluados en nivel 2 (presente) y 2 (funcionando); 3 (presente) y 1 (funcionando); 3 (presente) y 2 (funcionando). | J6: La entidad demuestra el compromiso con la integridad (valores) y principios del servicio público | K6: =+IF(ISBLANK(VLOOKUP(A6,'Ambiente de Control'!$B$24:$F$235,5,0)),"",VLOOKUP(A6,'Ambiente de Control'!$B$24:$F$235,5,0)) -> 1 | L6: =+IF(ISBLANK(VLOOKUP(A6,'Ambiente de Control'!$B$24:$K$235,9,0)),"",VLOOKUP(A6,'Ambiente de Control'!$B$24:$K$235,9,0)) -> 2 | M6: 0.25 | N6: 0.7083333333
A7: 2.1 | B7: 2 | C7: =+MID(VLOOKUP(A7,'Ambiente de Control'!$B$21:$C$235,2,0),4,LEN(VLOOKUP(A7,'Ambiente de Control'!$B$21:$C$235,2,0))-4) -> Creación o actualización del Comité Institucional de Coordinación de Control Interno (incluye ajustes en periodicidad para reunión, articulación con el Comité Institucioanl de Gestión y Desempeño) | D7: Ambiente de Control | E7: =+VLOOKUP(A7,'Ambiente de Control'!$B$21:$D$235,3,0) -> Dimension Control Interno Politica de Control Interno | F7: =+VLOOKUP(A7,'Ambiente de Control'!$B$21:$K$235,10,0) -> Mantenimiento del control | G7: =+VLOOKUP(A7,'Ambiente de Control'!$B$21:$O$235,13,0) -> 60.0889653 | H7: 15 | I7: Cuando en el análisis de los requerimientos en los diferenes componentes del MECI se cuente con aspectos evaluados en nivel 2 (presente) y 2 (funcionando); 3 (presente) y 1 (funcionando); 3 (presente) y 2 (funcionando). | J7: Aplicación de mecanismos para ejercer una adecuada supervisión del Sistema de Control Interno | K7: =+IF(ISBLANK(VLOOKUP(A7,'Ambiente de Control'!$B$24:$F$235,5,0)),"",VLOOKUP(A7,'Ambiente de Control'!$B$24:$F$235,5,0)) -> 3 | L7: =+IF(ISBLANK(VLOOKUP(A7,'Ambiente de Control'!$B$24:$K$235,9,0)),"",VLOOKUP(A7,'Ambiente de Control'!$B$24:$K$235,9,0)) -> 3 | M7: 1 | N7: 0.7083333333
A8: 2.2 | B8: 2 | C8: =+MID(VLOOKUP(A8,'Ambiente de Control'!$B$21:$C$235,2,0),4,LEN(VLOOKUP(A8,'Ambiente de Control'!$B$21:$C$235,2,0))-4) -> Definición y documentación del Esquema de Líneas de Defens | D8: Ambiente de Control | E8: =+VLOOKUP(A8,'Ambiente de Control'!$B$21:$D$235,3,0) -> Dimension Control Interno Politica de Control Interno Lineas de defensa | F8: =+VLOOKUP(A8,'Ambiente de Control'!$B$21:$K$235,10,0) -> Deficiencia de control (diseño o ejecución) | G8: =+VLOOKUP(A8,'Ambiente de Control'!$B$21:$O$235,13,0) -> 20.0989653 | H8: 7 | I8: Cuando en el análisis de los requerimientos en los diferenes componentes del MECI se cuente con aspectos evaluados en nivel 2 (presente) y 3 (funcionando). | J8: Aplicación de mecanismos para ejercer una adecuada supervisión del Sistema de Control Interno | K8: =+IF(ISBLANK(VLOOKUP(A8,'Ambiente de Control'!$B$24:$F$235,5,0)),"",VLOOKUP(A8,'Ambiente de Control'!$B$24:$F$235,5,0)) -> 2 | L8: =+IF(ISBLANK(VLOOKUP(A8,'Ambiente de Control'!$B$24:$K$235,9,0)),"",VLOOKUP(A8,'Ambiente de Control'!$B$24:$K$235,9,0)) -> 1 | M8: 0.5 | N8: 0.7083333333
A9: 2.3 | B9: 2 | C9: =+MID(VLOOKUP(A9,'Ambiente de Control'!$B$21:$C$235,2,0),4,LEN(VLOOKUP(A9,'Ambiente de Control'!$B$21:$C$235,2,0))-4) -> Definición de líneas de reporte en temas clave para la toma de decisiones, atendiendo el Esquema de Líneas de Defens | D9: Ambiente de Control | E9: =+VLOOKUP(A9,'Ambiente de Control'!$B$21:$D$235,3,0) -> Dimension Control Interno Politica de Control Interno Linea de Defensa Dimension de Informaciòn y Comunicaciòn | F9: =+VLOOKUP(A9,'Ambiente de Control'!$B$21:$K$235,10,0) -> Deficiencia de control (diseño o ejecución) | G9: =+VLOOKUP(A9,'Ambiente de Control'!$B$21:$O$235,13,0) -> 20.15698 | H9: 8 | I9: Cuando en el análisis de los requerimientos en los diferenes componentes del MECI se cuente con aspectos evaluados en nivel 2 (presente) y 3 (funcionando). | J9: Aplicación de mecanismos para ejercer una adecuada supervisión del Sistema de Control Interno | K9: =+IF(ISBLANK(VLOOKUP(A9,'Ambiente de Control'!$B$24:$F$235,5,0)),"",VLOOKUP(A9,'Ambiente de Control'!$B$24:$F$235,5,0)) -> 2 | L9: =+IF(ISBLANK(VLOOKUP(A9,'Ambiente de Control'!$B$24:$K$235,9,0)),"",VLOOKUP(A9,'Ambiente de Control'!$B$24:$K$235,9,0)) -> 1 | M9: 0.5 | N9: 0.7083333333
A10: 3.1 | B10: 3 | C10: =+MID(VLOOKUP(A10,'Ambiente de Control'!$B$21:$C$235,2,0),4,LEN(VLOOKUP(A10,'Ambiente de Control'!$B$21:$C$235,2,0))-4) -> Definición y evaluación de la Política de Administración del Riesgo (Acorde con lineamientos de la Guía para la Administración del Riesgo de Gestión y Corrupción y Diseño de Controles en Entidades Públicas). La evaluación debe considerar su aplicación en la entidad, cambios en el entorno que puedan defnir ajustes, dificultades para su desarrollo | D10: Ambiente de Control | E10: =+VLOOKUP(A10,'Ambiente de Control'!$B$21:$D$235,3,0) -> Dimension de Direccionamiento Estrategico y Planeaciòn Politica de Planeaciòn Institucional Dimension Control Interno | F10: =+VLOOKUP(A10,'Ambiente de Control'!$B$21:$K$235,10,0) -> Deficiencia de control mayor (diseño y ejecución) | G10: =+VLOOKUP(A10,'Ambiente de Control'!$B$21:$O$235,13,0) -> 4.28965 | H10: 2 | I10: Cuando en el análisis de los requerimientos en los diferenes componentes del MECI se cuente con aspectos evaluados en nivel 2 (presente) y 2 (funcionando); 3 (presente) y 1 (funcionando); 3 (presente) y 2 (funcionando). | J10: Establece la planeación estratégica con responsables, metas, tiempos que faciliten el seguimiento y aplicación de controles que garanticen de forma razonable su cumplimiento. Así mismo a partir de la política de riesgo, establecer sistemas de gestión de riesgos y las responsabilidades para controlar riesgos específicos bajo la supervisión de la alta dirección. | K10: =+IF(ISBLANK(VLOOKUP(A10,'Ambiente de Control'!$B$24:$F$235,5,0)),"",VLOOKUP(A10,'Ambiente de Control'!$B$24:$F$235,5,0)) -> 1 | L10: =+IF(ISBLANK(VLOOKUP(A10,'Ambiente de Control'!$B$24:$K$235,9,0)),"",VLOOKUP(A10,'Ambiente de Control'!$B$24:$K$235,9,0)) -> 2 | M10: 0.25 | N10: 0.7083333333
A11: 3.3 | B11: 3 | C11: =+MID(VLOOKUP(A11,'Ambiente de Control'!$B$21:$C$235,2,0),4,LEN(VLOOKUP(A11,'Ambiente de Control'!$B$21:$C$235,2,0))-4) -> Evaluación de la planeación estratégica, considerando alertas frente a posibles incumplimientos, necesidades de recursos, cambios en el entorno que puedan afectar su desarrollo, entre otros aspectos que garanticen de forma razonable su cumplimiento | D11: Ambiente de Control | E11: =+VLOOKUP(A11,'Ambiente de Control'!$B$21:$D$235,3,0) -> Diimensiòn Evaluacion de Resultados Politica de Seguimiento y Evaluaciòn al Desemepeño Institucional Dimension Control Interno Lineas de defensa | F11: =+VLOOKUP(A11,'Ambiente de Control'!$B$21:$K$235,10,0) -> Mantenimiento del control | G11: =+VLOOKUP(A11,'Ambiente de Control'!$B$21:$O$235,13,0) -> 60.48965 | H11: 16 | I11: Cuando en el análisis de los requerimientos en los diferenes componentes del MECI se cuente con aspectos evaluados en nivel 2 (presente) y 2 (funcionando); 3 (presente) y 1 (funcionando); 3 (presente) y 2 (funcionando). | J11: Establece la planeación estratégica con responsables, metas, tiempos que faciliten el seguimiento y aplicación de controles que garanticen de forma razonable su cumplimiento. Así mismo a partir de la política de riesgo, establecer sistemas de gestión de riesgos y las responsabilidades para controlar riesgos específicos bajo la supervisión de la alta dirección. | K11: =+IF(ISBLANK(VLOOKUP(A11,'Ambiente de Control'!$B$24:$F$235,5,0)),"",VLOOKUP(A11,'Ambiente de Control'!$B$24:$F$235,5,0)) -> 3 | L11: =+IF(ISBLANK(VLOOKUP(A11,'Ambiente de Control'!$B$24:$K$235,9,0)),"",VLOOKUP(A11,'Ambiente de Control'!$B$24:$K$235,9,0)) -> 3 | M11: 1 | N11: 0.7083333333
A12: 3.2 | B12: 3 | C12: =+MID(VLOOKUP(A12,'Ambiente de Control'!$B$21:$C$235,2,0),4,LEN(VLOOKUP(A12,'Ambiente de Control'!$B$21:$C$235,2,0))-4) -> La Alta Dirección frente a la política de Administración del Riesgo definen los niveles de aceptación del riesgo, teniendo en cuenta cada uno de los objetivos establecidos. | D12: Ambiente de Control | E12: =+VLOOKUP(A12,'Ambiente de Control'!$B$21:$D$235,3,0) -> Dimension Control Interno Politica de Control Interno Linea Estrategica | F12: =+VLOOKUP(A12,'Ambiente de Control'!$B$21:$K$235,10,0) -> Deficiencia de control (diseño o ejecución) | G12: =+VLOOKUP(A12,'Ambiente de Control'!$B$21:$O$235,13,0) -> 20.389653 | H12: 9 | I12: Cuando en el análisis de los requerimientos en los diferenes componentes del MECI se cuente con aspectos evaluados en nivel 2 (presente) y 3 (funcionando). | J12: Establece la planeación estratégica con responsables, metas, tiempos que faciliten el seguimiento y aplicación de controles que garanticen de forma razonable su cumplimiento. Así mismo a partir de la política de riesgo, establecer sistemas de gestión de riesgos y las responsabilidades para controlar riesgos específicos bajo la supervisión de la alta dirección. | K12: =+IF(ISBLANK(VLOOKUP(A12,'Ambiente de Control'!$B$24:$F$235,5,0)),"",VLOOKUP(A12,'Ambiente de Control'!$B$24:$F$235,5,0)) -> 3 | L12: =+IF(ISBLANK(VLOOKUP(A12,'Ambiente de Control'!$B$24:$K$235,9,0)),"",VLOOKUP(A12,'Ambiente de Control'!$B$24:$K$235,9,0)) -> 2 | M12: 0.5 | N12: 0.7083333333
A13: 4.1 | B13: 4 | C13: =+MID(VLOOKUP(A13,'Ambiente de Control'!$B$21:$C$235,2,0),4,LEN(VLOOKUP(A13,'Ambiente de Control'!$B$21:$C$235,2,0))-4) -> Evaluación de la Planeación Estratégica del Talento Humano | D13: Ambiente de Control | E13: =+VLOOKUP(A13,'Ambiente de Control'!$B$21:$D$235,3,0) -> Dimension de Talento Humano Politica Gestion Estrategica del Talento Humano Dimension de Control Interno Lineas de Defensa | F13: =+VLOOKUP(A13,'Ambiente de Control'!$B$21:$K$235,10,0) -> Oportunidad de mejora | G13: =+VLOOKUP(A13,'Ambiente de Control'!$B$21:$O$235,13,0) -> 40.58965 | H13: 13 | I13: Cuando en el análisis de los requerimientos en los diferenes componentes del MECI se cuente con aspectos evaluados en nivel 1 (presente) y 1 (funcionando); 2 (presente) y 1 (funcionando). | J13: Compromiso con la competencia de todo el personal, por lo que la gestión del talento humano tiene un carácter estratégico con el despliegue de actividades clave para todo el ciclo de vida del servidor público –ingreso, permanencia y retiro. | K13: =+IF(ISBLANK(VLOOKUP(A13,'Ambiente de Control'!$B$24:$F$235,5,0)),"",VLOOKUP(A13,'Ambiente de Control'!$B$24:$F$235,5,0)) -> 2 | L13: =+IF(ISBLANK(VLOOKUP(A13,'Ambiente de Control'!$B$24:$K$235,9,0)),"",VLOOKUP(A13,'Ambiente de Control'!$B$24:$K$235,9,0)) -> 3 | M13: 0.75 | N13: 0.7083333333
A14: 4.2 | B14: 4 | C14: =+MID(VLOOKUP(A14,'Ambiente de Control'!$B$21:$C$235,2,0),4,LEN(VLOOKUP(A14,'Ambiente de Control'!$B$21:$C$235,2,0))-4) -> Evaluación de las actividades relacionadas con el Ingreso del personal | D14: Ambiente de Control | E14: =+VLOOKUP(A14,'Ambiente de Control'!$B$21:$D$235,3,0) -> Dimension de Talento Humano Politica Gestion Estrategica del Talento Humano Dimension de Control Interno Lineas de Defensa | F14: =+VLOOKUP(A14,'Ambiente de Control'!$B$21:$K$235,10,0) -> Oportunidad de mejora | G14: =+VLOOKUP(A14,'Ambiente de Control'!$B$21:$O$235,13,0) -> 40.68965 | H14: 14 | I14: Cuando en el análisis de los requerimientos en los diferenes componentes del MECI se cuente con aspectos evaluados en nivel 1 (presente) y 1 (funcionando); 2 (presente) y 1 (funcionando). | J14: Compromiso con la competencia de todo el personal, por lo que la gestión del talento humano tiene un carácter estratégico con el despliegue de actividades clave para todo el ciclo de vida del servidor público –ingreso, permanencia y retiro. | K14: =+IF(ISBLANK(VLOOKUP(A14,'Ambiente de Control'!$B$24:$F$235,5,0)),"",VLOOKUP(A14,'Ambiente de Control'!$B$24:$F$235,5,0)) -> 2 | L14: =+IF(ISBLANK(VLOOKUP(A14,'Ambiente de Control'!$B$24:$K$235,9,0)),"",VLOOKUP(A14,'Ambiente de Control'!$B$24:$K$235,9,0)) -> 3 | M14: 0.75 | N14: 0.7083333333
A15: 4.3 | B15: 4 | C15: =+MID(VLOOKUP(A15,'Ambiente de Control'!$B$21:$C$235,2,0),4,LEN(VLOOKUP(A15,'Ambiente de Control'!$B$21:$C$235,2,0))-4) -> Evaluación de las actividades relacionadas con la permanencia del personal | D15: Ambiente de Control | E15: =+VLOOKUP(A15,'Ambiente de Control'!$B$21:$D$235,3,0) -> Dimension de Talento Humano Politica Gestion Estrategica del Talento Humano Dimension de Control Interno Lineas de Defensa | F15: =+VLOOKUP(A15,'Ambiente de Control'!$B$21:$K$235,10,0) -> Deficiencia de control (diseño o ejecución) | G15: =+VLOOKUP(A15,'Ambiente de Control'!$B$21:$O$235,13,0) -> 20.78965 | H15: 10 | I15: Cuando en el análisis de los requerimientos en los diferenes componentes del MECI se cuente con aspectos evaluados en nivel 2 (presente) y 3 (funcionando). | J15: Compromiso con la competencia de todo el personal, por lo que la gestión del talento humano tiene un carácter estratégico con el despliegue de actividades clave para todo el ciclo de vida del servidor público –ingreso, permanencia y retiro. | K15: =+IF(ISBLANK(VLOOKUP(A15,'Ambiente de Control'!$B$24:$F$235,5,0)),"",VLOOKUP(A15,'Ambiente de Control'!$B$24:$F$235,5,0)) -> 3 | L15: =+IF(ISBLANK(VLOOKUP(A15,'Ambiente de Control'!$B$24:$K$235,9,0)),"",VLOOKUP(A15,'Ambiente de Control'!$B$24:$K$235,9,0)) -> 2 | M15: 0.5 | N15: 0.7083333333
A16: 4.4 | B16: 4 | C16: =+MID(VLOOKUP(A16,'Ambiente de Control'!$B$21:$C$235,2,0),4,LEN(VLOOKUP(A16,'Ambiente de Control'!$B$21:$C$235,2,0))-4) -> Analizar si se cuenta con políticas claras y comunicadas relacionadas con la responsabilidad de cada servidor sobre el desarrollo y mantenimiento del control interno (1a línea de defensa | D16: Ambiente de Control | E16: =+VLOOKUP(A16,'Ambiente de Control'!$B$21:$D$235,3,0) -> Dimension de Talento Humano Politica Gestion Estrategica del Talento Humano Dimension de Control Interno Lineas de Defensa | F16: =+VLOOKUP(A16,'Ambiente de Control'!$B$21:$K$235,10,0) -> Deficiencia de control mayor (diseño y ejecución) | G16: =+VLOOKUP(A16,'Ambiente de Control'!$B$21:$O$235,13,0) -> 4.88965 | H16: 3 | I16: Cuando en el análisis de los requerimientos en los diferenes componentes del MECI se cuente con aspectos evaluados en nivel 2 (presente) y 2 (funcionando); 3 (presente) y 1 (funcionando); 3 (presente) y 2 (funcionando). | J16: Compromiso con la competencia de todo el personal, por lo que la gestión del talento humano tiene un carácter estratégico con el despliegue de actividades clave para todo el ciclo de vida del servidor público –ingreso, permanencia y retiro. | K16: =+IF(ISBLANK(VLOOKUP(A16,'Ambiente de Control'!$B$24:$F$235,5,0)),"",VLOOKUP(A16,'Ambiente de Control'!$B$24:$F$235,5,0)) -> 1 | L16: =+IF(ISBLANK(VLOOKUP(A16,'Ambiente de Control'!$B$24:$K$235,9,0)),"",VLOOKUP(A16,'Ambiente de Control'!$B$24:$K$235,9,0)) -> 2 | M16: 0.25 | N16: 0.7083333333
